Workbook

Sheet Velkommen
B5: Hvis du får en gul bjælke foroven hvor den beder dig om at acceptere makroer eller ActiveX-objekter bedes du acceptere. Ellers virker ansøgningsskemaet ikke.
B9: Hvilket slags projekt ansøger du om?
B12: Samarbejdsprojekter
B13: Samarbejdsprojekter har generelt højere satser end individuelle projekter. For at opnå forhøjet tilskud til samarbejdsprojekter skal projektet enten være: I samarbejdsprojekter er det et krav, at projektets resultater formidles bredt gennem konferencer, publikationer, open access-samlinger, gratis software eller open source-software. (Dette gælder dog ikke fortrolige oplysninger.)
B16: • Et samarbejde mellem virksomheder, hvoraf mindst en deltager er en SMV, og hvor ingen virksomhed afholder mere end 70 pct. af det samlede GUDP tilskud, eller;
B19: • Et samarbejde mellem virksomheder (uanset størrelse) og en forsknings- og vidensformidlingsinstitution, hvor sidstnævnte afholder mindst 10 pct. af GUDP tilskuddet.
B22: I samarbejdsprojekter er det et krav, at projektets resultater formidles bredt gennem konferencer, publikationer, open access-samlinger, gratis software eller open source-software. (Dette gælder dog ikke fortrolige oplysninger.)
B26: Individuelle projekter
B27: Ved et individuelt projekt forstås enten:
B28: • Et projekt med en enkelt deltager – hovedansøger –, som er en virksomhed (uanset størrelse), eller;
B30: • Et projekt med virksomhedsdeltagere, men hvor en af deltagerne afholder mere end 70 pct. af det samlede GUDP tilskud.
B33: Bemærk desuden venligst følgende:
B34: Ved individuelle projekter kan der somme tider være behov for ekstern bistand, f.eks. ved hjælp af konsulenter. Disse er ikke medansøgere af projektet, men hyres til at udføre projektspecifikt arbejde, som projektdeltagerne ikke selv har de fornødne kompetencer til at udføre.
B38: For både samarbejdsprojekter og individuelle projekter gælder det, at der skal udfyldes et delbudget for hver aktivitetstype, for hver deltager. Der er fire forskellige aktivitetstyper: 1) Anvendt forskning, 2) Udvikling, 3) Demonstration og 4) Netværk.
B42: Eksempel: Et individuelt projekt, med kun en enkelt deltager, som både indeholder aktivitetstyperne ’Udvikling’ og ’Demonstration’, skal udfylde to delbudgetter – ét for hver aktivitetstype.

Sheet Gantt-diagram
A2: Gantt Diagram
C4: 20XX | G4: 20XX | K4: 20XX | O4: 20XX | S4: Aktivitetstype (F/U/D/N)
B5: Involverede projektdeltagere | C5: Jan | D5: Apr | E5: Jul | F5: Okt | G5: Jan | H5: Apr | I5: Jul | J5: Okt | K5: Jan | L5: Apr | M5: Jul | N5: Okt | O5: Jan | P5: Apr | Q5: Jul | R5: Okt | S5: og leveringtype, se faneblad 3 | T5: Antal timer | U5: AP budget
A6: AP 1: Navn på AP1
A7: 1.1
A8: 1.2
A9: 1.3
A10: Mv.
A12: Milepæle:
A13: M1.1:
A14: M 1.2: | T14: Samlet timetal: | U14: Samlet budget:
A15: AP 2
A16: 2.1
A17: 2.2
A18: 2.3
A20: Milepæle:
A21: M2.1:
A22: M 2.2: | T22: Samlet timetal: | U22: Samlet budget:
A23: AP 3
A24: 3.1
A25: 3.2
A26: 3.3
T28: Samlet timetal: | U28: Samlet budget:
A29: AP 4
A30: 4.1
A31: 4.2
A32: 4.3
T33: Samlet timetal: | U33: Samlet budget:
A34: AP 5
A35: 5.1
A36: 5.2
A37: 5.3
T38: Samlet timetal: | U38: Samlet budget:
A40: Total | T40: Totalt timetal: | U40: Totalt budget:
U43: Tjekliste for obligatoriske elementer i GANTT-diagram:
U44: Involverede projektdeltagere for hver arbejdspakke
U45: Aktivitetstype for hver arbejdspakke (Forskning, Udvikling, Demonstration eller Netværk)
U46: Samlet antal timer for hver arbejdspakke
U47: Samlet budget for hver arbejdspakke
U48: Totalt timeantal
U49: Totalt budget
U50: Milepæle i hver arbejdspakke. Ved milepælene angives leveringstype jf. liste med forkortelser "Liste over leveringstyper"

Sheet Eksempel på Gantt-diagram
A3: Eksempel på Gantt Diagram
C5: 2022 | G5: 2023 | K5: 2024 | O5: 2025 | S5: Aktivitetstype (F/U/D/N)
B6: Involverede projektdeltagere | C6: Jan | D6: Apr | E6: Jul | F6: Okt | G6: Jan | H6: Apr | I6: Jul | J6: Okt | K6: Jan | L6: Apr | M6: Jul | N6: Okt | O6: Jan | P6: Apr | Q6: Jul | R6: Okt | S6: og leveringtype, se faneblad 3 | T6: Antal timer | U6: AP budget
A7: AP 1: Forsøgsplanlægning | B7: Navn på ansvarlig (Ansv.) | S7: U, F | T7: Timetal virksomhed 1: 100
A8: 1.1: Udvælgelse af xxxx | B8: Deltager 1 | T8: Timetal virksomhed 2: 225
A9: 1.2: Møder med relevante fagpersoner | B9: Deltager 2
A10: 1.3: Samlet vurdering af xxxx | B10: Deltager 3
B11: Deltager 4
A12: Milepæle:
A13: M 1.1: Forsøgssetup | C13: x
A14: M 1.2: Møder med fagpersoner afholdt | C14: x
A15: M 1.3: Intern forsøgsprotokol udarbejdet | E15: UF1 | F15: FF2 | S15: UF1 og FF2 | U15: Samlet budget: 210.843 kr.
T16: Samlet timetal: 325 | U16: (inkl. OH)
A17: AP 2: Første undersøgelse | B17: Navn på ansvarlig (Ansv.) | S17: F | T17: Timetal virksomhed 1: 160
A18: 2.1: Finde egnede besætninger | B18: Deltager 1 | T18: Timetal virksomhed 2: 310
A19: 2.2: Udtage prøver | B19: Deltager 2
A20: 2.3: Analyse og vurdering af xxxx | B20: Deltager 3
A21: 2.4: Resultatbehandling | B21: Deltager 4
A23: Milepæle:
A24: M 2.1: Aftaler med besætninger indgået | E24: x
A25: M 2.2: Forskningsrapport | G25: FV4 | S25: FV4
A26: M 2.3: Manuskript | H26: FV1 | S26: FV1 | U26: Samlet budget: 192.378 kr.
T27: Samlet timetal: 470 | U27: (inkl. OH)
A28: AP 3: Test af xxxx | B28: Navn på ansvarlig (Ansv.) | S28: F | T28: Timetal virksomhed 1: 1269
A29: 3.1: Besøg besætninger | B29: Deltager 1 | T29: Timetal virksomhed 2: 800
A30: 3.2: Afvikling af forsøg | B30: Deltager 2 | T30: Timetal virksomhed 3: 200
A31: 3.3: Analyse og vurdering af xxxx | B31: Deltager 3 | T31: Timetal virksomhed 4: 854
A32: 3.4: Publicering | B32: Deltager 4
A34: Milepæle:
A35: M 3.1: Forsøg ved besætningerne | H35: x
A36: M 3.2: Forskningsrapport | K36: FV4 | S36: FV4
A37: M 3.3: Udarbejdelse af publicering | L37: FV1 | S37: FV1 | T37: Samlet timetal: 3.123 | U37: Samlet budget: 2.019.307 kr.
U38: (inkl. OH)
A39: AP 4: Udvikling af xxxx | B39: Navn på ansvarlig (Ansv.) | S39: U | T39: Timetal virksomhed 1: 617
A40: 4.1 Løbende vurdering af xxxx | B40: Deltager 1 | T40: Timetal virksomhed 2: 300
A41: 4.2 Formulering af xxxx | B41: Deltager 2
B42: Deltager 3
A43: Milepæle: | B43: Deltager 4
A44: M 4.1: Koncept af prototype | P44: UP3, UP4 | S44: UP3 og UP4 | U44: Samlet budget: 620.732 kr.
T45: Samlet timetal: 917 | U45: (inkl. OH)
A46: AP 5: Udvikling af xxxx | B46: Navn på ansvarlig (Ansv.) | S46: U, D | T46: Timetal virksomhed 1: 767
A47: 5.1: Forberedelse af afsluttende forsøg | B47: Deltager 1 | T47: Timetal virksomhed 2: 1736
A48: 5.2. Forsøg gennemføres | B48: Deltager 2 | T48: Timetal virksomhed 3: 320
A49: 5.3: Gennemføre test af xxxx | B49: Deltager 3
A50: 5.4: Statistiske beregninger | B50: Deltager 4
A51: 5.5: Afholde møder
A53: Milepæle:
A54: M 5.1: Workshop | P54: UF5 | S54: UF5
A55: M 5.2: Afprøvning af forsøg | O55: x
A56: M 5.3: Statistiske beregninger | P56: UF2 | S56: UF2
A57: M 5.4: Publikation af xxxx | R57: UF4 | S57: UF4
A58: M 5.5: Manuskript | Q58: UF4 | S58: UF4
A59: M 5.6: Møder afholdt | P59: DF4 | R59: x | S59: DF4 | U59: Samlet budget: 2.011.386 kr.
T60: Samlet timetal: 2823 | U60: (inkl. OH)
A62: Total | T62: Totalt timetal: 7.658 | U62: Totalt budget: 5.054.646 kr.

Sheet Liste over leveringstyper
A1: Lister over leveringstyper til brug ved udfyldelse af gantt-diagram til udviklings- og demonstrationsprojekter samt netværksprojekter
A2: ANVENDELSESORIENTERET FORSKNING | C2: UDVIKLING | E2: DEMONSTRATION | G2: NETVÆRK
A3: Videnskabelig produktion | C3: Nye produkter processer m.v. | E3: Nye produkter processer m.v. | G3: Leveringstyper
A4: Internationalt tidsskrift (peer reviewed) | B4: FV1 | C4: Nye eller væsentligt forbedret produkt | D4: UP1 | G4: Potentielle udviklingsarbejder konkretiserede | H4: N1
A5: Dansk tidsskrift | B5: FV2 | C5: Nye eller væsentligt forbedret produktionsproces | D5: UP2 | G5: Analyser, udredninger, strategier udarbejdet | H5: N2
A6: Proceedings og working papers | B6: FV3 | C6: Nye koncepter m.v. | D6: UP3 | G6: Mindre udredninger/ notater udarbejdet | H6: N3
A7: Forskningsrapport | B7: FV4 | C7: Prototyper | D7: UP4 | G7: Kronikker, avisinterview, debatartikler | H7: N4
A8: Konferenceindlæg | B8: FV5 | C8: Pilotanlæg | D8: UP5 | G8: Artikler i fagtidsskrifter eller fagspecifikke aviser | H8: N5
A9: Kommercialisering og anvendelse | C9: Kommercialisering og anvendelse | E9: Kommercialisering og anvendelse | G9: Nyhedsbreve | H9: N6
A10: Strategisk metodeudvikling og myndighedsprocedure | B10: FK2 | C10: Varemærkebeskyttelse | D10: UK2 | G10: Hjemmesider tilknyttet til netværket/partnerskabet | H10: N7
A11: Anden form for kommercialisering | B11: FK3 | C11: Certificering/test (ikke lovkrævet) | D11: UK3 | G11: Andet (beskrives særskilt) | H11: N8
C12: Anden form for kommercialisering, herunder ændringer i tekniske standarder, ændringer i rådgivningstandarder m.v. | D12: UK4
A13: Softwareprogrammer | C13: Softwareprogrammer | E13: Softwareprogrammer
A14: Intern anvendelse | B14: FS1 | C14: Intern anvendelse | D14: US1
A15: Ekstern anvendelse | B15: FS2 | C15: Ekstern anvendelse | D15: US2
A16: Kommunikation og formidling | C16: Kommunikation og formidling | E16: Kommunikation og formidling
A17: Større udredninger og analyser, typisk over 50 sider | B17: FF1 | C17: Større udredninger og analyser, typisk over 50 sider | D17: UF1 | E17: Formidling via praktiske fremvisninger | F17: DF1
A18: Mindre udredninger/ notater | B18: FF2 | C18: Mindre udredninger/ notater | D18: UF2 | E18: Tekniske manualer, factsheets og lign. | F18: DF2
A19: Artikler i fagtidsskrifter og fagspecifikke aviser | B19: FF3 | C19: Tekniske manualer, factsheets og lign. | D19: UF3 | E19: Artikler i fagtidsskrifter og fagspecifikke aviser | F19: DF3
A20: Temanumre i forbindelse med projekt | B20: FF4 | C20: Artikler i fagtidsskrifter og fagspecifikke aviser | D20: UF4 | E20: Temamøder / Workshop / Åbent hus arrangementer | F20: DF4
A21: Temamøder / Workshop / Møder / Åbent hus arrangementer | B21: FF5 | C21: Temamøder / Workshop / Møder / Åbent hus arrangementer | D21: UF5

Sheet Valideringer
B2: Virksomhedsstørrelse | D2: Aktivitetstype:
B3: Individuel | C3: Samarbejde | D3: Individuel | E3: Samarbejde
B4: Offentlig forsknings- og vidensformidlingsorganisation | C4: Offentlig forsknings- og vidensformidlingsorganisation | D4: Anvendt forskning | E4: Anvendt forskning
B5: Privat forsknings- og vidensformidlingsorganisation | C5: Privat forsknings- og vidensformidlingsorganisation | D5: Udvikling | E5: Udvikling
B6: Lille virksomhed | C6: Lille virksomhed | D6: Demonstration | E6: Demonstration
B7: Mellemstor virksomhed | C7: Mellemstor virksomhed | D7: Netværk | E7: Netværk
B8: Stor virksomhed | C8: Stor virksomhed

Sheet Samlet budgetoversigt
A1: Projekttitel:
D2: Projektets totalbudget udfyldes automatisk
B3: Omkostninger | C3: Heraf GUDP | D3: Heraf egen-og privat finansiering | E3: Heraf anden offentlig støtte - manuel | F3: Antal timer
A4: Lønomkostninger | B4: =B23+B42+B61+B80+B99+B118+B137+B156+B175+B194+B213+B232+B251+B270+B289+B308+B327+B346+B365+B384 -> 0 | C4: 0 | D4: 0 | F4: =F23+F42+F61+F80+F99+F118+F137+F156+F175+F194+F213+F232+F251+F270+F289+F308+F327+F346+F365+F384 -> 0 | I4: Journal nr: 34009-24-XXXX
A5: Ekstern bistand | B5: 0 | C5: 0 | D5: 0 | F5: 0 | I5: Godkendt fra: XX-XX-XXXX
A6: Øvrige omkostninger | B6: 0 | C6: 0 | D6: 0 | F6: 0
A7: Apparatur/udstyr | B7: 0 | C7: 0 | D7: 0 | F7: 0
A8: Scrap-værdi | B8: 0 | C8: 0 | D8: 0 | F8: 0
A9: Evt. indtægter | B9: 0 | C9: 0 | D9: 0 | F9: 0
A10: Revision | B10: 0 | C10: 0 | D10: 0 | F10: 0
A11: I alt uden OH | B11: 0 | C11: 0 | D11: 0 | F11: 0
A12: OH | B12: 0 | C12: 0 | D12: 0 | F12: 0
A13: I alt | B13: 0 | C13: 0 | D13: 0 | F13: 0
A14: Finansiering i alt | B14: =IFERROR(B34+B53+B72+B91+B110+B129+B148+B167+B186+B205+B224+B243+B262+B281+B300+B319+B338+B357+B376+B395,"") -> 0 | C14: =IFERROR(C34+C53+C72+C91+C110+C129+C148+C167+C186+C205+C224+C243+C262+C281+C300+C319+C338+C357+C376+C395,"") -> 0 | D14: =IFERROR(D34+D53+D72+D91+D110+D129+D148+D167+D186+D205+D224+D243+D262+D281+D300+D319+D338+D357+D376+D395,"") -> 0 | E14: 0 | F14: =IFERROR(F33+F52+F71+F90+F109+F128+F147+F166+F185+F204+F223+F242+F261+F280+F299+F318+F337+F356+F375+F394,"") -> 
A16: Virksomhedsnavn: | C16: Hovedansøger | D16: Virksomhedsstørrelse:
A17: Aktivitetstype: | D17: Max mulig GUDP tilskudsprocent: | E17: =IF(G19<0,"Anden offentlig støtte overstiger GUDP max tilskudsbeløb",_xlfn.IFNA(VLOOKUP(B17,'Liste over tilskudsprocenter'!$A:$K,MATCH(CONCATENATE(E16," - ",$H$1),'Liste over tilskudsprocenter'!$A$1:$K$1,0),FALSE),"")) ->  | F17: Nedskrevet GUDP tilskudsprocent pga. anden offentlig støtte el. egen- og privat finansiering: | G17: =IFERROR(IF(G19<0,"Anden offentlig støtte overstiger GUDP max tilskudsbeløb",IF(G19=E19,"",G19)),"") ->  | H17: =IF(E16="",0,IF(LEFT(E16,9)="Offentlig",B30*0.44,B23*0.3)) -> 0
D18: Max mulig GUDP tilsagnsbeløb: | E18: =IFERROR(VLOOKUP(B17,'Liste over tilskudsprocenter'!$A:$K,MATCH(CONCATENATE(E16," - ",$H$1),'Liste over tilskudsprocenter'!$A$1:$K$1,0),FALSE)*B32,"") ->  | F18: Nedskrevet GUDP tilskudsbeløb pga. anden offentlig støtte el. egen- og privat finansiering: | G18: =IFERROR(B32*G17,"") -> 
A19: OH-procentsats | B19: =IF(E16="","",IF(E16="Offentlig forsknings- og vidensformidlingsorganisation",0.44,IF(E16="Privat forsknings- og vidensformidlingsorganisation",0.44,0.3))) ->  | E19: =_xlfn.IFNA(VLOOKUP(B17,'Liste over tilskudsprocenter'!$A:$K,MATCH(CONCATENATE(E16," - ",$H$1),'Liste over tilskudsprocenter'!$A$1:$K$1,0),FALSE),"") ->  | G19: =IFERROR(IF(B32*(1-E19)-D33-E33<0,E19-((B32*E19+E33+D33)-B32)/B32,""),"") -> 
A20: OH-rest beløb | B20: =IF(E16="","",IF(OR(LEFT(E16,9)="Offentlig",LEFT(E16,6)="Privat"),B30*0.44-B31,B23*0.3-B31)) -> 
O21: GUDP tilskudsats | P21: GUDP nedsat tilskudssats | Q21: Beløb, der bruges til "Heraf GUDP"
A22: =IF(B32>0,"Ja","") ->  | B22: Omkostninger | C22: Heraf GUDP | D22: Heraf egen-og privat finansiering | E22: Heraf anden offentlig støtte - manuel | F22: Antal timer | I22: Specifikation af delbudget:
A23: Lønomkostninger | C23: =IFERROR(IF(B23=0,0,Q23),0) -> 0 | D23: =IFERROR(B23-C23,0) -> 0 | H23: =IF($E$51<>"Offentlig forsknings- og vidensformidlingsorganisation",0,IF(B23="",0,B23)) -> 0 | O23: =IF(B23=0,0,B23*E19) -> 0 | P23: =IFERROR(IF(NOT(ISNUMBER(G19)),"",IF(G17="Anden offentlig støtte overstiger GUDP max tilskudsbeløb",0,B23*G19)),0) ->  | Q23: =IF(NOT(ISNUMBER(P23)),O23,IFERROR(IF(P23=0,0,P23),0)) -> 0
A24: Ekstern bistand | C24: =IFERROR(IF(B24=0,0,Q24),0) -> 0 | D24: =IFERROR(B24-C24,0) -> 0 | H24: 0 | O24: =IF(B24=0,0,B24*E19) -> 0 | P24: =IFERROR(IF(NOT(ISNUMBER(G19)),"",IF(G17="Anden offentlig støtte overstiger GUDP max tilskudsbeløb",0,B24*G19)),0) ->  | Q24: =IF(NOT(ISNUMBER(P24)),O24,IFERROR(IF(P24=0,0,P24),0)) -> 0
A25: Øvrige omkostninger | C25: 0 | D25: 0 | H25: 0 | O25: =IF(B25=0,0,B25*E19) -> 0 | P25: =IFERROR(IF(NOT(ISNUMBER(G19)),"",IF(G17="Anden offentlig støtte overstiger GUDP max tilskudsbeløb",0,B25*G19)),0) ->  | Q25: 0
A26: Apparatur/udstyr | C26: 0 | D26: 0 | H26: 0 | O26: =IF(B26=0,0,B26*E19) -> 0 | P26: =IFERROR(IF(NOT(ISNUMBER(G19)),"",IF(G17="Anden offentlig støtte overstiger GUDP max tilskudsbeløb",0,B26*G19)),0) ->  | Q26: 0
A27: Scrap-værdi | C27: =IFERROR(IF(B27=0,0,Q27),0) -> 0 | D27: 0 | H27: 0 | O27: =IF(B27=0,0,B27*E19) -> 0 | P27: =IFERROR(IF(NOT(ISNUMBER(G19)),"",IF(G17="Anden offentlig støtte overstiger GUDP max tilskudsbeløb",0,B27*G19)),0) ->  | Q27: 0
A28: Evt. indtægter | C28: 0 | D28: 0 | H28: 0 | O28: =IF(B28=0,0,B28*E19) -> 0 | P28: =IFERROR(IF(NOT(ISNUMBER(G19)),"",IF(G17="Anden offentlig støtte overstiger GUDP max tilskudsbeløb",0,B28*G19)),0) ->  | Q28: 0
A29: Revision | C29: 0 | D29: 0 | H29: 0 | O29: =IF(B29=0,0,B29*E19) -> 0 | P29: =IFERROR(IF(NOT(ISNUMBER(G19)),"",IF(G17="Anden offentlig støtte overstiger GUDP max tilskudsbeløb",0,B29*G19)),0) ->  | Q29: 0
A30: I alt uden OH | B30: =SUM(B23:B29) -> 0 | C30: =SUM(C23:C29) -> 0 | D30: =SUM(D23:D29) -> 0 | F30: =SUM(F23:F29) -> 0 | H30: 0 | O30: =IF(B30=0,0,B30*E19) -> 0 | P30: =IFERROR(IF(NOT(ISNUMBER(G19)),"",IF(G17="Anden offentlig støtte overstiger GUDP max tilskudsbeløb",0,B30*G19)),0) ->  | Q30: 0
A31: OH | C31: =IFERROR(IF(B31=0,0,Q31),0) -> 0 | D31: =IFERROR(B31-C31,0) -> 0 | H31: 0 | O31: =IF(B31=0,0,B31*E19) -> 0 | P31: =IFERROR(IF(NOT(ISNUMBER(G19)),"",IF(G17="Anden offentlig støtte overstiger GUDP max tilskudsbeløb",0,B31*G19)),0) ->  | Q31: 0
A32: I alt | B32: =SUM(B23:B29)+B31 -> 0 | C32: =SUM(C23:C29)+C31 -> 0 | D32: =IF(SUM(D23:D29)+D31-SUM(D33:E33)<=0,0,SUM(D23:D29)+D31-SUM(D33:E33)) -> 0 | F32: =SUM(F23:F29)+F31 -> 0 | H32: 0 | P32: =IFERROR(IF(NOT(ISNUMBER(G19)),"",IF(G17="Anden offentlig støtte overstiger GUDP max tilskudsbeløb",0,B32*G19)),0) ->  | Q32: 0
A33: Finansiering i alt | B33: =IF(ISBLANK(E33),"",B32) ->  | C33: =IF(ISBLANK(E33),"",C32) ->  | F33: =IF(ISBLANK(E33),"",F32) ->  | O33: =IF(B34=0,0,B34*E35) -> 0 | P33: =IFERROR(IF(NOT(ISNUMBER(G19)),"",IF(G17="Anden offentlig støtte overstiger GUDP max tilskudsbeløb",0,B33*G19)),0) ->  | Q33: 0
B34: =IF(NOT(ISNUMBER(B33)),B32,IF(B33=B32,B32,B33)) -> 0 | C34: =IF(NOT(ISNUMBER(C33)),C32,IF(C33=C32,C32,C33)) -> 0 | D34: =IF(NOT(ISNUMBER(D33)),D32,IF(D33=D32,D32,D33)) -> 0 | E34: 0
A35: Virksomhedsnavn: | C35: Deltager 2 | D35: Virksomhedsstørrelse:
A36: Aktivitetstype: | D36: Max mulig GUDP tilskudsprocent: | E36: =IF(G38<0,"Anden offentlig støtte overstiger GUDP max tilskudsbeløb",_xlfn.IFNA(VLOOKUP(B36,'Liste over tilskudsprocenter'!$A:$K,MATCH(CONCATENATE(E35," - ",$H$1),'Liste over tilskudsprocenter'!$A$1:$K$1,0),FALSE),"")) ->  | F36: Nedskrevet GUDP tilskudsprocent pga. anden offentlig støtte el. egen- og privat finansiering: | G36: =IFERROR(IF(G38<0,"Anden offentlig støtte overstiger GUDP max tilskudsbeløb",IF(G38=E38,"",G38)),"") ->  | H36: =IF(E35="",0,IF(LEFT(E35,9)="Offentlig",B49*0.44,B42*0.3)) -> 0
D37: Max mulig GUDP tilsagnsbeløb: | E37: =IFERROR(VLOOKUP(B36,'Liste over tilskudsprocenter'!$A:$K,MATCH(CONCATENATE(E35," - ",$H$1),'Liste over tilskudsprocenter'!$A$1:$K$1,0),FALSE)*B51,"") ->  | F37: Nedskrevet GUDP tilskudsbeløb pga. anden offentlig støtte el. egen- og privat finansiering: | G37: =IFERROR(B51*G36,"") -> 
A38: OH-procentsats | B38: =IF(E35="","",IF(E35="Offentlig forsknings- og vidensformidlingsorganisation",0.44,IF(E35="Privat forsknings- og vidensformidlingsorganisation",0.44,0.3))) ->  | E38: =_xlfn.IFNA(VLOOKUP(B36,'Liste over tilskudsprocenter'!$A:$K,MATCH(CONCATENATE(E35," - ",$H$1),'Liste over tilskudsprocenter'!$A$1:$K$1,0),FALSE),"") ->  | G38: =IFERROR(IF(B51*(1-E38)-D52-E52<0,E38-((B51*E38+E52+D52)-B51)/B51,""),"") -> 
A39: OH-rest beløb | B39: =IF(E35="","",IF(OR(LEFT(E35,9)="Offentlig",LEFT(E35,6)="Privat"),B49*0.44-B50,B42*0.3-B50)) -> 
O40: GUDP tilskudsats | P40: GUDP nedsat tilskudssats | Q40: Beløb, der bruges til "Heraf GUDP"
A41: =IF(B51>0,"Ja","") ->  | B41: Omkostninger | C41: Heraf GUDP | D41: Heraf egen-og privat finansiering | E41: Heraf anden offentlig støtte - manuel | F41: Antal timer | I41: Specifikation af delbudget:
A42: Lønomkostninger | C42: =IFERROR(IF(B42=0,0,Q42),0) -> 0 | D42: =IFERROR(B42-C42,0) -> 0 | H42: =IF($E$51<>"Offentlig forsknings- og vidensformidlingsorganisation",0,IF(B42="",0,B42)) -> 0 | O42: =IF(B42=0,0,B42*E38) -> 0 | P42: =IFERROR(IF(NOT(ISNUMBER(G38)),"",IF(G36="Anden offentlig støtte overstiger GUDP max tilskudsbeløb",0,B42*G38)),0) ->  | Q42: =IF(NOT(ISNUMBER(P42)),O42,IFERROR(IF(P42=0,0,P42),0)) -> 0
A43: Ekstern bistand | C43: =IFERROR(IF(B43=0,0,Q43),0) -> 0 | D43: =IFERROR(B43-C43,0) -> 0 | H43: 0 | O43: =IF(B43=0,0,B43*E38) -> 0 | P43: =IFERROR(IF(NOT(ISNUMBER(G38)),"",IF(G36="Anden offentlig støtte overstiger GUDP max tilskudsbeløb",0,B43*G38)),0) ->  | Q43: =IF(NOT(ISNUMBER(P43)),O43,IFERROR(IF(P43=0,0,P43),0)) -> 0
A44: Øvrige omkostninger | C44: 0 | D44: 0 | H44: 0 | O44: =IF(B44=0,0,B44*E38) -> 0 | P44: =IFERROR(IF(NOT(ISNUMBER(G38)),"",IF(G36="Anden offentlig støtte overstiger GUDP max tilskudsbeløb",0,B44*G38)),0) ->  | Q44: 0
A45: Apparatur/udstyr | C45: 0 | D45: 0 | H45: 0 | O45: =IF(B45=0,0,B45*E38) -> 0 | P45: =IFERROR(IF(NOT(ISNUMBER(G38)),"",IF(G36="Anden offentlig støtte overstiger GUDP max tilskudsbeløb",0,B45*G38)),0) ->  | Q45: 0
A46: Scrap-værdi | C46: =IFERROR(IF(B46=0,0,Q46),0) -> 0 | D46: 0 | H46: 0 | O46: =IF(B46=0,0,B46*E38) -> 0 | P46: =IFERROR(IF(NOT(ISNUMBER(G38)),"",IF(G36="Anden offentlig støtte overstiger GUDP max tilskudsbeløb",0,B46*G38)),0) ->  | Q46: 0
A47: Evt. indtægter | C47: =IFERROR(IF(B47=0,0,Q47),0) -> 0 | D47: 0 | H47: 0 | O47: =IF(B47=0,0,B47*E38) -> 0 | P47: =IFERROR(IF(NOT(ISNUMBER(G38)),"",IF(G36="Anden offentlig støtte overstiger GUDP max tilskudsbeløb",0,B47*G38)),0) ->  | Q47: 0
A48: Revision | C48: 0 | D48: 0 | H48: 0 | O48: =IF(B48=0,0,B48*E38) -> 0 | P48: =IFERROR(IF(NOT(ISNUMBER(G38)),"",IF(G36="Anden offentlig støtte overstiger GUDP max tilskudsbeløb",0,B48*G38)),0) ->  | Q48: 0
A49: I alt uden OH | B49: =SUM(B42:B48) -> 0 | C49: =SUM(C42:C48) -> 0 | D49: =SUM(D42:D48) -> 0 | F49: =SUM(F42:F48) -> 0 | H49: 0 | O49: =IF(B49=0,0,B49*E38) -> 0 | P49: =IFERROR(IF(NOT(ISNUMBER(G38)),"",IF(G36="Anden offentlig støtte overstiger GUDP max tilskudsbeløb",0,B49*G38)),0) ->  | Q49: 0
A50: OH | C50: =IFERROR(IF(B50=0,0,Q50),0) -> 0 | D50: =IFERROR(B50-C50,0) -> 0 | H50: 0 | O50: =IF(B50=0,0,B50*E38) -> 0 | P50: =IFERROR(IF(NOT(ISNUMBER(G38)),"",IF(G36="Anden offentlig støtte overstiger GUDP max tilskudsbeløb",0,B50*G38)),0) ->  | Q50: 0
A51: I alt | B51: =SUM(B42:B48)+B50 -> 0 | C51: =SUM(C42:C48)+C50 -> 0 | D51: =IF(SUM(D42:D48)+D50-SUM(D52:E52)<=0,0,SUM(D42:D48)+D50-SUM(D52:E52)) -> 0 | F51: =SUM(F42:F48)+F50 -> 0 | H51: 0 | P51: =IFERROR(IF(NOT(ISNUMBER(G38)),"",IF(G36="Anden offentlig støtte overstiger GUDP max tilskudsbeløb",0,B51*G38)),0) ->  | Q51: 0
A52: Finansiering i alt | B52: =IF(ISBLANK(E52),"",B51) ->  | C52: =IF(ISBLANK(E52),"",C51) ->  | F52: =IF(ISBLANK(E52),"",F51) ->  | O52: =IF(B53=0,0,B53*E54) -> 0 | P52: =IFERROR(IF(NOT(ISNUMBER(G38)),"",IF(G36="Anden offentlig støtte overstiger GUDP max tilskudsbeløb",0,B52*G38)),0) ->  | Q52: 0
B53: =IF(NOT(ISNUMBER(B52)),B51,IF(B52=B51,B51,B52)) -> 0 | C53: =IF(NOT(ISNUMBER(C52)),C51,IF(C52=C51,C51,C52)) -> 0 | D53: =IF(NOT(ISNUMBER(D52)),D51,IF(D52=D51,D51,D52)) -> 0 | E53: =IF(NOT(ISNUMBER(E52)),E51,IF(E52=E51,E51,E52)) -> 0
A54: Virksomhedsnavn: | C54: Deltager 3 | D54: Virksomhedsstørrelse:
A55: Aktivitetstype: | D55: Max mulig GUDP tilskudsprocent: | E55: =IF(G57<0,"Anden offentlig støtte overstiger GUDP max tilskudsbeløb",_xlfn.IFNA(VLOOKUP(B55,'Liste over tilskudsprocenter'!$A:$K,MATCH(CONCATENATE(E54," - ",$H$1),'Liste over tilskudsprocenter'!$A$1:$K$1,0),FALSE),"")) ->  | F55: Nedskrevet GUDP tilskudsprocent pga. anden offentlig støtte el. egen- og privat finansiering: | G55: =IFERROR(IF(G57<0,"Anden offentlig støtte overstiger GUDP max tilskudsbeløb",IF(G57=E57,"",G57)),"") ->  | H55: =IF(E54="",0,IF(LEFT(E54,9)="Offentlig",B68*0.44,B61*0.3)) -> 0
D56: Max mulig GUDP tilsagnsbeløb: | E56: =IFERROR(VLOOKUP(B55,'Liste over tilskudsprocenter'!$A:$K,MATCH(CONCATENATE(E54," - ",$H$1),'Liste over tilskudsprocenter'!$A$1:$K$1,0),FALSE)*B70,"") ->  | F56: Nedskrevet GUDP tilskudsbeløb pga. anden offentlig støtte el. egen- og privat finansiering: | G56: =IFERROR(B70*G55,"") -> 
A57: OH-procentsats | B57: =IF(E54="","",IF(E54="Offentlig forsknings- og vidensformidlingsorganisation",0.44,IF(E54="Privat forsknings- og vidensformidlingsorganisation",0.44,0.3))) ->  | E57: =_xlfn.IFNA(VLOOKUP(B55,'Liste over tilskudsprocenter'!$A:$K,MATCH(CONCATENATE(E54," - ",$H$1),'Liste over tilskudsprocenter'!$A$1:$K$1,0),FALSE),"") ->  | G57: =IFERROR(IF(B70*(1-E57)-D71-E71<0,E57-((B70*E57+E71+D71)-B70)/B70,""),"") -> 
A58: OH-rest beløb | B58: =IF(E54="","",IF(OR(LEFT(E54,9)="Offentlig",LEFT(E54,6)="Privat"),B68*0.44-B69,B61*0.3-B69)) -> 
O59: GUDP tilskudsats | P59: GUDP nedsat tilskudssats | Q59: Beløb, der bruges til "Heraf GUDP"
A60: =IF(B70>0,"Ja","") ->  | B60: Omkostninger | C60: Heraf GUDP | D60: Heraf egen-og privat finansiering | E60: Heraf anden offentlig støtte - manuel | F60: Antal timer | I60: Specifikation af delbudget:
A61: Lønomkostninger | C61: =IFERROR(IF(B61=0,0,Q61),0) -> 0 | D61: =IFERROR(B61-C61,0) -> 0 | H61: =IF($E$51<>"Offentlig forsknings- og vidensformidlingsorganisation",0,IF(B61="",0,B61)) -> 0 | O61: =IF(B61=0,0,B61*E57) -> 0 | P61: =IFERROR(IF(NOT(ISNUMBER(G57)),"",IF(G55="Anden offentlig støtte overstiger GUDP max tilskudsbeløb",0,B61*G57)),0) ->  | Q61: =IF(NOT(ISNUMBER(P61)),O61,IFERROR(IF(P61=0,0,P61),0)) -> 0
A62: Ekstern bistand | C62: =IFERROR(IF(B62=0,0,Q62),0) -> 0 | D62: =IFERROR(B62-C62,0) -> 0 | H62: 0 | O62: =IF(B62=0,0,B62*E57) -> 0 | P62: =IFERROR(IF(NOT(ISNUMBER(G57)),"",IF(G55="Anden offentlig støtte overstiger GUDP max tilskudsbeløb",0,B62*G57)),0) ->  | Q62: =IF(NOT(ISNUMBER(P62)),O62,IFERROR(IF(P62=0,0,P62),0)) -> 0
A63: Øvrige omkostninger | C63: 0 | D63: 0 | H63: 0 | O63: =IF(B63=0,0,B63*E57) -> 0 | P63: =IFERROR(IF(NOT(ISNUMBER(G57)),"",IF(G55="Anden offentlig støtte overstiger GUDP max tilskudsbeløb",0,B63*G57)),0) ->  | Q63: 0
A64: Apparatur/udstyr | C64: 0 | D64: 0 | H64: 0 | O64: =IF(B64=0,0,B64*E57) -> 0 | P64: =IFERROR(IF(NOT(ISNUMBER(G57)),"",IF(G55="Anden offentlig støtte overstiger GUDP max tilskudsbeløb",0,B64*G57)),0) ->  | Q64: 0
A65: Scrap-værdi | C65: =IFERROR(IF(B65=0,0,Q65),0) -> 0 | D65: 0 | H65: 0 | O65: =IF(B65=0,0,B65*E57) -> 0 | P65: =IFERROR(IF(NOT(ISNUMBER(G57)),"",IF(G55="Anden offentlig støtte overstiger GUDP max tilskudsbeløb",0,B65*G57)),0) ->  | Q65: 0
A66: Evt. indtægter | C66: =IFERROR(IF(B66=0,0,Q66),0) -> 0 | D66: 0 | H66: 0 | O66: =IF(B66=0,0,B66*E57) -> 0 | P66: =IFERROR(IF(NOT(ISNUMBER(G57)),"",IF(G55="Anden offentlig støtte overstiger GUDP max tilskudsbeløb",0,B66*G57)),0) ->  | Q66: 0
A67: Revision | C67: 0 | D67: 0 | H67: 0 | O67: =IF(B67=0,0,B67*E57) -> 0 | P67: =IFERROR(IF(NOT(ISNUMBER(G57)),"",IF(G55="Anden offentlig støtte overstiger GUDP max tilskudsbeløb",0,B67*G57)),0) ->  | Q67: 0
A68: I alt uden OH | B68: =SUM(B61:B67) -> 0 | C68: =SUM(C61:C67) -> 0 | D68: =SUM(D61:D67) -> 0 | F68: =SUM(F61:F67) -> 0 | H68: 0 | O68: =IF(B68=0,0,B68*E57) -> 0 | P68: =IFERROR(IF(NOT(ISNUMBER(G57)),"",IF(G55="Anden offentlig støtte overstiger GUDP max tilskudsbeløb",0,B68*G57)),0) ->  | Q68: 0
A69: OH | C69: =IFERROR(IF(B69=0,0,Q69),0) -> 0 | D69: =IFERROR(B69-C69,0) -> 0 | H69: 0 | O69: =IF(B69=0,0,B69*E57) -> 0 | P69: =IFERROR(IF(NOT(ISNUMBER(G57)),"",IF(G55="Anden offentlig støtte overstiger GUDP max tilskudsbeløb",0,B69*G57)),0) ->  | Q69: 0
A70: I alt | B70: =SUM(B61:B67)+B69 -> 0 | C70: =SUM(C61:C67)+C69 -> 0 | D70: =IF(SUM(D61:D67)+D69-SUM(D71:E71)<=0,0,SUM(D61:D67)+D69-SUM(D71:E71)) -> 0 | F70: =SUM(F61:F67)+F69 -> 0 | H70: 0 | P70: =IFERROR(IF(NOT(ISNUMBER(G57)),"",IF(G55="Anden offentlig støtte overstiger GUDP max tilskudsbeløb",0,B70*G57)),0) ->  | Q70: 0
A71: Finansiering i alt | B71: =IF(ISBLANK(E71),"",B70) ->  | C71: =IF(ISBLANK(E71),"",C70) ->  | F71: =IF(ISBLANK(E71),"",F70) ->  | O71: =IF(B72=0,0,B72*E73) -> 0 | P71: =IFERROR(IF(NOT(ISNUMBER(G57)),"",IF(G55="Anden offentlig støtte overstiger GUDP max tilskudsbeløb",0,B71*G57)),0) ->  | Q71: 0
B72: =IF(NOT(ISNUMBER(B71)),B70,IF(B71=B70,B70,B71)) -> 0 | C72: =IF(NOT(ISNUMBER(C71)),C70,IF(C71=C70,C70,C71)) -> 0 | D72: =IF(NOT(ISNUMBER(D71)),D70,IF(D71=D70,D70,D71)) -> 0 | E72: =IF(NOT(ISNUMBER(E71)),E70,IF(E71=E70,E70,E71)) -> 0
A73: Virksomhedsnavn: | C73: Deltager 4 | D73: Virksomhedsstørrelse:
A74: Aktivitetstype: | D74: Max mulig GUDP tilskudsprocent: | E74: =IF(G76<0,"Anden offentlig støtte overstiger GUDP max tilskudsbeløb",_xlfn.IFNA(VLOOKUP(B74,'Liste over tilskudsprocenter'!$A:$K,MATCH(CONCATENATE(E73," - ",$H$1),'Liste over tilskudsprocenter'!$A$1:$K$1,0),FALSE),"")) ->  | F74: Nedskrevet GUDP tilskudsprocent pga. anden offentlig støtte el. egen- og privat finansiering: | G74: =IFERROR(IF(G76<0,"Anden offentlig støtte overstiger GUDP max tilskudsbeløb",IF(G76=E76,"",G76)),"") ->  | H74: =IF(E73="",0,IF(LEFT(E73,9)="Offentlig",B87*0.44,B80*0.3)) -> 0
D75: Max mulig GUDP tilsagnsbeløb: | E75: =IFERROR(VLOOKUP(B74,'Liste over tilskudsprocenter'!$A:$K,MATCH(CONCATENATE(E73," - ",$H$1),'Liste over tilskudsprocenter'!$A$1:$K$1,0),FALSE)*B89,"") ->  | F75: Nedskrevet GUDP tilskudsbeløb pga. anden offentlig støtte el. egen- og privat finansiering: | G75: =IFERROR(B89*G74,"") -> 
A76: OH-procentsats | B76: =IF(E73="","",IF(E73="Offentlig forsknings- og vidensformidlingsorganisation",0.44,IF(E73="Privat forsknings- og vidensformidlingsorganisation",0.44,0.3))) ->  | E76: =_xlfn.IFNA(VLOOKUP(B74,'Liste over tilskudsprocenter'!$A:$K,MATCH(CONCATENATE(E73," - ",$H$1),'Liste over tilskudsprocenter'!$A$1:$K$1,0),FALSE),"") ->  | G76: =IFERROR(IF(B89*(1-E76)-D90-E90<0,E76-((B89*E76+E90+D90)-B89)/B89,""),"") -> 
A77: OH-rest beløb | B77: =IF(E73="","",IF(OR(LEFT(E73,9)="Offentlig",LEFT(E73,6)="Privat"),B87*0.44-B88,B80*0.3-B88)) -> 
O78: GUDP tilskudsats | P78: GUDP nedsat tilskudssats | Q78: Beløb, der bruges til "Heraf GUDP"
A79: =IF(B89>0,"Ja","") ->  | B79: Omkostninger | C79: Heraf GUDP | D79: Heraf egen-og privat finansiering | E79: Heraf anden offentlig støtte - manuel | F79: Antal timer | I79: Specifikation af delbudget:
A80: Lønomkostninger | C80: =IFERROR(IF(B80=0,0,Q80),0) -> 0 | D80: =IFERROR(B80-C80,0) -> 0 | H80: =IF($E$51<>"Offentlig forsknings- og vidensformidlingsorganisation",0,IF(B80="",0,B80)) -> 0 | O80: =IF(B80=0,0,B80*E76) -> 0 | P80: =IFERROR(IF(NOT(ISNUMBER(G76)),"",IF(G74="Anden offentlig støtte overstiger GUDP max tilskudsbeløb",0,B80*G76)),0) ->  | Q80: =IF(NOT(ISNUMBER(P80)),O80,IFERROR(IF(P80=0,0,P80),0)) -> 0
A81: Ekstern bistand | C81: =IFERROR(IF(B81=0,0,Q81),0) -> 0 | D81: =IFERROR(B81-C81,0) -> 0 | H81: 0 | O81: =IF(B81=0,0,B81*E76) -> 0 | P81: =IFERROR(IF(NOT(ISNUMBER(G76)),"",IF(G74="Anden offentlig støtte overstiger GUDP max tilskudsbeløb",0,B81*G76)),0) ->  | Q81: =IF(NOT(ISNUMBER(P81)),O81,IFERROR(IF(P81=0,0,P81),0)) -> 0
A82: Øvrige omkostninger | C82: 0 | D82: 0 | H82: 0 | O82: =IF(B82=0,0,B82*E76) -> 0 | P82: =IFERROR(IF(NOT(ISNUMBER(G76)),"",IF(G74="Anden offentlig støtte overstiger GUDP max tilskudsbeløb",0,B82*G76)),0) ->  | Q82: 0
A83: Apparatur/udstyr | C83: 0 | D83: 0 | H83: 0 | O83: =IF(B83=0,0,B83*E76) -> 0 | P83: =IFERROR(IF(NOT(ISNUMBER(G76)),"",IF(G74="Anden offentlig støtte overstiger GUDP max tilskudsbeløb",0,B83*G76)),0) ->  | Q83: 0
A84: Scrap-værdi | C84: =IFERROR(IF(B84=0,0,Q84),0) -> 0 | D84: 0 | H84: 0 | O84: =IF(B84=0,0,B84*E76) -> 0 | P84: =IFERROR(IF(NOT(ISNUMBER(G76)),"",IF(G74="Anden offentlig støtte overstiger GUDP max tilskudsbeløb",0,B84*G76)),0) ->  | Q84: 0
A85: Evt. indtægter | C85: =IFERROR(IF(B85=0,0,Q85),0) -> 0 | D85: 0 | H85: 0 | O85: =IF(B85=0,0,B85*E76) -> 0 | P85: =IFERROR(IF(NOT(ISNUMBER(G76)),"",IF(G74="Anden offentlig støtte overstiger GUDP max tilskudsbeløb",0,B85*G76)),0) ->  | Q85: 0
A86: Revision | C86: 0 | D86: 0 | H86: 0 | O86: =IF(B86=0,0,B86*E76) -> 0 | P86: =IFERROR(IF(NOT(ISNUMBER(G76)),"",IF(G74="Anden offentlig støtte overstiger GUDP max tilskudsbeløb",0,B86*G76)),0) ->  | Q86: 0
A87: I alt uden OH | B87: =SUM(B80:B86) -> 0 | C87: =SUM(C80:C86) -> 0 | D87: =SUM(D80:D86) -> 0 | F87: =SUM(F80:F86) -> 0 | H87: 0 | O87: =IF(B87=0,0,B87*E76) -> 0 | P87: =IFERROR(IF(NOT(ISNUMBER(G76)),"",IF(G74="Anden offentlig støtte overstiger GUDP max tilskudsbeløb",0,B87*G76)),0) ->  | Q87: 0
A88: OH | C88: =IFERROR(IF(B88=0,0,Q88),0) -> 0 | D88: =IFERROR(B88-C88,0) -> 0 | H88: 0 | O88: =IF(B88=0,0,B88*E76) -> 0 | P88: =IFERROR(IF(NOT(ISNUMBER(G76)),"",IF(G74="Anden offentlig støtte overstiger GUDP max tilskudsbeløb",0,B88*G76)),0) ->  | Q88: 0
A89: I alt | B89: =SUM(B80:B86)+B88 -> 0 | C89: =SUM(C80:C86)+C88 -> 0 | D89: =IF(SUM(D80:D86)+D88-SUM(D90:E90)<=0,0,SUM(D80:D86)+D88-SUM(D90:E90)) -> 0 | F89: =SUM(F80:F86)+F88 -> 0 | H89: 0 | P89: =IFERROR(IF(NOT(ISNUMBER(G76)),"",IF(G74="Anden offentlig støtte overstiger GUDP max tilskudsbeløb",0,B89*G76)),0) ->  | Q89: 0
A90: Finansiering i alt | B90: =IF(ISBLANK(E90),"",B89) ->  | C90: =IF(ISBLANK(E90),"",C89) ->  | F90: =IF(ISBLANK(E90),"",F89) ->  | O90: =IF(B91=0,0,B91*E92) -> 0 | P90: =IFERROR(IF(NOT(ISNUMBER(G76)),"",IF(G74="Anden offentlig støtte overstiger GUDP max tilskudsbeløb",0,B90*G76)),0) ->  | Q90: 0
B91: =IF(NOT(ISNUMBER(B90)),B89,IF(B90=B89,B89,B90)) -> 0 | C91: =IF(NOT(ISNUMBER(C90)),C89,IF(C90=C89,C89,C90)) -> 0 | D91: =IF(NOT(ISNUMBER(D90)),D89,IF(D90=D89,D89,D90)) -> 0 | E91: =IF(NOT(ISNUMBER(E90)),E89,IF(E90=E89,E89,E90)) -> 0
A92: Virksomhedsnavn: | C92: Deltager 5 | D92: Virksomhedsstørrelse:
A93: Aktivitetstype: | D93: Max mulig GUDP tilskudsprocent: | E93: =IF(G95<0,"Anden offentlig støtte overstiger GUDP max tilskudsbeløb",_xlfn.IFNA(VLOOKUP(B93,'Liste over tilskudsprocenter'!$A:$K,MATCH(CONCATENATE(E92," - ",$H$1),'Liste over tilskudsprocenter'!$A$1:$K$1,0),FALSE),"")) ->  | F93: Nedskrevet GUDP tilskudsprocent pga. anden offentlig støtte el. egen- og privat finansiering: | G93: =IFERROR(IF(G95<0,"Anden offentlig støtte overstiger GUDP max tilskudsbeløb",IF(G95=E95,"",G95)),"") ->  | H93: =IF(E92="",0,IF(LEFT(E92,9)="Offentlig",B106*0.44,B99*0.3)) -> 0
D94: Max mulig GUDP tilsagnsbeløb: | E94: =IFERROR(VLOOKUP(B93,'Liste over tilskudsprocenter'!$A:$K,MATCH(CONCATENATE(E92," - ",$H$1),'Liste over tilskudsprocenter'!$A$1:$K$1,0),FALSE)*B108,"") ->  | F94: Nedskrevet GUDP tilskudsbeløb pga. anden offentlig støtte el. egen- og privat finansiering: | G94: =IFERROR(B108*G93,"") -> 
A95: OH-procentsats | B95: =IF(E92="","",IF(E92="Offentlig forsknings- og vidensformidlingsorganisation",0.44,IF(E92="Privat forsknings- og vidensformidlingsorganisation",0.44,0.3))) ->  | E95: =_xlfn.IFNA(VLOOKUP(B93,'Liste over tilskudsprocenter'!$A:$K,MATCH(CONCATENATE(E92," - ",$H$1),'Liste over tilskudsprocenter'!$A$1:$K$1,0),FALSE),"") ->  | G95: =IFERROR(IF(B108*(1-E95)-D109-E109<0,E95-((B108*E95+E109+D109)-B108)/B108,""),"") -> 
A96: OH-rest beløb | B96: =IF(E92="","",IF(OR(LEFT(E92,9)="Offentlig",LEFT(E92,6)="Privat"),B106*0.44-B107,B99*0.3-B107)) -> 
O97: GUDP tilskudsats | P97: GUDP nedsat tilskudssats | Q97: Beløb, der bruges til "Heraf GUDP"
A98: =IF(B108>0,"Ja","") ->  | B98: Omkostninger | C98: Heraf GUDP | D98: Heraf egen-og privat finansiering | E98: Heraf anden offentlig støtte - manuel | F98: Antal timer | I98: Specifikation af delbudget:
A99: Lønomkostninger | C99: =IFERROR(IF(B99=0,0,Q99),0) -> 0 | D99: =IFERROR(B99-C99,0) -> 0 | H99: =IF($E$51<>"Offentlig forsknings- og vidensformidlingsorganisation",0,IF(B99="",0,B99)) -> 0 | O99: =IF(B99=0,0,B99*E95) -> 0 | P99: =IFERROR(IF(NOT(ISNUMBER(G95)),"",IF(G93="Anden offentlig støtte overstiger GUDP max tilskudsbeløb",0,B99*G95)),0) ->  | Q99: =IF(NOT(ISNUMBER(P99)),O99,IFERROR(IF(P99=0,0,P99),0)) -> 0
A100: Ekstern bistand | C100: =IFERROR(IF(B100=0,0,Q100),0) -> 0 | D100: =IFERROR(B100-C100,0) -> 0 | H100: 0 | O100: =IF(B100=0,0,B100*E95) -> 0 | P100: =IFERROR(IF(NOT(ISNUMBER(G95)),"",IF(G93="Anden offentlig støtte overstiger GUDP max tilskudsbeløb",0,B100*G95)),0) ->  | Q100: =IF(NOT(ISNUMBER(P100)),O100,IFERROR(IF(P100=0,0,P100),0)) -> 0
A101: Øvrige omkostninger | C101: 0 | D101: 0 | H101: 0 | O101: =IF(B101=0,0,B101*E95) -> 0 | P101: =IFERROR(IF(NOT(ISNUMBER(G95)),"",IF(G93="Anden offentlig støtte overstiger GUDP max tilskudsbeløb",0,B101*G95)),0) ->  | Q101: 0
A102: Apparatur/udstyr | C102: 0 | D102: 0 | H102: 0 | O102: =IF(B102=0,0,B102*E95) -> 0 | P102: =IFERROR(IF(NOT(ISNUMBER(G95)),"",IF(G93="Anden offentlig støtte overstiger GUDP max tilskudsbeløb",0,B102*G95)),0) ->  | Q102: 0
A103: Scrap-værdi | C103: =IFERROR(IF(B103=0,0,Q103),0) -> 0 | D103: 0 | H103: 0 | O103: =IF(B103=0,0,B103*E95) -> 0 | P103: =IFERROR(IF(NOT(ISNUMBER(G95)),"",IF(G93="Anden offentlig støtte overstiger GUDP max tilskudsbeløb",0,B103*G95)),0) ->  | Q103: 0
A104: Evt. indtægter | C104: =IFERROR(IF(B104=0,0,Q104),0) -> 0 | D104: 0 | H104: 0 | O104: =IF(B104=0,0,B104*E95) -> 0 | P104: =IFERROR(IF(NOT(ISNUMBER(G95)),"",IF(G93="Anden offentlig støtte overstiger GUDP max tilskudsbeløb",0,B104*G95)),0) ->  | Q104: 0
A105: Revision | C105: 0 | D105: 0 | H105: 0 | O105: =IF(B105=0,0,B105*E95) -> 0 | P105: =IFERROR(IF(NOT(ISNUMBER(G95)),"",IF(G93="Anden offentlig støtte overstiger GUDP max tilskudsbeløb",0,B105*G95)),0) ->  | Q105: 0
A106: I alt uden OH | B106: =SUM(B99:B105) -> 0 | C106: =SUM(C99:C105) -> 0 | D106: =SUM(D99:D105) -> 0 | F106: =SUM(F99:F105) -> 0 | H106: 0 | O106: =IF(B106=0,0,B106*E95) -> 0 | P106: =IFERROR(IF(NOT(ISNUMBER(G95)),"",IF(G93="Anden offentlig støtte overstiger GUDP max tilskudsbeløb",0,B106*G95)),0) ->  | Q106: 0
A107: OH | C107: =IFERROR(IF(B107=0,0,Q107),0) -> 0 | D107: =IFERROR(B107-C107,0) -> 0 | H107: 0 | O107: =IF(B107=0,0,B107*E95) -> 0 | P107: =IFERROR(IF(NOT(ISNUMBER(G95)),"",IF(G93="Anden offentlig støtte overstiger GUDP max tilskudsbeløb",0,B107*G95)),0) ->  | Q107: 0
A108: I alt | B108: =SUM(B99:B105)+B107 -> 0 | C108: =SUM(C99:C105)+C107 -> 0 | D108: =IF(SUM(D99:D105)+D107-SUM(D109:E109)<=0,0,SUM(D99:D105)+D107-SUM(D109:E109)) -> 0 | F108: =SUM(F99:F105)+F107 -> 0 | H108: 0 | P108: =IFERROR(IF(NOT(ISNUMBER(G95)),"",IF(G93="Anden offentlig støtte overstiger GUDP max tilskudsbeløb",0,B108*G95)),0) ->  | Q108: 0
A109: Finansiering i alt | B109: =IF(ISBLANK(E109),"",B108) ->  | C109: =IF(ISBLANK(E109),"",C108) ->  | F109: =IF(ISBLANK(E109),"",F108) ->  | O109: =IF(B110=0,0,B110*E111) -> 0 | P109: =IFERROR(IF(NOT(ISNUMBER(G95)),"",IF(G93="Anden offentlig støtte overstiger GUDP max tilskudsbeløb",0,B109*G95)),0) ->  | Q109: 0
B110: =IF(NOT(ISNUMBER(B109)),B108,IF(B109=B108,B108,B109)) -> 0 | C110: =IF(NOT(ISNUMBER(C109)),C108,IF(C109=C108,C108,C109)) -> 0 | D110: =IF(NOT(ISNUMBER(D109)),D108,IF(D109=D108,D108,D109)) -> 0 | E110: =IF(NOT(ISNUMBER(E109)),E108,IF(E109=E108,E108,E109)) -> 0
A111: Virksomhedsnavn: | C111: Deltager 6 | D111: Virksomhedsstørrelse:
A112: Aktivitetstype: | D112: Max mulig GUDP tilskudsprocent: | E112: =IF(G114<0,"Anden offentlig støtte overstiger GUDP max tilskudsbeløb",_xlfn.IFNA(VLOOKUP(B112,'Liste over tilskudsprocenter'!$A:$K,MATCH(CONCATENATE(E111," - ",$H$1),'Liste over tilskudsprocenter'!$A$1:$K$1,0),FALSE),"")) ->  | F112: Nedskrevet GUDP tilskudsprocent pga. anden offentlig støtte el. egen- og privat finansiering: | G112: =IFERROR(IF(G114<0,"Anden offentlig støtte overstiger GUDP max tilskudsbeløb",IF(G114=E114,"",G114)),"") ->  | H112: =IF(E111="",0,IF(LEFT(E111,9)="Offentlig",B125*0.44,B118*0.3)) -> 0
D113: Max mulig GUDP tilsagnsbeløb: | E113: =IFERROR(VLOOKUP(B112,'Liste over tilskudsprocenter'!$A:$K,MATCH(CONCATENATE(E111," - ",$H$1),'Liste over tilskudsprocenter'!$A$1:$K$1,0),FALSE)*B127,"") ->  | F113: Nedskrevet GUDP tilskudsbeløb pga. anden offentlig støtte el. egen- og privat finansiering: | G113: =IFERROR(B127*G112,"") -> 
A114: OH-procentsats | B114: =IF(E111="","",IF(E111="Offentlig forsknings- og vidensformidlingsorganisation",0.44,IF(E111="Privat forsknings- og vidensformidlingsorganisation",0.44,0.3))) ->  | E114: =_xlfn.IFNA(VLOOKUP(B112,'Liste over tilskudsprocenter'!$A:$K,MATCH(CONCATENATE(E111," - ",$H$1),'Liste over tilskudsprocenter'!$A$1:$K$1,0),FALSE),"") ->  | G114: =IFERROR(IF(B127*(1-E114)-D128-E128<0,E114-((B127*E114+E128+D128)-B127)/B127,""),"") -> 
A115: OH-rest beløb | B115: =IF(E111="","",IF(OR(LEFT(E111,9)="Offentlig",LEFT(E111,6)="Privat"),B125*0.44-B126,B118*0.3-B126)) -> 
O116: GUDP tilskudsats | P116: GUDP nedsat tilskudssats | Q116: Beløb, der bruges til "Heraf GUDP"
A117: =IF(B127>0,"Ja","") ->  | B117: Omkostninger | C117: Heraf GUDP | D117: Heraf egen-og privat finansiering | E117: Heraf anden offentlig støtte - manuel | F117: Antal timer | I117: Specifikation af delbudget:
A118: Lønomkostninger | C118: =IFERROR(IF(B118=0,0,Q118),0) -> 0 | D118: =IFERROR(B118-C118,0) -> 0 | H118: =IF($E$51<>"Offentlig forsknings- og vidensformidlingsorganisation",0,IF(B118="",0,B118)) -> 0 | O118: =IF(B118=0,0,B118*E114) -> 0 | P118: =IFERROR(IF(NOT(ISNUMBER(G114)),"",IF(G112="Anden offentlig støtte overstiger GUDP max tilskudsbeløb",0,B118*G114)),0) ->  | Q118: =IF(NOT(ISNUMBER(P118)),O118,IFERROR(IF(P118=0,0,P118),0)) -> 0
A119: Ekstern bistand | C119: =IFERROR(IF(B119=0,0,Q119),0) -> 0 | D119: =IFERROR(B119-C119,0) -> 0 | H119: 0 | O119: =IF(B119=0,0,B119*E114) -> 0 | P119: =IFERROR(IF(NOT(ISNUMBER(G114)),"",IF(G112="Anden offentlig støtte overstiger GUDP max tilskudsbeløb",0,B119*G114)),0) ->  | Q119: =IF(NOT(ISNUMBER(P119)),O119,IFERROR(IF(P119=0,0,P119),0)) -> 0
A120: Øvrige omkostninger | C120: 0 | D120: 0 | H120: 0 | O120: =IF(B120=0,0,B120*E114) -> 0 | P120: =IFERROR(IF(NOT(ISNUMBER(G114)),"",IF(G112="Anden offentlig støtte overstiger GUDP max tilskudsbeløb",0,B120*G114)),0) ->  | Q120: 0
A121: Apparatur/udstyr | C121: 0 | D121: 0 | H121: 0 | O121: =IF(B121=0,0,B121*E114) -> 0 | P121: =IFERROR(IF(NOT(ISNUMBER(G114)),"",IF(G112="Anden offentlig støtte overstiger GUDP max tilskudsbeløb",0,B121*G114)),0) ->  | Q121: 0
A122: Scrap-værdi | C122: =IFERROR(IF(B122=0,0,Q122),0) -> 0 | D122: 0 | H122: 0 | O122: =IF(B122=0,0,B122*E114) -> 0 | P122: =IFERROR(IF(NOT(ISNUMBER(G114)),"",IF(G112="Anden offentlig støtte overstiger GUDP max tilskudsbeløb",0,B122*G114)),0) ->  | Q122: 0
A123: Evt. indtægter | C123: =IFERROR(IF(B123=0,0,Q123),0) -> 0 | D123: 0 | H123: 0 | O123: =IF(B123=0,0,B123*E114) -> 0 | P123: =IFERROR(IF(NOT(ISNUMBER(G114)),"",IF(G112="Anden offentlig støtte overstiger GUDP max tilskudsbeløb",0,B123*G114)),0) ->  | Q123: 0
A124: Revision | C124: 0 | D124: 0 | H124: 0 | O124: =IF(B124=0,0,B124*E114) -> 0 | P124: =IFERROR(IF(NOT(ISNUMBER(G114)),"",IF(G112="Anden offentlig støtte overstiger GUDP max tilskudsbeløb",0,B124*G114)),0) ->  | Q124: 0
A125: I alt uden OH | B125: =SUM(B118:B124) -> 0 | C125: =SUM(C118:C124) -> 0 | D125: =SUM(D118:D124) -> 0 | F125: =SUM(F118:F124) -> 0 | H125: 0 | O125: =IF(B125=0,0,B125*E114) -> 0 | P125: =IFERROR(IF(NOT(ISNUMBER(G114)),"",IF(G112="Anden offentlig støtte overstiger GUDP max tilskudsbeløb",0,B125*G114)),0) ->  | Q125: 0
A126: OH | C126: =IFERROR(IF(B126=0,0,Q126),0) -> 0 | D126: =IFERROR(B126-C126,0) -> 0 | H126: 0 | O126: =IF(B126=0,0,B126*E114) -> 0 | P126: =IFERROR(IF(NOT(ISNUMBER(G114)),"",IF(G112="Anden offentlig støtte overstiger GUDP max tilskudsbeløb",0,B126*G114)),0) ->  | Q126: 0
A127: I alt | B127: =SUM(B118:B124)+B126 -> 0 | C127: =SUM(C118:C124)+C126 -> 0 | D127: =IF(SUM(D118:D124)+D126-SUM(D128:E128)<=0,0,SUM(D118:D124)+D126-SUM(D128:E128)) -> 0 | F127: =SUM(F118:F124)+F126 -> 0 | H127: 0 | P127: =IFERROR(IF(NOT(ISNUMBER(G114)),"",IF(G112="Anden offentlig støtte overstiger GUDP max tilskudsbeløb",0,B127*G114)),0) ->  | Q127: 0
A128: Finansiering i alt | B128: =IF(ISBLANK(E128),"",B127) ->  | C128: =IF(ISBLANK(E128),"",C127) ->  | F128: =IF(ISBLANK(E128),"",F127) ->  | O128: =IF(B129=0,0,B129*E130) -> 0 | P128: =IFERROR(IF(NOT(ISNUMBER(G114)),"",IF(G112="Anden offentlig støtte overstiger GUDP max tilskudsbeløb",0,B128*G114)),0) ->  | Q128: 0
B129: =IF(NOT(ISNUMBER(B128)),B127,IF(B128=B127,B127,B128)) -> 0 | C129: =IF(NOT(ISNUMBER(C128)),C127,IF(C128=C127,C127,C128)) -> 0 | D129: =IF(NOT(ISNUMBER(D128)),D127,IF(D128=D127,D127,D128)) -> 0 | E129: =IF(NOT(ISNUMBER(E128)),E127,IF(E128=E127,E127,E128)) -> 0
A130: Virksomhedsnavn: | C130: Deltager 7 | D130: Virksomhedsstørrelse:
A131: Aktivitetstype: | D131: Max mulig GUDP tilskudsprocent: | E131: =IF(G133<0,"Anden offentlig støtte overstiger GUDP max tilskudsbeløb",_xlfn.IFNA(VLOOKUP(B131,'Liste over tilskudsprocenter'!$A:$K,MATCH(CONCATENATE(E130," - ",$H$1),'Liste over tilskudsprocenter'!$A$1:$K$1,0),FALSE),"")) ->  | F131: Nedskrevet GUDP tilskudsprocent pga. anden offentlig støtte el. egen- og privat finansiering: | G131: =IFERROR(IF(G133<0,"Anden offentlig støtte overstiger GUDP max tilskudsbeløb",IF(G133=E133,"",G133)),"") ->  | H131: =IF(E130="",0,IF(LEFT(E130,9)="Offentlig",B144*0.44,B137*0.3)) -> 0
D132: Max mulig GUDP tilsagnsbeløb: | E132: =IFERROR(VLOOKUP(B131,'Liste over tilskudsprocenter'!$A:$K,MATCH(CONCATENATE(E130," - ",$H$1),'Liste over tilskudsprocenter'!$A$1:$K$1,0),FALSE)*B146,"") ->  | F132: Nedskrevet GUDP tilskudsbeløb pga. anden offentlig støtte el. egen- og privat finansiering: | G132: =IFERROR(B146*G131,"") -> 
A133: OH-procentsats | B133: =IF(E130="","",IF(E130="Offentlig forsknings- og vidensformidlingsorganisation",0.44,IF(E130="Privat forsknings- og vidensformidlingsorganisation",0.44,0.3))) ->  | E133: =_xlfn.IFNA(VLOOKUP(B131,'Liste over tilskudsprocenter'!$A:$K,MATCH(CONCATENATE(E130," - ",$H$1),'Liste over tilskudsprocenter'!$A$1:$K$1,0),FALSE),"") ->  | G133: =IFERROR(IF(B146*(1-E133)-D147-E147<0,E133-((B146*E133+E147+D147)-B146)/B146,""),"") -> 
A134: OH-rest beløb | B134: =IF(E130="","",IF(OR(LEFT(E130,9)="Offentlig",LEFT(E130,6)="Privat"),B144*0.44-B145,B137*0.3-B145)) -> 
O135: GUDP tilskudsats | P135: GUDP nedsat tilskudssats | Q135: Beløb, der bruges til "Heraf GUDP"
A136: =IF(B146>0,"Ja","") ->  | B136: Omkostninger | C136: Heraf GUDP | D136: Heraf egen-og privat finansiering | E136: Heraf anden offentlig støtte - manuel | F136: Antal timer | I136: Specifikation af delbudget:
A137: Lønomkostninger | C137: =IFERROR(IF(B137=0,0,Q137),0) -> 0 | D137: =IFERROR(B137-C137,0) -> 0 | H137: =IF($E$51<>"Offentlig forsknings- og vidensformidlingsorganisation",0,IF(B137="",0,B137)) -> 0 | O137: =IF(B137=0,0,B137*E133) -> 0 | P137: =IFERROR(IF(NOT(ISNUMBER(G133)),"",IF(G131="Anden offentlig støtte overstiger GUDP max tilskudsbeløb",0,B137*G133)),0) ->  | Q137: =IF(NOT(ISNUMBER(P137)),O137,IFERROR(IF(P137=0,0,P137),0)) -> 0
A138: Ekstern bistand | C138: =IFERROR(IF(B138=0,0,Q138),0) -> 0 | D138: =IFERROR(B138-C138,0) -> 0 | H138: 0 | O138: =IF(B138=0,0,B138*E133) -> 0 | P138: =IFERROR(IF(NOT(ISNUMBER(G133)),"",IF(G131="Anden offentlig støtte overstiger GUDP max tilskudsbeløb",0,B138*G133)),0) ->  | Q138: =IF(NOT(ISNUMBER(P138)),O138,IFERROR(IF(P138=0,0,P138),0)) -> 0
A139: Øvrige omkostninger | C139: 0 | D139: 0 | H139: 0 | O139: =IF(B139=0,0,B139*E133) -> 0 | P139: =IFERROR(IF(NOT(ISNUMBER(G133)),"",IF(G131="Anden offentlig støtte overstiger GUDP max tilskudsbeløb",0,B139*G133)),0) ->  | Q139: 0
A140: Apparatur/udstyr | C140: 0 | D140: 0 | H140: 0 | O140: =IF(B140=0,0,B140*E133) -> 0 | P140: =IFERROR(IF(NOT(ISNUMBER(G133)),"",IF(G131="Anden offentlig støtte overstiger GUDP max tilskudsbeløb",0,B140*G133)),0) ->  | Q140: 0
A141: Scrap-værdi | C141: =IFERROR(IF(B141=0,0,Q141),0) -> 0 | D141: 0 | H141: 0 | O141: =IF(B141=0,0,B141*E133) -> 0 | P141: =IFERROR(IF(NOT(ISNUMBER(G133)),"",IF(G131="Anden offentlig støtte overstiger GUDP max tilskudsbeløb",0,B141*G133)),0) ->  | Q141: 0
A142: Evt. indtægter | C142: =IFERROR(IF(B142=0,0,Q142),0) -> 0 | D142: 0 | H142: 0 | O142: =IF(B142=0,0,B142*E133) -> 0 | P142: =IFERROR(IF(NOT(ISNUMBER(G133)),"",IF(G131="Anden offentlig støtte overstiger GUDP max tilskudsbeløb",0,B142*G133)),0) ->  | Q142: 0
A143: Revision | C143: 0 | D143: 0 | H143: 0 | O143: =IF(B143=0,0,B143*E133) -> 0 | P143: =IFERROR(IF(NOT(ISNUMBER(G133)),"",IF(G131="Anden offentlig støtte overstiger GUDP max tilskudsbeløb",0,B143*G133)),0) ->  | Q143: 0
A144: I alt uden OH | B144: =SUM(B137:B143) -> 0 | C144: =SUM(C137:C143) -> 0 | D144: =SUM(D137:D143) -> 0 | F144: =SUM(F137:F143) -> 0 | H144: 0 | O144: =IF(B144=0,0,B144*E133) -> 0 | P144: =IFERROR(IF(NOT(ISNUMBER(G133)),"",IF(G131="Anden offentlig støtte overstiger GUDP max tilskudsbeløb",0,B144*G133)),0) ->  | Q144: 0
A145: OH | C145: =IFERROR(IF(B145=0,0,Q145),0) -> 0 | D145: =IFERROR(B145-C145,0) -> 0 | H145: 0 | O145: =IF(B145=0,0,B145*E133) -> 0 | P145: =IFERROR(IF(NOT(ISNUMBER(G133)),"",IF(G131="Anden offentlig støtte overstiger GUDP max tilskudsbeløb",0,B145*G133)),0) ->  | Q145: 0
A146: I alt | B146: =SUM(B137:B143)+B145 -> 0 | C146: =SUM(C137:C143)+C145 -> 0 | D146: =IF(SUM(D137:D143)+D145-SUM(D147:E147)<=0,0,SUM(D137:D143)+D145-SUM(D147:E147)) -> 0 | F146: =SUM(F137:F143)+F145 -> 0 | H146: 0 | P146: =IFERROR(IF(NOT(ISNUMBER(G133)),"",IF(G131="Anden offentlig støtte overstiger GUDP max tilskudsbeløb",0,B146*G133)),0) ->  | Q146: 0
A147: Finansiering i alt | B147: =IF(ISBLANK(E147),"",B146) ->  | C147: =IF(ISBLANK(E147),"",C146) ->  | F147: =IF(ISBLANK(E147),"",F146) ->  | O147: =IF(B148=0,0,B148*E149) -> 0 | P147: =IFERROR(IF(NOT(ISNUMBER(G133)),"",IF(G131="Anden offentlig støtte overstiger GUDP max tilskudsbeløb",0,B147*G133)),0) ->  | Q147: 0
B148: =IF(NOT(ISNUMBER(B147)),B146,IF(B147=B146,B146,B147)) -> 0 | C148: =IF(NOT(ISNUMBER(C147)),C146,IF(C147=C146,C146,C147)) -> 0 | D148: =IF(NOT(ISNUMBER(D147)),D146,IF(D147=D146,D146,D147)) -> 0 | E148: =IF(NOT(ISNUMBER(E147)),E146,IF(E147=E146,E146,E147)) -> 0
A149: Virksomhedsnavn: | C149: Deltager 8 | D149: Virksomhedsstørrelse:
A150: Aktivitetstype: | D150: Max mulig GUDP tilskudsprocent: | E150: =IF(G152<0,"Anden offentlig støtte overstiger GUDP max tilskudsbeløb",_xlfn.IFNA(VLOOKUP(B150,'Liste over tilskudsprocenter'!$A:$K,MATCH(CONCATENATE(E149," - ",$H$1),'Liste over tilskudsprocenter'!$A$1:$K$1,0),FALSE),"")) ->  | F150: Nedskrevet GUDP tilskudsprocent pga. anden offentlig støtte el. egen- og privat finansiering: | G150: =IFERROR(IF(G152<0,"Anden offentlig støtte overstiger GUDP max tilskudsbeløb",IF(G152=E152,"",G152)),"") ->  | H150: =IF(E149="",0,IF(LEFT(E149,9)="Offentlig",B163*0.44,B156*0.3)) -> 0
D151: Max mulig GUDP tilsagnsbeløb: | E151: =IFERROR(VLOOKUP(B150,'Liste over tilskudsprocenter'!$A:$K,MATCH(CONCATENATE(E149," - ",$H$1),'Liste over tilskudsprocenter'!$A$1:$K$1,0),FALSE)*B165,"") ->  | F151: Nedskrevet GUDP tilskudsbeløb pga. anden offentlig støtte el. egen- og privat finansiering: | G151: =IFERROR(B165*G150,"") -> 
A152: OH-procentsats | B152: =IF(E149="","",IF(E149="Offentlig forsknings- og vidensformidlingsorganisation",0.44,IF(E149="Privat forsknings- og vidensformidlingsorganisation",0.44,0.3))) ->  | E152: =_xlfn.IFNA(VLOOKUP(B150,'Liste over tilskudsprocenter'!$A:$K,MATCH(CONCATENATE(E149," - ",$H$1),'Liste over tilskudsprocenter'!$A$1:$K$1,0),FALSE),"") ->  | G152: =IFERROR(IF(B165*(1-E152)-D166-E166<0,E152-((B165*E152+E166+D166)-B165)/B165,""),"") -> 
A153: OH-rest beløb | B153: =IF(E149="","",IF(OR(LEFT(E149,9)="Offentlig",LEFT(E149,6)="Privat"),B163*0.44-B164,B156*0.3-B164)) -> 
O154: GUDP tilskudsats | P154: GUDP nedsat tilskudssats | Q154: Beløb, der bruges til "Heraf GUDP"
A155: =IF(B165>0,"Ja","") ->  | B155: Omkostninger | C155: Heraf GUDP | D155: Heraf egen-og privat finansiering | E155: Heraf anden offentlig støtte - manuel | F155: Antal timer | I155: Specifikation af delbudget:
A156: Lønomkostninger | C156: =IFERROR(IF(B156=0,0,Q156),0) -> 0 | D156: =IFERROR(B156-C156,0) -> 0 | H156: =IF($E$51<>"Offentlig forsknings- og vidensformidlingsorganisation",0,IF(B156="",0,B156)) -> 0 | O156: =IF(B156=0,0,B156*E152) -> 0 | P156: =IFERROR(IF(NOT(ISNUMBER(G152)),"",IF(G150="Anden offentlig støtte overstiger GUDP max tilskudsbeløb",0,B156*G152)),0) ->  | Q156: =IF(NOT(ISNUMBER(P156)),O156,IFERROR(IF(P156=0,0,P156),0)) -> 0
A157: Ekstern bistand | C157: =IFERROR(IF(B157=0,0,Q157),0) -> 0 | D157: =IFERROR(B157-C157,0) -> 0 | H157: 0 | O157: =IF(B157=0,0,B157*E152) -> 0 | P157: =IFERROR(IF(NOT(ISNUMBER(G152)),"",IF(G150="Anden offentlig støtte overstiger GUDP max tilskudsbeløb",0,B157*G152)),0) ->  | Q157: =IF(NOT(ISNUMBER(P157)),O157,IFERROR(IF(P157=0,0,P157),0)) -> 0
A158: Øvrige omkostninger | C158: 0 | D158: 0 | H158: 0 | O158: =IF(B158=0,0,B158*E152) -> 0 | P158: =IFERROR(IF(NOT(ISNUMBER(G152)),"",IF(G150="Anden offentlig støtte overstiger GUDP max tilskudsbeløb",0,B158*G152)),0) ->  | Q158: 0
A159: Apparatur/udstyr | C159: 0 | D159: 0 | H159: 0 | O159: =IF(B159=0,0,B159*E152) -> 0 | P159: =IFERROR(IF(NOT(ISNUMBER(G152)),"",IF(G150="Anden offentlig støtte overstiger GUDP max tilskudsbeløb",0,B159*G152)),0) ->  | Q159: 0
A160: Scrap-værdi | C160: =IFERROR(IF(B160=0,0,Q160),0) -> 0 | D160: 0 | H160: 0 | O160: =IF(B160=0,0,B160*E152) -> 0 | P160: =IFERROR(IF(NOT(ISNUMBER(G152)),"",IF(G150="Anden offentlig støtte overstiger GUDP max tilskudsbeløb",0,B160*G152)),0) ->  | Q160: 0
A161: Evt. indtægter | C161: =IFERROR(IF(B161=0,0,Q161),0) -> 0 | D161: 0 | H161: 0 | O161: =IF(B161=0,0,B161*E152) -> 0 | P161: =IFERROR(IF(NOT(ISNUMBER(G152)),"",IF(G150="Anden offentlig støtte overstiger GUDP max tilskudsbeløb",0,B161*G152)),0) ->  | Q161: 0
A162: Revision | C162: 0 | D162: 0 | H162: 0 | O162: =IF(B162=0,0,B162*E152) -> 0 | P162: =IFERROR(IF(NOT(ISNUMBER(G152)),"",IF(G150="Anden offentlig støtte overstiger GUDP max tilskudsbeløb",0,B162*G152)),0) ->  | Q162: 0
A163: I alt uden OH | B163: =SUM(B156:B162) -> 0 | C163: =SUM(C156:C162) -> 0 | D163: =SUM(D156:D162) -> 0 | F163: =SUM(F156:F162) -> 0 | H163: 0 | O163: =IF(B163=0,0,B163*E152) -> 0 | P163: =IFERROR(IF(NOT(ISNUMBER(G152)),"",IF(G150="Anden offentlig støtte overstiger GUDP max tilskudsbeløb",0,B163*G152)),0) ->  | Q163: 0
A164: OH | C164: =IFERROR(IF(B164=0,0,Q164),0) -> 0 | D164: =IFERROR(B164-C164,0) -> 0 | H164: 0 | O164: =IF(B164=0,0,B164*E152) -> 0 | P164: =IFERROR(IF(NOT(ISNUMBER(G152)),"",IF(G150="Anden offentlig støtte overstiger GUDP max tilskudsbeløb",0,B164*G152)),0) ->  | Q164: 0
A165: I alt | B165: =SUM(B156:B162)+B164 -> 0 | C165: =SUM(C156:C162)+C164 -> 0 | D165: =IF(SUM(D156:D162)+D164-SUM(D166:E166)<=0,0,SUM(D156:D162)+D164-SUM(D166:E166)) -> 0 | F165: =SUM(F156:F162)+F164 -> 0 | H165: 0 | P165: =IFERROR(IF(NOT(ISNUMBER(G152)),"",IF(G150="Anden offentlig støtte overstiger GUDP max tilskudsbeløb",0,B165*G152)),0) ->  | Q165: 0
A166: Finansiering i alt | B166: =IF(ISBLANK(E166),"",B165) ->  | C166: =IF(ISBLANK(E166),"",C165) ->  | F166: =IF(ISBLANK(E166),"",F165) ->  | O166: =IF(B167=0,0,B167*E168) -> 0 | P166: =IFERROR(IF(NOT(ISNUMBER(G152)),"",IF(G150="Anden offentlig støtte overstiger GUDP max tilskudsbeløb",0,B166*G152)),0) ->  | Q166: 0
B167: =IF(NOT(ISNUMBER(B166)),B165,IF(B166=B165,B165,B166)) -> 0 | C167: =IF(NOT(ISNUMBER(C166)),C165,IF(C166=C165,C165,C166)) -> 0 | D167: =IF(NOT(ISNUMBER(D166)),D165,IF(D166=D165,D165,D166)) -> 0 | E167: =IF(NOT(ISNUMBER(E166)),E165,IF(E166=E165,E165,E166)) -> 0
A168: Virksomhedsnavn: | C168: Deltager 9 | D168: Virksomhedsstørrelse:
A169: Aktivitetstype: | D169: Max mulig GUDP tilskudsprocent: | E169: =IF(G171<0,"Anden offentlig støtte overstiger GUDP max tilskudsbeløb",_xlfn.IFNA(VLOOKUP(B169,'Liste over tilskudsprocenter'!$A:$K,MATCH(CONCATENATE(E168," - ",$H$1),'Liste over tilskudsprocenter'!$A$1:$K$1,0),FALSE),"")) ->  | F169: Nedskrevet GUDP tilskudsprocent pga. anden offentlig støtte el. egen- og privat finansiering: | G169: =IFERROR(IF(G171<0,"Anden offentlig støtte overstiger GUDP max tilskudsbeløb",IF(G171=E171,"",G171)),"") ->  | H169: =IF(E168="",0,IF(LEFT(E168,9)="Offentlig",B182*0.44,B175*0.3)) -> 0
D170: Max mulig GUDP tilsagnsbeløb: | E170: =IFERROR(VLOOKUP(B169,'Liste over tilskudsprocenter'!$A:$K,MATCH(CONCATENATE(E168," - ",$H$1),'Liste over tilskudsprocenter'!$A$1:$K$1,0),FALSE)*B184,"") ->  | F170: Nedskrevet GUDP tilskudsbeløb pga. anden offentlig støtte el. egen- og privat finansiering: | G170: =IFERROR(B184*G169,"") -> 
A171: OH-procentsats | B171: =IF(E168="","",IF(E168="Offentlig forsknings- og vidensformidlingsorganisation",0.44,IF(E168="Privat forsknings- og vidensformidlingsorganisation",0.44,0.3))) ->  | E171: =_xlfn.IFNA(VLOOKUP(B169,'Liste over tilskudsprocenter'!$A:$K,MATCH(CONCATENATE(E168," - ",$H$1),'Liste over tilskudsprocenter'!$A$1:$K$1,0),FALSE),"") ->  | G171: =IFERROR(IF(B184*(1-E171)-D185-E185<0,E171-((B184*E171+E185+D185)-B184)/B184,""),"") -> 
A172: OH-rest beløb | B172: =IF(E168="","",IF(OR(LEFT(E168,9)="Offentlig",LEFT(E168,6)="Privat"),B182*0.44-B183,B175*0.3-B183)) -> 
O173: GUDP tilskudsats | P173: GUDP nedsat tilskudssats | Q173: Beløb, der bruges til "Heraf GUDP"
A174: =IF(B184>0,"Ja","") ->  | B174: Omkostninger | C174: Heraf GUDP | D174: Heraf egen-og privat finansiering | E174: Heraf anden offentlig støtte - manuel | F174: Antal timer | I174: Specifikation af delbudget:
A175: Lønomkostninger | C175: =IFERROR(IF(B175=0,0,Q175),0) -> 0 | D175: =IFERROR(B175-C175,0) -> 0 | H175: =IF($E$51<>"Offentlig forsknings- og vidensformidlingsorganisation",0,IF(B175="",0,B175)) -> 0 | O175: =IF(B175=0,0,B175*E171) -> 0 | P175: =IFERROR(IF(NOT(ISNUMBER(G171)),"",IF(G169="Anden offentlig støtte overstiger GUDP max tilskudsbeløb",0,B175*G171)),0) ->  | Q175: =IF(NOT(ISNUMBER(P175)),O175,IFERROR(IF(P175=0,0,P175),0)) -> 0
A176: Ekstern bistand | C176: =IFERROR(IF(B176=0,0,Q176),0) -> 0 | D176: =IFERROR(B176-C176,0) -> 0 | H176: 0 | O176: =IF(B176=0,0,B176*E171) -> 0 | P176: =IFERROR(IF(NOT(ISNUMBER(G171)),"",IF(G169="Anden offentlig støtte overstiger GUDP max tilskudsbeløb",0,B176*G171)),0) ->  | Q176: =IF(NOT(ISNUMBER(P176)),O176,IFERROR(IF(P176=0,0,P176),0)) -> 0
A177: Øvrige omkostninger | C177: 0 | D177: 0 | H177: 0 | O177: =IF(B177=0,0,B177*E171) -> 0 | P177: =IFERROR(IF(NOT(ISNUMBER(G171)),"",IF(G169="Anden offentlig støtte overstiger GUDP max tilskudsbeløb",0,B177*G171)),0) ->  | Q177: 0
A178: Apparatur/udstyr | C178: 0 | D178: 0 | H178: 0 | O178: =IF(B178=0,0,B178*E171) -> 0 | P178: =IFERROR(IF(NOT(ISNUMBER(G171)),"",IF(G169="Anden offentlig støtte overstiger GUDP max tilskudsbeløb",0,B178*G171)),0) ->  | Q178: 0
A179: Scrap-værdi | C179: =IFERROR(IF(B179=0,0,Q179),0) -> 0 | D179: 0 | H179: 0 | O179: =IF(B179=0,0,B179*E171) -> 0 | P179: =IFERROR(IF(NOT(ISNUMBER(G171)),"",IF(G169="Anden offentlig støtte overstiger GUDP max tilskudsbeløb",0,B179*G171)),0) ->  | Q179: 0
A180: Evt. indtægter | C180: =IFERROR(IF(B180=0,0,Q180),0) -> 0 | D180: 0 | H180: 0 | O180: =IF(B180=0,0,B180*E171) -> 0 | P180: =IFERROR(IF(NOT(ISNUMBER(G171)),"",IF(G169="Anden offentlig støtte overstiger GUDP max tilskudsbeløb",0,B180*G171)),0) ->  | Q180: 0
A181: Revision | C181: 0 | D181: 0 | H181: 0 | O181: =IF(B181=0,0,B181*E171) -> 0 | P181: =IFERROR(IF(NOT(ISNUMBER(G171)),"",IF(G169="Anden offentlig støtte overstiger GUDP max tilskudsbeløb",0,B181*G171)),0) ->  | Q181: 0
A182: I alt uden OH | B182: =SUM(B175:B181) -> 0 | C182: =SUM(C175:C181) -> 0 | D182: =SUM(D175:D181) -> 0 | F182: =SUM(F175:F181) -> 0 | H182: 0 | O182: =IF(B182=0,0,B182*E171) -> 0 | P182: =IFERROR(IF(NOT(ISNUMBER(G171)),"",IF(G169="Anden offentlig støtte overstiger GUDP max tilskudsbeløb",0,B182*G171)),0) ->  | Q182: 0
A183: OH | C183: =IFERROR(IF(B183=0,0,Q183),0) -> 0 | D183: =IFERROR(B183-C183,0) -> 0 | H183: 0 | O183: =IF(B183=0,0,B183*E171) -> 0 | P183: =IFERROR(IF(NOT(ISNUMBER(G171)),"",IF(G169="Anden offentlig støtte overstiger GUDP max tilskudsbeløb",0,B183*G171)),0) ->  | Q183: 0
A184: I alt | B184: =SUM(B175:B181)+B183 -> 0 | C184: =SUM(C175:C181)+C183 -> 0 | D184: =IF(SUM(D175:D181)+D183-SUM(D185:E185)<=0,0,SUM(D175:D181)+D183-SUM(D185:E185)) -> 0 | F184: =SUM(F175:F181)+F183 -> 0 | H184: 0 | P184: =IFERROR(IF(NOT(ISNUMBER(G171)),"",IF(G169="Anden offentlig støtte overstiger GUDP max tilskudsbeløb",0,B184*G171)),0) ->  | Q184: 0
A185: Finansiering i alt | B185: =IF(ISBLANK(E185),"",B184) ->  | C185: =IF(ISBLANK(E185),"",C184) ->  | F185: =IF(ISBLANK(E185),"",F184) ->  | O185: =IF(B186=0,0,B186*E187) -> 0 | P185: =IFERROR(IF(NOT(ISNUMBER(G171)),"",IF(G169="Anden offentlig støtte overstiger GUDP max tilskudsbeløb",0,B185*G171)),0) ->  | Q185: 0
B186: =IF(NOT(ISNUMBER(B185)),B184,IF(B185=B184,B184,B185)) -> 0 | C186: =IF(NOT(ISNUMBER(C185)),C184,IF(C185=C184,C184,C185)) -> 0 | D186: =IF(NOT(ISNUMBER(D185)),D184,IF(D185=D184,D184,D185)) -> 0 | E186: =IF(NOT(ISNUMBER(E185)),E184,IF(E185=E184,E184,E185)) -> 0
A187: Virksomhedsnavn: | C187: Deltager 10 | D187: Virksomhedsstørrelse:
A188: Aktivitetstype: | D188: Max mulig GUDP tilskudsprocent: | E188: =IF(G190<0,"Anden offentlig støtte overstiger GUDP max tilskudsbeløb",_xlfn.IFNA(VLOOKUP(B188,'Liste over tilskudsprocenter'!$A:$K,MATCH(CONCATENATE(E187," - ",$H$1),'Liste over tilskudsprocenter'!$A$1:$K$1,0),FALSE),"")) ->  | F188: Nedskrevet GUDP tilskudsprocent pga. anden offentlig støtte el. egen- og privat finansiering: | G188: =IFERROR(IF(G190<0,"Anden offentlig støtte overstiger GUDP max tilskudsbeløb",IF(G190=E190,"",G190)),"") ->  | H188: =IF(E187="",0,IF(LEFT(E187,9)="Offentlig",B201*0.44,B194*0.3)) -> 0
D189: Max mulig GUDP tilsagnsbeløb: | E189: =IFERROR(VLOOKUP(B188,'Liste over tilskudsprocenter'!$A:$K,MATCH(CONCATENATE(E187," - ",$H$1),'Liste over tilskudsprocenter'!$A$1:$K$1,0),FALSE)*B203,"") ->  | F189: Nedskrevet GUDP tilskudsbeløb pga. anden offentlig støtte el. egen- og privat finansiering: | G189: =IFERROR(B203*G188,"") -> 
A190: OH-procentsats | B190: =IF(E187="","",IF(E187="Offentlig forsknings- og vidensformidlingsorganisation",0.44,IF(E187="Privat forsknings- og vidensformidlingsorganisation",0.44,0.3))) ->  | E190: =_xlfn.IFNA(VLOOKUP(B188,'Liste over tilskudsprocenter'!$A:$K,MATCH(CONCATENATE(E187," - ",$H$1),'Liste over tilskudsprocenter'!$A$1:$K$1,0),FALSE),"") ->  | G190: =IFERROR(IF(B203*(1-E190)-D204-E204<0,E190-((B203*E190+E204+D204)-B203)/B203,""),"") -> 
A191: OH-rest beløb | B191: =IF(E187="","",IF(OR(LEFT(E187,9)="Offentlig",LEFT(E187,6)="Privat"),B201*0.44-B202,B194*0.3-B202)) -> 
O192: GUDP tilskudsats | P192: GUDP nedsat tilskudssats | Q192: Beløb, der bruges til "Heraf GUDP"
A193: =IF(B203>0,"Ja","") ->  | B193: Omkostninger | C193: Heraf GUDP | D193: Heraf egen-og privat finansiering | E193: Heraf anden offentlig støtte - manuel | F193: Antal timer | I193: Specifikation af delbudget:
A194: Lønomkostninger | C194: =IFERROR(IF(B194=0,0,Q194),0) -> 0 | D194: =IFERROR(B194-C194,0) -> 0 | H194: =IF($E$51<>"Offentlig forsknings- og vidensformidlingsorganisation",0,IF(B194="",0,B194)) -> 0 | O194: =IF(B194=0,0,B194*E190) -> 0 | P194: =IFERROR(IF(NOT(ISNUMBER(G190)),"",IF(G188="Anden offentlig støtte overstiger GUDP max tilskudsbeløb",0,B194*G190)),0) ->  | Q194: =IF(NOT(ISNUMBER(P194)),O194,IFERROR(IF(P194=0,0,P194),0)) -> 0
A195: Ekstern bistand | C195: =IFERROR(IF(B195=0,0,Q195),0) -> 0 | D195: =IFERROR(B195-C195,0) -> 0 | H195: 0 | O195: =IF(B195=0,0,B195*E190) -> 0 | P195: =IFERROR(IF(NOT(ISNUMBER(G190)),"",IF(G188="Anden offentlig støtte overstiger GUDP max tilskudsbeløb",0,B195*G190)),0) ->  | Q195: =IF(NOT(ISNUMBER(P195)),O195,IFERROR(IF(P195=0,0,P195),0)) -> 0
A196: Øvrige omkostninger | C196: 0 | D196: 0 | H196: 0 | O196: =IF(B196=0,0,B196*E190) -> 0 | P196: =IFERROR(IF(NOT(ISNUMBER(G190)),"",IF(G188="Anden offentlig støtte overstiger GUDP max tilskudsbeløb",0,B196*G190)),0) ->  | Q196: 0
A197: Apparatur/udstyr | C197: 0 | D197: 0 | H197: 0 | O197: =IF(B197=0,0,B197*E190) -> 0 | P197: =IFERROR(IF(NOT(ISNUMBER(G190)),"",IF(G188="Anden offentlig støtte overstiger GUDP max tilskudsbeløb",0,B197*G190)),0) ->  | Q197: 0
A198: Scrap-værdi | C198: =IFERROR(IF(B198=0,0,Q198),0) -> 0 | D198: 0 | H198: 0 | O198: =IF(B198=0,0,B198*E190) -> 0 | P198: =IFERROR(IF(NOT(ISNUMBER(G190)),"",IF(G188="Anden offentlig støtte overstiger GUDP max tilskudsbeløb",0,B198*G190)),0) ->  | Q198: 0
A199: Evt. indtægter | C199: =IFERROR(IF(B199=0,0,Q199),0) -> 0 | D199: 0 | H199: 0 | O199: =IF(B199=0,0,B199*E190) -> 0 | P199: =IFERROR(IF(NOT(ISNUMBER(G190)),"",IF(G188="Anden offentlig støtte overstiger GUDP max tilskudsbeløb",0,B199*G190)),0) ->  | Q199: 0
A200: Revision | C200: 0 | D200: 0 | H200: 0 | O200: =IF(B200=0,0,B200*E190) -> 0 | P200: =IFERROR(IF(NOT(ISNUMBER(G190)),"",IF(G188="Anden offentlig støtte overstiger GUDP max tilskudsbeløb",0,B200*G190)),0) ->  | Q200: 0
A201: I alt uden OH | B201: =SUM(B194:B200) -> 0 | C201: =SUM(C194:C200) -> 0 | D201: =SUM(D194:D200) -> 0 | F201: =SUM(F194:F200) -> 0 | H201: 0 | O201: =IF(B201=0,0,B201*E190) -> 0 | P201: =IFERROR(IF(NOT(ISNUMBER(G190)),"",IF(G188="Anden offentlig støtte overstiger GUDP max tilskudsbeløb",0,B201*G190)),0) ->  | Q201: 0
... 194 more rows

Sheet Eksempel på individuelt projekt
A1: Projekttitel: | B1: Eksempel på budget med en virksomhed med to aktivitetstyper | H1: Samarbejde
D2: Projektets totalbudget udfyldes automatisk
B3: Omkostninger | C3: Heraf GUDP | D3: Heraf egen-og privat finansiering | E3: Heraf anden offentlig støtte - manuel | F3: Antal timer
A4: Lønomkostninger | B4: =B23+B42+B61+B80+B99+B118+B137+B156+B175+B194+B213+B232+B251+B270+B289+B308+B327+B346+B365+B384 -> 950000 | C4: 580000 | D4: 370000 | F4: =F23+F42+F61+F80+F99+F118+F137+F156+F175+F194+F213+F232+F251+F270+F289+F308+F327+F346+F365+F384 -> 3043 | I4: Journal nr: 34009-24-XXXX
A5: Ekstern bistand | B5: 16700 | C5: 10020 | D5: 6680 | F5: 0 | I5: Godkendt fra: XX-XX-XXXX
A6: Øvrige omkostninger | B6: 150000 | C6: 95000 | D6: 55000 | F6: 0
A7: Apparatur/udstyr | B7: 50000 | C7: 30000 | D7: 20000 | F7: 0
A8: Scrap-værdi | B8: -10000 | C8: -6000 | D8: -4000 | F8: 0
A9: Evt. indtægter | B9: -5000 | C9: -3000 | D9: -2000 | F9: 0
A10: Revision | B10: 36000 | C10: 23400 | D10: 12600 | F10: 0
A11: I alt uden OH | B11: 1187700 | C11: 729420 | D11: 458280 | F11: 3043
A12: OH | B12: 285000 | C12: 174000 | D12: 111000 | F12: 0
A13: I alt | B13: 1472700 | C13: 903420 | D13: 569280 | F13: 3043
A14: Finansiering i alt | B14: =IFERROR(B34+B53+B72+B91+B110+B129+B148+B167+B186+B205+B224+B243+B262+B281+B300+B319+B338+B357+B376+B395,"") -> 1472700 | C14: =IFERROR(C34+C53+C72+C91+C110+C129+C148+C167+C186+C205+C224+C243+C262+C281+C300+C319+C338+C357+C376+C395,"") -> 903420 | D14: 569280 | E14: 0 | F14: =IFERROR(F33+F52+F71+F90+F109+F128+F147+F166+F185+F204+F223+F242+F261+F280+F299+F318+F337+F356+F375+F394,"") -> 
A16: Virksomhedsnavn: | B16: Den lille grønne virksomhed | C16: Hovedansøger | D16: Virksomhedsstørrelse: | E16: Lille virksomhed
A17: Aktivitetstype: | B17: Udvikling | D17: Max mulig GUDP tilskudsprocent: | E17: =IF(G19<0,"Anden offentlig støtte overstiger GUDP max tilskudsbeløb",_xlfn.IFNA(VLOOKUP(B17,'Liste over tilskudsprocenter'!$A:$K,MATCH(CONCATENATE(E16," - ",$H$1),'Liste over tilskudsprocenter'!$A$1:$K$1,0),FALSE),"")) -> 0.6 | F17: Nedskrevet GUDP tilskudsprocent pga. anden offentlig støtte: | G17: =IFERROR(IF(G19<0,"Anden offentlig støtte overstiger GUDP max tilskudsbeløb",IF(G19=E19,"",G19)),"") ->  | H17: =IF(E16="",0,IF(LEFT(E16,9)="Offentlig",B30*0.44,B23*0.3)) -> 255000
D18: Max mulig GUDP tilsagnsbeløb: | E18: =IFERROR(VLOOKUP(B17,'Liste over tilskudsprocenter'!$A:$K,MATCH(CONCATENATE(E16," - ",$H$1),'Liste over tilskudsprocenter'!$A$1:$K$1,0),FALSE)*B32,"") -> 764820 | F18: Nedskrevet GUDP tilskudsbeløb pga. anden offentlig støtte: | G18: =IFERROR(B32*G17,"") -> 
A19: OH-procentsats | B19: =IF(E16="","",IF(E16="Offentlig forsknings- og vidensformidlingsorganisation",0.44,IF(E16="Privat forsknings- og vidensformidlingsorganisation",0.44,0.3))) -> 0.3 | E19: =_xlfn.IFNA(VLOOKUP(B17,'Liste over tilskudsprocenter'!$A:$K,MATCH(CONCATENATE(E16," - ",$H$1),'Liste over tilskudsprocenter'!$A$1:$K$1,0),FALSE),"") -> 0.6 | G19: =IFERROR(IF(B32*(1-E19)-E33<0,E19-((B32*E19+E33)-B32)/B32,""),"") -> 
A20: OH-rest beløb | B20: =IF(E16="","",IF(OR(LEFT(E16,9)="Offentlig",LEFT(E16,6)="Privat"),B30*0.44-B31,B23*0.3-B31)) -> 0
O21: GUDP tilskudsats | P21: GUDP nedsat tilskudssats | Q21: Beløb, der bruges til "Heraf GUDP"
A22: =IF(B32>0,"Ja","") -> Ja | B22: Omkostninger | C22: Heraf GUDP | D22: Heraf egen-og privat finansiering | E22: Heraf anden offentlig støtte - manuel | F22: Antal timer | I22: Specifikation af delbudget: | J22: Specifikation af delbudget:
A23: Lønomkostninger | B23: 850000 | C23: =IFERROR(IF(B23=0,0,Q23),0) -> 510000 | D23: =IFERROR(B23-C23,0) -> 340000 | F23: 2730 | H23: =IF($E$51<>"Offentlig forsknings- og vidensformidlingsorganisation",0,IF(B23="",0,B23)) -> 0 | O23: =IF(B23=0,0,B23*E19) -> 510000 | P23: =IFERROR(IF(G19=0,0,B23*G19),0) -> 0 | Q23: =IF(P23=0,O23,IFERROR(IF(P23=0,0,P23),0)) -> 510000
A24: Ekstern bistand | B24: 16700 | C24: =IFERROR(IF(B24=0,0,Q24),0) -> 10020 | D24: =IFERROR(B24-C24,0) -> 6680 | H24: 0 | O24: =IF(B24=0,0,B24*E19) -> 10020 | P24: =IFERROR(IF(G19=0,0,B24*G19),0) -> 0 | Q24: 10020
A25: Øvrige omkostninger | B25: 100000 | C25: 60000 | D25: 40000 | H25: 0 | O25: =IF(B25=0,0,B25*E19) -> 60000 | P25: =IFERROR(IF(G19=0,0,B25*G19),0) -> 0 | Q25: 60000
A26: Apparatur/udstyr | B26: 50000 | C26: 30000 | D26: 20000 | H26: 0 | O26: =IF(B26=0,0,B26*E19) -> 30000 | P26: =IFERROR(IF(G19=0,0,B26*G19),0) -> 0 | Q26: 30000
A27: Scrap-værdi | B27: -10000 | C27: -6000 | D27: -4000 | H27: 0 | O27: =IF(B27=0,0,B27*E19) -> -6000 | P27: =IFERROR(IF(G19=0,0,B27*G19),0) -> 0 | Q27: -6000
A28: Evt. indtægter | B28: -5000 | C28: -3000 | D28: -2000 | H28: 0 | O28: =IF(B28=0,0,B28*E19) -> -3000 | P28: =IFERROR(IF(G19=0,0,B28*G19),0) -> 0 | Q28: -3000
A29: Revision | B29: 18000 | C29: 10800 | D29: 7200 | H29: 0 | O29: =IF(B29=0,0,B29*E19) -> 10800 | P29: =IFERROR(IF(G19=0,0,B29*G19),0) -> 0 | Q29: 10800
A30: I alt uden OH | B30: =SUM(B23:B29) -> 1019700 | C30: =SUM(C23:C29) -> 611820 | D30: =SUM(D23:D29) -> 407880 | F30: =SUM(F23:F29) -> 2730 | H30: 0 | O30: =IF(B30=0,0,B30*E19) -> 611820 | P30: =IFERROR(IF(G19=0,0,B30*G19),0) -> 0 | Q30: 611820
A31: OH | B31: 255000 | C31: =IFERROR(IF(B31=0,0,Q31),0) -> 153000 | D31: =IFERROR(B31-C31,0) -> 102000 | H31: 0 | O31: =IF(B31=0,0,B31*E19) -> 153000 | P31: =IFERROR(IF(G19=0,0,B31*G19),0) -> 0 | Q31: 153000
A32: I alt | B32: =SUM(B23:B29)+B31 -> 1274700 | C32: =SUM(C23:C29)+C31 -> 764820 | D32: =SUM(D23:D29)+D31 -> 509880 | F32: =SUM(F23:F29)+F31 -> 2730 | H32: 0
A33: Finansiering i alt | B33: =IF(ISBLANK(E33),"",B32) ->  | C33: =IF(ISBLANK(E33),"",C32) ->  | D33: =IF(ISBLANK(E33),"",IF(D32-E33<0,0,D32-E33)) ->  | F33: =IF(ISBLANK(E33),"",F32) ->  | O33: =IF(B34=0,0,B34*E35) ->  | P33: =IFERROR(IF(G35=0,0,B34*G35),0) -> 0 | Q33: =IF(P33=0,O33,IFERROR(IF(P33=0,0,P33),0)) -> 
B34: =IF(NOT(ISNUMBER(B33)),B32,IF(B33=B32,B32,B33)) -> 1274700 | C34: =IF(NOT(ISNUMBER(C33)),C32,IF(C33=C32,C32,C33)) -> 764820 | D34: 509880 | E34: 0
A35: Virksomhedsnavn: | B35: Den lille grønne virksomhed | C35: Deltager 2 | D35: Virksomhedsstørrelse: | E35: Lille virksomhed
A36: Aktivitetstype: | B36: Demonstration | D36: Max mulig GUDP tilskudsprocent: | E36: =IF(G38<0,"Anden offentlig støtte overstiger GUDP max tilskudsbeløb",_xlfn.IFNA(VLOOKUP(B36,'Liste over tilskudsprocenter'!$A:$K,MATCH(CONCATENATE(E35," - ",$H$1),'Liste over tilskudsprocenter'!$A$1:$K$1,0),FALSE),"")) -> 0.7 | F36: Nedskrevet GUDP tilskudsprocent pga. anden offentlig støtte el. egen- og privat finansiering: | G36: =IFERROR(IF(G38<0,"Anden offentlig støtte overstiger GUDP max tilskudsbeløb",IF(G38=E38,"",G38)),"") ->  | H36: =IF(E35="",0,IF(LEFT(E35,9)="Offentlig",B49*0.44,B42*0.3)) -> 30000
D37: Max mulig GUDP tilsagnsbeløb: | E37: =IFERROR(VLOOKUP(B36,'Liste over tilskudsprocenter'!$A:$K,MATCH(CONCATENATE(E35," - ",$H$1),'Liste over tilskudsprocenter'!$A$1:$K$1,0),FALSE)*B51,"") -> 138600 | F37: Nedskrevet GUDP tilskudsbeløb pga. anden offentlig støtte el. egen- og privat finansiering: | G37: =IFERROR(B51*G36,"") -> 
A38: OH-procentsats | B38: =IF(E35="","",IF(E35="Offentlig forsknings- og vidensformidlingsorganisation",0.44,IF(E35="Privat forsknings- og vidensformidlingsorganisation",0.44,0.3))) -> 0.3 | E38: =_xlfn.IFNA(VLOOKUP(B36,'Liste over tilskudsprocenter'!$A:$K,MATCH(CONCATENATE(E35," - ",$H$1),'Liste over tilskudsprocenter'!$A$1:$K$1,0),FALSE),"") -> 0.7 | G38: =IFERROR(IF(B51*(1-E38)-E52<0,E38-((B51*E38+E52)-B51)/B51,""),"") -> 
A39: OH-rest beløb | B39: =IF(E35="","",IF(OR(LEFT(E35,9)="Offentlig",LEFT(E35,6)="Privat"),B49*0.44-B50,B42*0.3-B50)) -> 0
O40: GUDP tilskudsats | P40: GUDP nedsat tilskudssats | Q40: Beløb, der bruges til "Heraf GUDP"
A41: =IF(B51>0,"Ja","") -> Ja | B41: Omkostninger | C41: Heraf GUDP | D41: Heraf egen-og privat finansiering | E41: Heraf anden offentlig støtte - manuel | F41: Antal timer | I41: Specifikation af delbudget: | J41: Specifikation af delbudget:
A42: Lønomkostninger | B42: 100000 | C42: =IFERROR(IF(B42=0,0,Q42),0) -> 70000 | D42: =IFERROR(B42-C42,0) -> 30000 | F42: 313 | H42: =IF($E$51<>"Offentlig forsknings- og vidensformidlingsorganisation",0,IF(B42="",0,B42)) -> 0 | O42: =IF(B42=0,0,B42*E38) -> 70000 | P42: =IFERROR(IF(G38=0,0,B42*G38),0) -> 0 | Q42: =IF(P42=0,O42,IFERROR(IF(P42=0,0,P42),0)) -> 70000
A43: Ekstern bistand | C43: =IFERROR(IF(B43=0,0,Q43),0) -> 0 | D43: =IFERROR(B43-C43,0) -> 0 | H43: 0 | O43: =IF(B43=0,0,B43*E38) -> 0 | P43: =IFERROR(IF(G38=0,0,B43*G38),0) -> 0 | Q43: 0
A44: Øvrige omkostninger | B44: 50000 | C44: 35000 | D44: 15000 | H44: 0 | O44: =IF(B44=0,0,B44*E38) -> 35000 | P44: =IFERROR(IF(G38=0,0,B44*G38),0) -> 0 | Q44: 35000
A45: Apparatur/udstyr | C45: 0 | D45: 0 | H45: 0 | O45: =IF(B45=0,0,B45*E38) -> 0 | P45: =IFERROR(IF(G38=0,0,B45*G38),0) -> 0 | Q45: 0
A46: Scrap-værdi | C46: 0 | D46: 0 | H46: 0 | O46: =IF(B46=0,0,B46*E38) -> 0 | P46: =IFERROR(IF(G38=0,0,B46*G38),0) -> 0 | Q46: 0
A47: Evt. indtægter | C47: 0 | D47: 0 | H47: 0 | O47: =IF(B47=0,0,B47*E38) -> 0 | P47: =IFERROR(IF(G38=0,0,B47*G38),0) -> 0 | Q47: 0
A48: Revision | B48: 18000 | C48: 12600 | D48: 5400 | H48: 0 | O48: =IF(B48=0,0,B48*E38) -> 12600 | P48: =IFERROR(IF(G38=0,0,B48*G38),0) -> 0 | Q48: 12600
A49: I alt uden OH | B49: =SUM(B42:B48) -> 168000 | C49: =SUM(C42:C48) -> 117600 | D49: =SUM(D42:D48) -> 50400 | F49: =SUM(F42:F48) -> 313 | H49: 0 | O49: =IF(B49=0,0,B49*E38) -> 117600 | P49: =IFERROR(IF(G38=0,0,B49*G38),0) -> 0 | Q49: 117600
A50: OH | B50: 30000 | C50: =IFERROR(IF(B50=0,0,Q50),0) -> 21000 | D50: =IFERROR(B50-C50,0) -> 9000 | H50: 0 | O50: =IF(B50=0,0,B50*E38) -> 21000 | P50: =IFERROR(IF(G38=0,0,B50*G38),0) -> 0 | Q50: 21000
A51: I alt | B51: =SUM(B42:B48)+B50 -> 198000 | C51: =SUM(C42:C48)+C50 -> 138600 | D51: =SUM(D42:D48)+D50 -> 59400 | F51: =SUM(F42:F48)+F50 -> 313 | H51: 0
A52: Finansiering i alt | B52: =IF(ISBLANK(E52),"",B51) ->  | C52: =IF(ISBLANK(E52),"",C51) ->  | F52: =IF(ISBLANK(E52),"",F51) ->  | O52: =IF(B53=0,0,B53*E57) ->  | P52: =IFERROR(IF(G57=0,0,B53*G57),0) -> 0 | Q52: =IF(P52=0,O52,IFERROR(IF(P52=0,0,P52),0)) -> 
B53: =IF(NOT(ISNUMBER(B52)),B51,IF(B52=B51,B51,B52)) -> 198000 | C53: =IF(NOT(ISNUMBER(C52)),C51,IF(C52=C51,C51,C52)) -> 138600 | D53: 59400 | E53: 0
A54: Virksomhedsnavn: | C54: Deltager 3 | D54: Virksomhedsstørrelse:
A55: Aktivitetstype: | D55: Max mulig GUDP tilskudsprocent: | E55: =IF(G57<0,"Anden offentlig støtte overstiger GUDP max tilskudsbeløb",_xlfn.IFNA(VLOOKUP(B55,'[1]Liste over tilskudsprocenter'!$A:$K,MATCH(CONCATENATE(E54," - ",$H$1),'[1]Liste over tilskudsprocenter'!$A$1:$K$1,0),FALSE),"")) ->  | F55: Nedskrevet GUDP tilskudsprocent pga. anden offentlig støtte el. egen- og privat finansiering: | G55: =IFERROR(IF(G57<0,"Anden offentlig støtte overstiger GUDP max tilskudsbeløb",IF(G57=E57,"",G57)),"") ->  | H55: =IF(E54="",0,IF(LEFT(E54,9)="Offentlig",B68*0.44,B61*0.3)) -> 0
D56: Max mulig GUDP tilsagnsbeløb: | E56: =IFERROR(VLOOKUP(B55,'[1]Liste over tilskudsprocenter'!$A:$K,MATCH(CONCATENATE(E54," - ",$H$1),'[1]Liste over tilskudsprocenter'!$A$1:$K$1,0),FALSE)*B70,"") ->  | F56: Nedskrevet GUDP tilskudsbeløb pga. anden offentlig støtte el. egen- og privat finansiering: | G56: =IFERROR(B70*G55,"") -> 
A57: OH-procentsats | B57: =IF(E54="","",IF(E54="Offentlig forsknings- og vidensformidlingsorganisation",0.44,IF(E54="Privat forsknings- og vidensformidlingsorganisation",0.44,0.3))) ->  | E57: =_xlfn.IFNA(VLOOKUP(B55,'[1]Liste over tilskudsprocenter'!$A:$K,MATCH(CONCATENATE(E54," - ",$H$1),'[1]Liste over tilskudsprocenter'!$A$1:$K$1,0),FALSE),"") ->  | G57: =IFERROR(IF(B70*(1-E57)-E71<0,E57-((B70*E57+E71)-B70)/B70,""),"") -> 
A58: OH-rest beløb | B58: =IF(E54="","",IF(OR(LEFT(E54,9)="Offentlig",LEFT(E54,6)="Privat"),B68*0.44-B69,B61*0.3-B69)) -> 
O59: GUDP tilskudsats | P59: GUDP nedsat tilskudssats | Q59: Beløb, der bruges til "Heraf GUDP"
A60: =IF(B70>0,"Ja","") ->  | B60: Omkostninger | C60: Heraf GUDP | D60: Heraf egen-og privat finansiering | E60: Heraf anden offentlig støtte - manuel | F60: Antal timer | I60: Specifikation af delbudget: | J60: Specifikation af delbudget:
A61: Lønomkostninger | C61: =IFERROR(IF(B61=0,0,Q61),0) -> 0 | D61: =IFERROR(B61-C61,0) -> 0 | H61: =IF($E$51<>"Offentlig forsknings- og vidensformidlingsorganisation",0,IF(B61="",0,B61)) -> 0 | O61: =IF(B61=0,0,B61*E57) -> 0 | P61: =IFERROR(IF(G57=0,0,B61*G57),0) -> 0 | Q61: =IF(P61=0,O61,IFERROR(IF(P61=0,0,P61),0)) -> 0
A62: Ekstern bistand | C62: =IFERROR(IF(B62=0,0,Q62),0) -> 0 | D62: =IFERROR(B62-C62,0) -> 0 | H62: 0 | O62: =IF(B62=0,0,B62*E57) -> 0 | P62: =IFERROR(IF(G57=0,0,B62*G57),0) -> 0 | Q62: 0
A63: Øvrige omkostninger | C63: 0 | D63: 0 | H63: 0 | O63: =IF(B63=0,0,B63*E57) -> 0 | P63: =IFERROR(IF(G57=0,0,B63*G57),0) -> 0 | Q63: 0
A64: Apparatur/udstyr | C64: 0 | D64: 0 | H64: 0 | O64: =IF(B64=0,0,B64*E57) -> 0 | P64: =IFERROR(IF(G57=0,0,B64*G57),0) -> 0 | Q64: 0
A65: Scrap-værdi | C65: 0 | D65: 0 | H65: 0 | O65: =IF(B65=0,0,B65*E57) -> 0 | P65: =IFERROR(IF(G57=0,0,B65*G57),0) -> 0 | Q65: 0
A66: Evt. indtægter | C66: 0 | D66: 0 | H66: 0 | O66: =IF(B66=0,0,B66*E57) -> 0 | P66: =IFERROR(IF(G57=0,0,B66*G57),0) -> 0 | Q66: 0
A67: Revision | C67: 0 | D67: 0 | H67: 0 | O67: =IF(B67=0,0,B67*E57) -> 0 | P67: =IFERROR(IF(G57=0,0,B67*G57),0) -> 0 | Q67: 0
A68: I alt uden OH | B68: =SUM(B61:B67) -> 0 | C68: =SUM(C61:C67) -> 0 | D68: =SUM(D61:D67) -> 0 | F68: =SUM(F61:F67) -> 0 | H68: 0 | O68: =IF(B68=0,0,B68*E57) -> 0 | P68: =IFERROR(IF(G57=0,0,B68*G57),0) -> 0 | Q68: 0
A69: OH | B69: =SUM(B61:B67)*0.44 -> 0 | C69: =IFERROR(IF(B69=0,0,Q69),0) -> 0 | D69: =IFERROR(B69-C69,0) -> 0 | H69: 0 | O69: =IF(B69=0,0,B69*E57) -> 0 | P69: =IFERROR(IF(G57=0,0,B69*G57),0) -> 0 | Q69: 0
A70: I alt | B70: =SUM(B61:B67)+B69 -> 0 | C70: =SUM(C61:C67)+C69 -> 0 | D70: =SUM(D61:D67)+D69 -> 0 | F70: =SUM(F61:F67)+F69 -> 0 | H70: 0
A71: Finansiering i alt | B71: =IF(ISBLANK(E71),"",B70) ->  | C71: =IF(ISBLANK(E71),"",C70) ->  | D71: =IF(ISBLANK(E71),"",IF(D70-E71<0,0,D70-E71)) ->  | F71: =IF(ISBLANK(E71),"",F70) ->  | O71: =IF(B72=0,0,B72*E76) -> 0 | P71: =IFERROR(IF(G76=0,0,B72*G76),0) -> 0 | Q71: =IF(P71=0,O71,IFERROR(IF(P71=0,0,P71),0)) -> 0
B72: =IF(NOT(ISNUMBER(B71)),B70,IF(B71=B70,B70,B71)) -> 0 | C72: =IF(NOT(ISNUMBER(C71)),C70,IF(C71=C70,C70,C71)) -> 0 | D72: 0 | E72: 0
A73: Virksomhedsnavn: | C73: Deltager 4 | D73: Virksomhedsstørrelse:
A74: Aktivitetstype: | D74: Max mulig GUDP tilskudsprocent: | E74: =IF(G76<0,"Anden offentlig støtte overstiger GUDP max tilskudsbeløb",_xlfn.IFNA(VLOOKUP(B74,'[1]Liste over tilskudsprocenter'!$A:$K,MATCH(CONCATENATE(E73," - ",$H$1),'[1]Liste over tilskudsprocenter'!$A$1:$K$1,0),FALSE),"")) ->  | F74: Nedskrevet GUDP tilskudsprocent pga. anden offentlig støtte el. egen- og privat finansiering: | G74: =IFERROR(IF(G76<0,"Anden offentlig støtte overstiger GUDP max tilskudsbeløb",IF(G76=E76,"",G76)),"") ->  | H74: =IF(E73="",0,IF(LEFT(E73,9)="Offentlig",B87*0.44,B80*0.3)) -> 0
D75: Max mulig GUDP tilsagnsbeløb: | E75: =IFERROR(VLOOKUP(B74,'[1]Liste over tilskudsprocenter'!$A:$K,MATCH(CONCATENATE(E73," - ",$H$1),'[1]Liste over tilskudsprocenter'!$A$1:$K$1,0),FALSE)*B89,"") ->  | F75: Nedskrevet GUDP tilskudsbeløb pga. anden offentlig støtte el. egen- og privat finansiering: | G75: =IFERROR(B89*G74,"") -> 
A76: OH-procentsats | B76: =IF(E73="","",IF(E73="Offentlig forsknings- og vidensformidlingsorganisation",0.44,IF(E73="Privat forsknings- og vidensformidlingsorganisation",0.44,0.3))) ->  | E76: =_xlfn.IFNA(VLOOKUP(B74,'[1]Liste over tilskudsprocenter'!$A:$K,MATCH(CONCATENATE(E73," - ",$H$1),'[1]Liste over tilskudsprocenter'!$A$1:$K$1,0),FALSE),"") ->  | G76: =IFERROR(IF(B89*(1-E76)-E90<0,E76-((B89*E76+E90)-B89)/B89,""),"") -> 
A77: OH-rest beløb | B77: =IF(E73="","",IF(OR(LEFT(E73,9)="Offentlig",LEFT(E73,6)="Privat"),B87*0.44-B88,B80*0.3-B88)) -> 
O78: GUDP tilskudsats | P78: GUDP nedsat tilskudssats | Q78: Beløb, der bruges til "Heraf GUDP"
A79: =IF(B89>0,"Ja","") ->  | B79: Omkostninger | C79: Heraf GUDP | D79: Heraf egen-og privat finansiering | E79: Heraf anden offentlig støtte - manuel | F79: Antal timer | I79: Specifikation af delbudget: | J79: Specifikation af delbudget:
A80: Lønomkostninger | C80: =IFERROR(IF(B80=0,0,Q80),0) -> 0 | D80: =IFERROR(B80-C80,0) -> 0 | H80: =IF($E$51<>"Offentlig forsknings- og vidensformidlingsorganisation",0,IF(B80="",0,B80)) -> 0 | O80: =IF(B80=0,0,B80*E76) -> 0 | P80: =IFERROR(IF(G76=0,0,B80*G76),0) -> 0 | Q80: =IF(P80=0,O80,IFERROR(IF(P80=0,0,P80),0)) -> 0
A81: Ekstern bistand | C81: =IFERROR(IF(B81=0,0,Q81),0) -> 0 | D81: =IFERROR(B81-C81,0) -> 0 | H81: 0 | O81: =IF(B81=0,0,B81*E76) -> 0 | P81: =IFERROR(IF(G76=0,0,B81*G76),0) -> 0 | Q81: 0
A82: Øvrige omkostninger | C82: 0 | D82: 0 | H82: 0 | O82: =IF(B82=0,0,B82*E76) -> 0 | P82: =IFERROR(IF(G76=0,0,B82*G76),0) -> 0 | Q82: 0
A83: Apparatur/udstyr | C83: 0 | D83: 0 | H83: 0 | O83: =IF(B83=0,0,B83*E76) -> 0 | P83: =IFERROR(IF(G76=0,0,B83*G76),0) -> 0 | Q83: 0
A84: Scrap-værdi | C84: 0 | D84: 0 | H84: 0 | O84: =IF(B84=0,0,B84*E76) -> 0 | P84: =IFERROR(IF(G76=0,0,B84*G76),0) -> 0 | Q84: 0
A85: Evt. indtægter | C85: 0 | D85: 0 | H85: 0 | O85: =IF(B85=0,0,B85*E76) -> 0 | P85: =IFERROR(IF(G76=0,0,B85*G76),0) -> 0 | Q85: 0
A86: Revision | C86: 0 | D86: 0 | H86: 0 | O86: =IF(B86=0,0,B86*E76) -> 0 | P86: =IFERROR(IF(G76=0,0,B86*G76),0) -> 0 | Q86: 0
A87: I alt uden OH | B87: =SUM(B80:B86) -> 0 | C87: =SUM(C80:C86) -> 0 | D87: =SUM(D80:D86) -> 0 | F87: =SUM(F80:F86) -> 0 | H87: 0 | O87: =IF(B87=0,0,B87*E76) -> 0 | P87: =IFERROR(IF(G76=0,0,B87*G76),0) -> 0 | Q87: 0
A88: OH | C88: =IFERROR(IF(B88=0,0,Q88),0) -> 0 | D88: =IFERROR(B88-C88,0) -> 0 | H88: 0 | O88: =IF(B88=0,0,B88*E76) -> 0 | P88: =IFERROR(IF(G76=0,0,B88*G76),0) -> 0 | Q88: 0
A89: I alt | B89: =SUM(B80:B86)+B88 -> 0 | C89: =SUM(C80:C86)+C88 -> 0 | D89: =SUM(D80:D86)+D88 -> 0 | F89: =SUM(F80:F86)+F88 -> 0 | H89: 0
A90: Finansiering i alt | B90: =IF(ISBLANK(E90),"",B89) ->  | C90: =IF(ISBLANK(E90),"",C89) ->  | D90: =IF(ISBLANK(E90),"",IF(D89-E90<0,0,D89-E90)) ->  | F90: =IF(ISBLANK(E90),"",F89) ->  | O90: =IF(B91=0,0,B91*E95) -> 0 | P90: =IFERROR(IF(G95=0,0,B91*G95),0) -> 0 | Q90: =IF(P90=0,O90,IFERROR(IF(P90=0,0,P90),0)) -> 0
B91: =IF(NOT(ISNUMBER(B90)),B89,IF(B90=B89,B89,B90)) -> 0 | C91: =IF(NOT(ISNUMBER(C90)),C89,IF(C90=C89,C89,C90)) -> 0 | D91: 0 | E91: 0
A92: Virksomhedsnavn: | C92: Deltager 5 | D92: Virksomhedsstørrelse:
A93: Aktivitetstype: | D93: Max mulig GUDP tilskudsprocent: | E93: =IF(G95<0,"Anden offentlig støtte overstiger GUDP max tilskudsbeløb",_xlfn.IFNA(VLOOKUP(B93,'[1]Liste over tilskudsprocenter'!$A:$K,MATCH(CONCATENATE(E92," - ",$H$1),'[1]Liste over tilskudsprocenter'!$A$1:$K$1,0),FALSE),"")) ->  | F93: Nedskrevet GUDP tilskudsprocent pga. anden offentlig støtte el. egen- og privat finansiering: | G93: =IFERROR(IF(G95<0,"Anden offentlig støtte overstiger GUDP max tilskudsbeløb",G95),"") ->  | H93: =IF(E92="",0,IF(LEFT(E92,9)="Offentlig",B106*0.44,B99*0.3)) -> 0
D94: Max mulig GUDP tilsagnsbeløb: | E94: =IFERROR(VLOOKUP(B93,'[1]Liste over tilskudsprocenter'!$A:$K,MATCH(CONCATENATE(E92," - ",$H$1),'[1]Liste over tilskudsprocenter'!$A$1:$K$1,0),FALSE)*B108,"") ->  | F94: Nedskrevet GUDP tilskudsbeløb pga. anden offentlig støtte el. egen- og privat finansiering: | G94: =IFERROR(B108*G93,"") -> 
A95: OH-procentsats | B95: =IF(E92="","",IF(E92="Offentlig forsknings- og vidensformidlingsorganisation",0.44,IF(E92="Privat forsknings- og vidensformidlingsorganisation",0.44,0.3))) ->  | E95: =_xlfn.IFNA(VLOOKUP(B93,'[1]Liste over tilskudsprocenter'!$A:$K,MATCH(CONCATENATE(E92," - ",$H$1),'[1]Liste over tilskudsprocenter'!$A$1:$K$1,0),FALSE),"") ->  | G95: =IFERROR(IF(B108*(1-E95)-E109<=0,E95-((B108*E95+E109)-B108)/B108,""),"") -> 
A96: OH-rest beløb | B96: =IF(E92="","",IF(OR(LEFT(E92,9)="Offentlig",LEFT(E92,6)="Privat"),B106*0.44-B107,B99*0.3-B107)) -> 
O97: GUDP tilskudsats | P97: GUDP nedsat tilskudssats | Q97: Beløb, der bruges til "Heraf GUDP"
A98: =IF(B108>0,"Ja","") ->  | B98: Omkostninger | C98: Heraf GUDP | D98: Heraf egen-og privat finansiering | E98: Heraf anden offentlig støtte - manuel | F98: Antal timer | I98: Specifikation af delbudget: | J98: Specifikation af delbudget:
A99: Lønomkostninger | C99: =IF(OR(B99=0,Q99<0),0,Q99) -> 0 | D99: =IFERROR(B99-C99,0) -> 0 | H99: =IF($E$51<>"Offentlig forsknings- og vidensformidlingsorganisation",0,IF(B99="",0,B99)) -> 0 | O99: =IF(B99=0,0,B99*E95) -> 0 | P99: =IFERROR(IF(G95=0,0,B99*G95),0) -> 0 | Q99: =IF(P99=0,O99,IFERROR(IF(P99=0,0,P99),0)) -> 0
A100: Ekstern bistand | C100: =IF(OR(B100=0,Q100<0),0,Q100) -> 0 | D100: =IFERROR(B100-C100,0) -> 0 | H100: 0 | O100: =IF(B100=0,0,B100*E95) -> 0 | P100: =IFERROR(IF(G95=0,0,B100*G95),0) -> 0 | Q100: 0
A101: Øvrige omkostninger | C101: 0 | D101: 0 | H101: 0 | O101: =IF(B101=0,0,B101*E95) -> 0 | P101: =IFERROR(IF(G95=0,0,B101*G95),0) -> 0 | Q101: 0
A102: Apparatur/udstyr | C102: 0 | D102: 0 | H102: 0 | O102: =IF(B102=0,0,B102*E95) -> 0 | P102: =IFERROR(IF(G95=0,0,B102*G95),0) -> 0 | Q102: 0
A103: Scrap-værdi | C103: 0 | D103: 0 | H103: 0 | O103: =IF(B103=0,0,B103*E95) -> 0 | P103: =IFERROR(IF(G95=0,0,B103*G95),0) -> 0 | Q103: 0
A104: Evt. indtægter | C104: 0 | D104: 0 | H104: 0 | O104: =IF(B104=0,0,B104*E95) -> 0 | P104: =IFERROR(IF(G95=0,0,B104*G95),0) -> 0 | Q104: 0
A105: Revision | C105: 0 | D105: 0 | H105: 0 | O105: =IF(B105=0,0,B105*E95) -> 0 | P105: =IFERROR(IF(G95=0,0,B105*G95),0) -> 0 | Q105: 0
A106: I alt uden OH | B106: =SUM(B99:B105) -> 0 | C106: =SUM(C99:C105) -> 0 | D106: =SUM(D99:D105) -> 0 | F106: =SUM(F99:F105) -> 0 | H106: 0 | O106: =IF(B106=0,0,B106*E95) -> 0 | P106: =IFERROR(IF(G95=0,0,B106*G95),0) -> 0 | Q106: 0
A107: OH | C107: =IF(OR(B107=0,Q107<0),0,Q107) -> 0 | D107: =IFERROR(B107-C107,0) -> 0 | H107: 0 | O107: =IF(B107=0,0,B107*E95) -> 0 | P107: =IFERROR(IF(G95=0,0,B107*G95),0) -> 0 | Q107: 0
A108: I alt | B108: =SUM(B99:B105)+B107 -> 0 | C108: =SUM(C99:C105)+C107 -> 0 | D108: =SUM(D99:D105)+D107 -> 0 | F108: =SUM(F99:F105)+F107 -> 0 | H108: 0
A109: Finansiering i alt | B109: =IF(ISBLANK(E109),"",B108) ->  | C109: =IF(ISBLANK(E109),"",C108) ->  | D109: =IF(ISBLANK(E109),"",IF(D108-E109<0,0,D108-E109)) ->  | F109: =IF(ISBLANK(E109),"",F108) ->  | O109: =IF(B110=0,0,B110*E114) -> 0 | P109: =IFERROR(IF(G114=0,0,B110*G114),0) -> 0 | Q109: =IF(P109=0,O109,IFERROR(IF(P109=0,0,P109),0)) -> 0
B110: =IF(NOT(ISNUMBER(B109)),B108,IF(B109=B108,B108,B109)) -> 0 | C110: =IF(NOT(ISNUMBER(C109)),C108,IF(C109=C108,C108,C109)) -> 0 | D110: 0 | E110: 0
A111: Virksomhedsnavn: | C111: Deltager 6 | D111: Virksomhedsstørrelse:
A112: Aktivitetstype: | D112: Max mulig GUDP tilskudsprocent: | E112: =IF(G114<0,"Anden offentlig støtte overstiger GUDP max tilskudsbeløb",_xlfn.IFNA(VLOOKUP(B112,'[1]Liste over tilskudsprocenter'!$A:$K,MATCH(CONCATENATE(E111," - ",$H$1),'[1]Liste over tilskudsprocenter'!$A$1:$K$1,0),FALSE),"")) ->  | F112: Nedskrevet GUDP tilskudsprocent pga. anden offentlig støtte el. egen- og privat finansiering: | G112: =IFERROR(IF(G114<0,"Anden offentlig støtte overstiger GUDP max tilskudsbeløb",G114),"") ->  | H112: =IF(E111="",0,IF(LEFT(E111,9)="Offentlig",B125*0.44,B118*0.3)) -> 0
D113: Max mulig GUDP tilsagnsbeløb: | E113: =IFERROR(VLOOKUP(B112,'[1]Liste over tilskudsprocenter'!$A:$K,MATCH(CONCATENATE(E111," - ",$H$1),'[1]Liste over tilskudsprocenter'!$A$1:$K$1,0),FALSE)*B127,"") ->  | F113: Nedskrevet GUDP tilskudsbeløb pga. anden offentlig støtte el. egen- og privat finansiering: | G113: =IFERROR(B127*G112,"") -> 
A114: OH-procentsats | B114: =IF(E111="","",IF(E111="Offentlig forsknings- og vidensformidlingsorganisation",0.44,IF(E111="Privat forsknings- og vidensformidlingsorganisation",0.44,0.3))) ->  | E114: =_xlfn.IFNA(VLOOKUP(B112,'[1]Liste over tilskudsprocenter'!$A:$K,MATCH(CONCATENATE(E111," - ",$H$1),'[1]Liste over tilskudsprocenter'!$A$1:$K$1,0),FALSE),"") ->  | G114: =IFERROR(IF(B127*(1-E114)-E128<=0,E114-((B127*E114+E128)-B127)/B127,""),"") -> 
A115: OH-rest beløb | B115: =IF(E111="","",IF(OR(LEFT(E111,9)="Offentlig",LEFT(E111,6)="Privat"),B125*0.44-B126,B118*0.3-B126)) -> 
O116: GUDP tilskudsats | P116: GUDP nedsat tilskudssats | Q116: Beløb, der bruges til "Heraf GUDP"
A117: =IF(B127>0,"Ja","") ->  | B117: Omkostninger | C117: Heraf GUDP | D117: Heraf egen-og privat finansiering | E117: Heraf anden offentlig støtte - manuel | F117: Antal timer | I117: Specifikation af delbudget: | J117: Specifikation af delbudget:
A118: Lønomkostninger | C118: =IF(OR(B118=0,Q118<0),0,Q118) -> 0 | D118: =IFERROR(B118-C118,0) -> 0 | H118: =IF($E$51<>"Offentlig forsknings- og vidensformidlingsorganisation",0,IF(B118="",0,B118)) -> 0 | O118: =IF(B118=0,0,B118*E114) -> 0 | P118: =IFERROR(IF(G114=0,0,B118*G114),0) -> 0 | Q118: =IF(P118=0,O118,IFERROR(IF(P118=0,0,P118),0)) -> 0
A119: Ekstern bistand | C119: =IF(OR(B119=0,Q119<0),0,Q119) -> 0 | D119: =IFERROR(B119-C119,0) -> 0 | H119: 0 | O119: =IF(B119=0,0,B119*E114) -> 0 | P119: =IFERROR(IF(G114=0,0,B119*G114),0) -> 0 | Q119: 0
A120: Øvrige omkostninger | C120: 0 | D120: 0 | H120: 0 | O120: =IF(B120=0,0,B120*E114) -> 0 | P120: =IFERROR(IF(G114=0,0,B120*G114),0) -> 0 | Q120: 0
A121: Apparatur/udstyr | C121: 0 | D121: 0 | H121: 0 | O121: =IF(B121=0,0,B121*E114) -> 0 | P121: =IFERROR(IF(G114=0,0,B121*G114),0) -> 0 | Q121: 0
A122: Scrap-værdi | C122: 0 | D122: 0 | H122: 0 | O122: =IF(B122=0,0,B122*E114) -> 0 | P122: =IFERROR(IF(G114=0,0,B122*G114),0) -> 0 | Q122: 0
A123: Evt. indtægter | C123: 0 | D123: 0 | H123: 0 | O123: =IF(B123=0,0,B123*E114) -> 0 | P123: =IFERROR(IF(G114=0,0,B123*G114),0) -> 0 | Q123: 0
A124: Revision | C124: 0 | D124: 0 | H124: 0 | O124: =IF(B124=0,0,B124*E114) -> 0 | P124: =IFERROR(IF(G114=0,0,B124*G114),0) -> 0 | Q124: 0
A125: I alt uden OH | B125: =SUM(B118:B124) -> 0 | C125: =SUM(C118:C124) -> 0 | D125: =SUM(D118:D124) -> 0 | F125: =SUM(F118:F124) -> 0 | H125: 0 | O125: =IF(B125=0,0,B125*E114) -> 0 | P125: =IFERROR(IF(G114=0,0,B125*G114),0) -> 0 | Q125: 0
A126: OH | C126: =IF(OR(B126=0,Q126<0),0,Q126) -> 0 | D126: =IFERROR(B126-C126,0) -> 0 | H126: 0 | O126: =IF(B126=0,0,B126*E114) -> 0 | P126: =IFERROR(IF(G114=0,0,B126*G114),0) -> 0 | Q126: 0
A127: I alt | B127: =SUM(B118:B124)+B126 -> 0 | C127: =SUM(C118:C124)+C126 -> 0 | D127: =SUM(D118:D124)+D126 -> 0 | F127: =SUM(F118:F124)+F126 -> 0 | H127: 0
A128: Finansiering i alt | B128: =IF(ISBLANK(E128),"",B127) ->  | C128: =IF(ISBLANK(E128),"",C127) ->  | D128: =IF(ISBLANK(E128),"",IF(D127-E128<0,0,D127-E128)) ->  | F128: =IF(ISBLANK(E128),"",F127) ->  | O128: =IF(B129=0,0,B129*E133) -> 0 | P128: =IFERROR(IF(G133=0,0,B129*G133),0) -> 0 | Q128: =IF(P128=0,O128,IFERROR(IF(P128=0,0,P128),0)) -> 0
B129: =IF(NOT(ISNUMBER(B128)),B127,IF(B128=B127,B127,B128)) -> 0 | C129: =IF(NOT(ISNUMBER(C128)),C127,IF(C128=C127,C127,C128)) -> 0 | D129: 0 | E129: 0
A130: Virksomhedsnavn: | C130: Deltager 7 | D130: Virksomhedsstørrelse:
A131: Aktivitetstype: | D131: Max mulig GUDP tilskudsprocent: | E131: =IF(G133<0,"Anden offentlig støtte overstiger GUDP max tilskudsbeløb",_xlfn.IFNA(VLOOKUP(B131,'[1]Liste over tilskudsprocenter'!$A:$K,MATCH(CONCATENATE(E130," - ",$H$1),'[1]Liste over tilskudsprocenter'!$A$1:$K$1,0),FALSE),"")) ->  | F131: Nedskrevet GUDP tilskudsprocent pga. anden offentlig støtte el. egen- og privat finansiering: | G131: =IFERROR(IF(G133<0,"Anden offentlig støtte overstiger GUDP max tilskudsbeløb",G133),"") ->  | H131: =IF(E130="",0,IF(LEFT(E130,9)="Offentlig",B144*0.44,B137*0.3)) -> 0
D132: Max mulig GUDP tilsagnsbeløb: | E132: =IFERROR(VLOOKUP(B131,'[1]Liste over tilskudsprocenter'!$A:$K,MATCH(CONCATENATE(E130," - ",$H$1),'[1]Liste over tilskudsprocenter'!$A$1:$K$1,0),FALSE)*B146,"") ->  | F132: Nedskrevet GUDP tilskudsbeløb pga. anden offentlig støtte el. egen- og privat finansiering: | G132: =IFERROR(B146*G131,"") -> 
A133: OH-procentsats | B133: =IF(E130="","",IF(E130="Offentlig forsknings- og vidensformidlingsorganisation",0.44,IF(E130="Privat forsknings- og vidensformidlingsorganisation",0.44,0.3))) ->  | E133: =_xlfn.IFNA(VLOOKUP(B131,'[1]Liste over tilskudsprocenter'!$A:$K,MATCH(CONCATENATE(E130," - ",$H$1),'[1]Liste over tilskudsprocenter'!$A$1:$K$1,0),FALSE),"") ->  | G133: =IFERROR(IF(B146*(1-E133)-E147<=0,E133-((B146*E133+E147)-B146)/B146,""),"") -> 
A134: OH-rest beløb | B134: =IF(E130="","",IF(OR(LEFT(E130,9)="Offentlig",LEFT(E130,6)="Privat"),B144*0.44-B145,B137*0.3-B145)) -> 
O135: GUDP tilskudsats | P135: GUDP nedsat tilskudssats | Q135: Beløb, der bruges til "Heraf GUDP"
A136: =IF(B146>0,"Ja","") ->  | B136: Omkostninger | C136: Heraf GUDP | D136: Heraf egen-og privat finansiering | E136: Heraf anden offentlig støtte - manuel | F136: Antal timer | I136: Specifikation af delbudget: | J136: Specifikation af delbudget:
A137: Lønomkostninger | C137: =IF(OR(B137=0,Q137<0),0,Q137) -> 0 | D137: =IFERROR(B137-C137,0) -> 0 | H137: =IF($E$51<>"Offentlig forsknings- og vidensformidlingsorganisation",0,IF(B137="",0,B137)) -> 0 | O137: =IF(B137=0,0,B137*E133) -> 0 | P137: =IFERROR(IF(G133=0,0,B137*G133),0) -> 0 | Q137: =IF(P137=0,O137,IFERROR(IF(P137=0,0,P137),0)) -> 0
A138: Ekstern bistand | C138: =IF(OR(B138=0,Q138<0),0,Q138) -> 0 | D138: =IFERROR(B138-C138,0) -> 0 | H138: 0 | O138: =IF(B138=0,0,B138*E133) -> 0 | P138: =IFERROR(IF(G133=0,0,B138*G133),0) -> 0 | Q138: 0
A139: Øvrige omkostninger | C139: 0 | D139: 0 | H139: 0 | O139: =IF(B139=0,0,B139*E133) -> 0 | P139: =IFERROR(IF(G133=0,0,B139*G133),0) -> 0 | Q139: 0
A140: Apparatur/udstyr | C140: 0 | D140: 0 | H140: 0 | O140: =IF(B140=0,0,B140*E133) -> 0 | P140: =IFERROR(IF(G133=0,0,B140*G133),0) -> 0 | Q140: 0
A141: Scrap-værdi | C141: 0 | D141: 0 | H141: 0 | O141: =IF(B141=0,0,B141*E133) -> 0 | P141: =IFERROR(IF(G133=0,0,B141*G133),0) -> 0 | Q141: 0
A142: Evt. indtægter | C142: 0 | D142: 0 | H142: 0 | O142: =IF(B142=0,0,B142*E133) -> 0 | P142: =IFERROR(IF(G133=0,0,B142*G133),0) -> 0 | Q142: 0
A143: Revision | C143: 0 | D143: 0 | H143: 0 | O143: =IF(B143=0,0,B143*E133) -> 0 | P143: =IFERROR(IF(G133=0,0,B143*G133),0) -> 0 | Q143: 0
A144: I alt uden OH | B144: =SUM(B137:B143) -> 0 | C144: =SUM(C137:C143) -> 0 | D144: =SUM(D137:D143) -> 0 | F144: =SUM(F137:F143) -> 0 | H144: 0 | O144: =IF(B144=0,0,B144*E133) -> 0 | P144: =IFERROR(IF(G133=0,0,B144*G133),0) -> 0 | Q144: 0
A145: OH | C145: =IF(OR(B145=0,Q145<0),0,Q145) -> 0 | D145: =IFERROR(B145-C145,0) -> 0 | H145: 0 | O145: =IF(B145=0,0,B145*E133) -> 0 | P145: =IFERROR(IF(G133=0,0,B145*G133),0) -> 0 | Q145: 0
A146: I alt | B146: =SUM(B137:B143)+B145 -> 0 | C146: =SUM(C137:C143)+C145 -> 0 | D146: =SUM(D137:D143)+D145 -> 0 | F146: =SUM(F137:F143)+F145 -> 0 | H146: 0
A147: Finansiering i alt | B147: =IF(ISBLANK(E147),"",B146) ->  | C147: =IF(ISBLANK(E147),"",C146) ->  | D147: =IF(ISBLANK(E147),"",IF(D146-E147<0,0,D146-E147)) ->  | F147: =IF(ISBLANK(E147),"",F146) ->  | O147: =IF(B148=0,0,B148*E152) -> 0 | P147: =IFERROR(IF(G152=0,0,B148*G152),0) -> 0 | Q147: =IF(P147=0,O147,IFERROR(IF(P147=0,0,P147),0)) -> 0
B148: =IF(NOT(ISNUMBER(B147)),B146,IF(B147=B146,B146,B147)) -> 0 | C148: =IF(NOT(ISNUMBER(C147)),C146,IF(C147=C146,C146,C147)) -> 0 | D148: 0 | E148: 0
A149: Virksomhedsnavn: | C149: Deltager 8 | D149: Virksomhedsstørrelse:
A150: Aktivitetstype: | D150: Max mulig GUDP tilskudsprocent: | E150: =IF(G152<0,"Anden offentlig støtte overstiger GUDP max tilskudsbeløb",_xlfn.IFNA(VLOOKUP(B150,'[1]Liste over tilskudsprocenter'!$A:$K,MATCH(CONCATENATE(E149," - ",$H$1),'[1]Liste over tilskudsprocenter'!$A$1:$K$1,0),FALSE),"")) ->  | F150: Nedskrevet GUDP tilskudsprocent pga. anden offentlig støtte el. egen- og privat finansiering: | G150: =IFERROR(IF(G152<0,"Anden offentlig støtte overstiger GUDP max tilskudsbeløb",G152),"") ->  | H150: =IF(E149="",0,IF(LEFT(E149,9)="Offentlig",B163*0.44,B156*0.3)) -> 0
D151: Max mulig GUDP tilsagnsbeløb: | E151: =IFERROR(VLOOKUP(B150,'[1]Liste over tilskudsprocenter'!$A:$K,MATCH(CONCATENATE(E149," - ",$H$1),'[1]Liste over tilskudsprocenter'!$A$1:$K$1,0),FALSE)*B165,"") ->  | F151: Nedskrevet GUDP tilskudsbeløb pga. anden offentlig støtte el. egen- og privat finansiering: | G151: =IFERROR(B165*G150,"") -> 
A152: OH-procentsats | B152: =IF(E149="","",IF(E149="Offentlig forsknings- og vidensformidlingsorganisation",0.44,IF(E149="Privat forsknings- og vidensformidlingsorganisation",0.44,0.3))) ->  | E152: =_xlfn.IFNA(VLOOKUP(B150,'[1]Liste over tilskudsprocenter'!$A:$K,MATCH(CONCATENATE(E149," - ",$H$1),'[1]Liste over tilskudsprocenter'!$A$1:$K$1,0),FALSE),"") ->  | G152: =IFERROR(IF(B165*(1-E152)-E166<=0,E152-((B165*E152+E166)-B165)/B165,""),"") -> 
A153: OH-rest beløb | B153: =IF(E149="","",IF(OR(LEFT(E149,9)="Offentlig",LEFT(E149,6)="Privat"),B163*0.44-B164,B156*0.3-B164)) -> 
O154: GUDP tilskudsats | P154: GUDP nedsat tilskudssats | Q154: Beløb, der bruges til "Heraf GUDP"
A155: =IF(B165>0,"Ja","") ->  | B155: Omkostninger | C155: Heraf GUDP | D155: Heraf egen-og privat finansiering | E155: Heraf anden offentlig støtte - manuel | F155: Antal timer | I155: Specifikation af delbudget: | J155: Specifikation af delbudget:
A156: Lønomkostninger | C156: =IF(OR(B156=0,Q156<0),0,Q156) -> 0 | D156: =IFERROR(B156-C156,0) -> 0 | H156: =IF($E$51<>"Offentlig forsknings- og vidensformidlingsorganisation",0,IF(B156="",0,B156)) -> 0 | O156: =IF(B156=0,0,B156*E152) -> 0 | P156: =IFERROR(IF(G152=0,0,B156*G152),0) -> 0 | Q156: =IF(P156=0,O156,IFERROR(IF(P156=0,0,P156),0)) -> 0
A157: Ekstern bistand | C157: =IF(OR(B157=0,Q157<0),0,Q157) -> 0 | D157: =IFERROR(B157-C157,0) -> 0 | H157: 0 | O157: =IF(B157=0,0,B157*E152) -> 0 | P157: =IFERROR(IF(G152=0,0,B157*G152),0) -> 0 | Q157: 0
A158: Øvrige omkostninger | C158: 0 | D158: 0 | H158: 0 | O158: =IF(B158=0,0,B158*E152) -> 0 | P158: =IFERROR(IF(G152=0,0,B158*G152),0) -> 0 | Q158: 0
A159: Apparatur/udstyr | C159: 0 | D159: 0 | H159: 0 | O159: =IF(B159=0,0,B159*E152) -> 0 | P159: =IFERROR(IF(G152=0,0,B159*G152),0) -> 0 | Q159: 0
A160: Scrap-værdi | C160: 0 | D160: 0 | H160: 0 | O160: =IF(B160=0,0,B160*E152) -> 0 | P160: =IFERROR(IF(G152=0,0,B160*G152),0) -> 0 | Q160: 0
A161: Evt. indtægter | C161: 0 | D161: 0 | H161: 0 | O161: =IF(B161=0,0,B161*E152) -> 0 | P161: =IFERROR(IF(G152=0,0,B161*G152),0) -> 0 | Q161: 0
A162: Revision | C162: 0 | D162: 0 | H162: 0 | O162: =IF(B162=0,0,B162*E152) -> 0 | P162: =IFERROR(IF(G152=0,0,B162*G152),0) -> 0 | Q162: 0
A163: I alt uden OH | B163: =SUM(B156:B162) -> 0 | C163: =SUM(C156:C162) -> 0 | D163: =SUM(D156:D162) -> 0 | F163: =SUM(F156:F162) -> 0 | H163: 0 | O163: =IF(B163=0,0,B163*E152) -> 0 | P163: =IFERROR(IF(G152=0,0,B163*G152),0) -> 0 | Q163: 0
A164: OH | C164: =IF(OR(B164=0,Q164<0),0,Q164) -> 0 | D164: =IFERROR(B164-C164,0) -> 0 | H164: 0 | O164: =IF(B164=0,0,B164*E152) -> 0 | P164: =IFERROR(IF(G152=0,0,B164*G152),0) -> 0 | Q164: 0
A165: I alt | B165: =SUM(B156:B162)+B164 -> 0 | C165: =SUM(C156:C162)+C164 -> 0 | D165: =SUM(D156:D162)+D164 -> 0 | F165: =SUM(F156:F162)+F164 -> 0 | H165: 0
A166: Finansiering i alt | B166: =IF(ISBLANK(E166),"",B165) ->  | C166: =IF(ISBLANK(E166),"",C165) ->  | D166: =IF(ISBLANK(E166),"",IF(D165-E166<0,0,D165-E166)) ->  | F166: =IF(ISBLANK(E166),"",F165) ->  | O166: =IF(B167=0,0,B167*E171) -> 0 | P166: =IFERROR(IF(G171=0,0,B167*G171),0) -> 0 | Q166: =IF(P166=0,O166,IFERROR(IF(P166=0,0,P166),0)) -> 0
B167: =IF(NOT(ISNUMBER(B166)),B165,IF(B166=B165,B165,B166)) -> 0 | C167: =IF(NOT(ISNUMBER(C166)),C165,IF(C166=C165,C165,C166)) -> 0 | D167: 0 | E167: 0
A168: Virksomhedsnavn: | C168: Deltager 9 | D168: Virksomhedsstørrelse:
A169: Aktivitetstype: | D169: Max mulig GUDP tilskudsprocent: | E169: =IF(G171<0,"Anden offentlig støtte overstiger GUDP max tilskudsbeløb",_xlfn.IFNA(VLOOKUP(B169,'[1]Liste over tilskudsprocenter'!$A:$K,MATCH(CONCATENATE(E168," - ",$H$1),'[1]Liste over tilskudsprocenter'!$A$1:$K$1,0),FALSE),"")) ->  | F169: Nedskrevet GUDP tilskudsprocent pga. anden offentlig støtte el. egen- og privat finansiering: | G169: =IFERROR(IF(G171<0,"Anden offentlig støtte overstiger GUDP max tilskudsbeløb",G171),"") ->  | H169: =IF(E168="",0,IF(LEFT(E168,9)="Offentlig",B182*0.44,B175*0.3)) -> 0
D170: Max mulig GUDP tilsagnsbeløb: | E170: =IFERROR(VLOOKUP(B169,'[1]Liste over tilskudsprocenter'!$A:$K,MATCH(CONCATENATE(E168," - ",$H$1),'[1]Liste over tilskudsprocenter'!$A$1:$K$1,0),FALSE)*B184,"") ->  | F170: Nedskrevet GUDP tilskudsbeløb pga. anden offentlig støtte el. egen- og privat finansiering: | G170: =IFERROR(B184*G169,"") -> 
A171: OH-procentsats | B171: =IF(E168="","",IF(E168="Offentlig forsknings- og vidensformidlingsorganisation",0.44,IF(E168="Privat forsknings- og vidensformidlingsorganisation",0.44,0.3))) ->  | E171: =_xlfn.IFNA(VLOOKUP(B169,'[1]Liste over tilskudsprocenter'!$A:$K,MATCH(CONCATENATE(E168," - ",$H$1),'[1]Liste over tilskudsprocenter'!$A$1:$K$1,0),FALSE),"") ->  | G171: =IFERROR(IF(B184*(1-E171)-E185<=0,E171-((B184*E171+E185)-B184)/B184,""),"") -> 
A172: OH-rest beløb | B172: =IF(E168="","",IF(OR(LEFT(E168,9)="Offentlig",LEFT(E168,6)="Privat"),B182*0.44-B183,B175*0.3-B183)) -> 
O173: GUDP tilskudsats | P173: GUDP nedsat tilskudssats | Q173: Beløb, der bruges til "Heraf GUDP"
A174: =IF(B184>0,"Ja","") ->  | B174: Omkostninger | C174: Heraf GUDP | D174: Heraf egen-og privat finansiering | E174: Heraf anden offentlig støtte - manuel | F174: Antal timer | I174: Specifikation af delbudget: | J174: Specifikation af delbudget:
A175: Lønomkostninger | C175: =IF(OR(B175=0,Q175<0),0,Q175) -> 0 | D175: =IFERROR(B175-C175,0) -> 0 | H175: =IF($E$51<>"Offentlig forsknings- og vidensformidlingsorganisation",0,IF(B175="",0,B175)) -> 0 | O175: =IF(B175=0,0,B175*E171) -> 0 | P175: =IFERROR(IF(G171=0,0,B175*G171),0) -> 0 | Q175: =IF(P175=0,O175,IFERROR(IF(P175=0,0,P175),0)) -> 0
A176: Ekstern bistand | C176: =IF(OR(B176=0,Q176<0),0,Q176) -> 0 | D176: =IFERROR(B176-C176,0) -> 0 | H176: 0 | O176: =IF(B176=0,0,B176*E171) -> 0 | P176: =IFERROR(IF(G171=0,0,B176*G171),0) -> 0 | Q176: 0
A177: Øvrige omkostninger | C177: 0 | D177: 0 | H177: 0 | O177: =IF(B177=0,0,B177*E171) -> 0 | P177: =IFERROR(IF(G171=0,0,B177*G171),0) -> 0 | Q177: 0
A178: Apparatur/udstyr | C178: 0 | D178: 0 | H178: 0 | O178: =IF(B178=0,0,B178*E171) -> 0 | P178: =IFERROR(IF(G171=0,0,B178*G171),0) -> 0 | Q178: 0
A179: Scrap-værdi | C179: 0 | D179: 0 | H179: 0 | O179: =IF(B179=0,0,B179*E171) -> 0 | P179: =IFERROR(IF(G171=0,0,B179*G171),0) -> 0 | Q179: 0
A180: Evt. indtægter | C180: 0 | D180: 0 | H180: 0 | O180: =IF(B180=0,0,B180*E171) -> 0 | P180: =IFERROR(IF(G171=0,0,B180*G171),0) -> 0 | Q180: 0
A181: Revision | C181: 0 | D181: 0 | H181: 0 | O181: =IF(B181=0,0,B181*E171) -> 0 | P181: =IFERROR(IF(G171=0,0,B181*G171),0) -> 0 | Q181: 0
A182: I alt uden OH | B182: =SUM(B175:B181) -> 0 | C182: =SUM(C175:C181) -> 0 | D182: =SUM(D175:D181) -> 0 | F182: =SUM(F175:F181) -> 0 | H182: 0 | O182: =IF(B182=0,0,B182*E171) -> 0 | P182: =IFERROR(IF(G171=0,0,B182*G171),0) -> 0 | Q182: 0
A183: OH | C183: =IF(OR(B183=0,Q183<0),0,Q183) -> 0 | D183: =IFERROR(B183-C183,0) -> 0 | H183: 0 | O183: =IF(B183=0,0,B183*E171) -> 0 | P183: =IFERROR(IF(G171=0,0,B183*G171),0) -> 0 | Q183: 0
A184: I alt | B184: =SUM(B175:B181)+B183 -> 0 | C184: =SUM(C175:C181)+C183 -> 0 | D184: =SUM(D175:D181)+D183 -> 0 | F184: =SUM(F175:F181)+F183 -> 0 | H184: 0
A185: Finansiering i alt | B185: =IF(ISBLANK(E185),"",B184) ->  | C185: =IF(ISBLANK(E185),"",C184) ->  | D185: =IF(ISBLANK(E185),"",IF(D184-E185<0,0,D184-E185)) ->  | F185: =IF(ISBLANK(E185),"",F184) ->  | O185: =IF(B186=0,0,B186*E190) -> 0 | P185: =IFERROR(IF(G190=0,0,B186*G190),0) -> 0 | Q185: =IF(P185=0,O185,IFERROR(IF(P185=0,0,P185),0)) -> 0
B186: =IF(NOT(ISNUMBER(B185)),B184,IF(B185=B184,B184,B185)) -> 0 | C186: =IF(NOT(ISNUMBER(C185)),C184,IF(C185=C184,C184,C185)) -> 0 | D186: 0 | E186: 0
A187: Virksomhedsnavn: | C187: Deltager 10 | D187: Virksomhedsstørrelse:
A188: Aktivitetstype: | D188: Max mulig GUDP tilskudsprocent: | E188: =IF(G190<0,"Anden offentlig støtte overstiger GUDP max tilskudsbeløb",_xlfn.IFNA(VLOOKUP(B188,'[1]Liste over tilskudsprocenter'!$A:$K,MATCH(CONCATENATE(E187," - ",$H$1),'[1]Liste over tilskudsprocenter'!$A$1:$K$1,0),FALSE),"")) ->  | F188: Nedskrevet GUDP tilskudsprocent pga. anden offentlig støtte el. egen- og privat finansiering: | G188: =IFERROR(IF(G190<0,"Anden offentlig støtte overstiger GUDP max tilskudsbeløb",G190),"") ->  | H188: =IF(E187="",0,IF(LEFT(E187,9)="Offentlig",B201*0.44,B194*0.3)) -> 0
D189: Max mulig GUDP tilsagnsbeløb: | E189: =IFERROR(VLOOKUP(B188,'[1]Liste over tilskudsprocenter'!$A:$K,MATCH(CONCATENATE(E187," - ",$H$1),'[1]Liste over tilskudsprocenter'!$A$1:$K$1,0),FALSE)*B203,"") ->  | F189: Nedskrevet GUDP tilskudsbeløb pga. anden offentlig støtte el. egen- og privat finansiering: | G189: =IFERROR(B203*G188,"") -> 
A190: OH-procentsats | B190: =IF(E187="","",IF(E187="Offentlig forsknings- og vidensformidlingsorganisation",0.44,IF(E187="Privat forsknings- og vidensformidlingsorganisation",0.44,0.3))) ->  | E190: =_xlfn.IFNA(VLOOKUP(B188,'[1]Liste over tilskudsprocenter'!$A:$K,MATCH(CONCATENATE(E187," - ",$H$1),'[1]Liste over tilskudsprocenter'!$A$1:$K$1,0),FALSE),"") ->  | G190: =IFERROR(IF(B203*(1-E190)-E204<=0,E190-((B203*E190+E204)-B203)/B203,""),"") -> 
A191: OH-rest beløb | B191: =IF(E187="","",IF(OR(LEFT(E187,9)="Offentlig",LEFT(E187,6)="Privat"),B201*0.44-B202,B194*0.3-B202)) -> 
O192: GUDP tilskudsats | P192: GUDP nedsat tilskudssats | Q192: Beløb, der bruges til "Heraf GUDP"
A193: =IF(B203>0,"Ja","") ->  | B193: Omkostninger | C193: Heraf GUDP | D193: Heraf egen-og privat finansiering | E193: Heraf anden offentlig støtte - manuel | F193: Antal timer | I193: Specifikation af delbudget: | J193: Specifikation af delbudget:
A194: Lønomkostninger | C194: =IF(OR(B194=0,Q194<0),0,Q194) -> 0 | D194: =IFERROR(B194-C194,0) -> 0 | H194: =IF($E$51<>"Offentlig forsknings- og vidensformidlingsorganisation",0,IF(B194="",0,B194)) -> 0 | O194: =IF(B194=0,0,B194*E190) -> 0 | P194: =IFERROR(IF(G190=0,0,B194*G190),0) -> 0 | Q194: =IF(P194=0,O194,IFERROR(IF(P194=0,0,P194),0)) -> 0
A195: Ekstern bistand | C195: =IF(OR(B195=0,Q195<0),0,Q195) -> 0 | D195: =IFERROR(B195-C195,0) -> 0 | H195: 0 | O195: =IF(B195=0,0,B195*E190) -> 0 | P195: =IFERROR(IF(G190=0,0,B195*G190),0) -> 0 | Q195: 0
A196: Øvrige omkostninger | C196: 0 | D196: 0 | H196: 0 | O196: =IF(B196=0,0,B196*E190) -> 0 | P196: =IFERROR(IF(G190=0,0,B196*G190),0) -> 0 | Q196: 0
A197: Apparatur/udstyr | C197: 0 | D197: 0 | H197: 0 | O197: =IF(B197=0,0,B197*E190) -> 0 | P197: =IFERROR(IF(G190=0,0,B197*G190),0) -> 0 | Q197: 0
A198: Scrap-værdi | C198: 0 | D198: 0 | H198: 0 | O198: =IF(B198=0,0,B198*E190) -> 0 | P198: =IFERROR(IF(G190=0,0,B198*G190),0) -> 0 | Q198: 0
A199: Evt. indtægter | C199: 0 | D199: 0 | H199: 0 | O199: =IF(B199=0,0,B199*E190) -> 0 | P199: =IFERROR(IF(G190=0,0,B199*G190),0) -> 0 | Q199: 0
A200: Revision | C200: 0 | D200: 0 | H200: 0 | O200: =IF(B200=0,0,B200*E190) -> 0 | P200: =IFERROR(IF(G190=0,0,B200*G190),0) -> 0 | Q200: 0
A201: I alt uden OH | B201: =SUM(B194:B200) -> 0 | C201: =SUM(C194:C200) -> 0 | D201: =SUM(D194:D200) -> 0 | F201: =SUM(F194:F200) -> 0 | H201: 0 | O201: =IF(B201=0,0,B201*E190) -> 0 | P201: =IFERROR(IF(G190=0,0,B201*G190),0) -> 0 | Q201: 0
... 194 more rows

Sheet Eksempel på samarbejdsprojekt
A1: Projekttitel: | B1: Eksempel på samarbejdsprojekt med 3 deltagere | H1: Samarbejde
D2: Projektets totalbudget udfyldes automatisk
B3: Omkostninger | C3: Heraf GUDP | D3: Heraf egen-og privat finansiering | E3: Heraf anden offentlig støtte - manuel | F3: Antal timer
A4: Lønomkostninger | B4: =B23+B42+B61+B80+B99+B118+B137+B156+B175+B194+B213+B232+B251+B270+B289+B308+B327+B346+B365+B384 -> 2900000 | C4: 2335000 | D4: 565000 | F4: =F23+F42+F61+F80+F99+F118+F137+F156+F175+F194+F213+F232+F251+F270+F289+F308+F327+F346+F365+F384 -> 7769 | I4: Journal nr: 34009-24-XXXX
A5: Ekstern bistand | B5: 30000 | C5: 18000 | D5: 12000 | F5: 0 | I5: Godkendt fra: XX-XX-XXXX
A6: Øvrige omkostninger | B6: 400000 | C6: 320000 | D6: 80000 | F6: 0
A7: Apparatur/udstyr | B7: 50000 | C7: 30000 | D7: 20000 | F7: 0
A8: Scrap-værdi | B8: -10000 | C8: -6000 | D8: -4000 | F8: 0
A9: Evt. indtægter | B9: -5000 | C9: -3000 | D9: -2000 | F9: 0
A10: Revision | B10: 52000 | C10: 37800 | D10: 14200 | F10: 0
A11: I alt uden OH | B11: 3417000 | C11: 2731800 | D11: 685200 | F11: 7769
A12: OH | B12: 1225000 | C12: 1020000 | D12: 205000 | F12: 0
A13: I alt | B13: 4642000 | C13: 3751800 | D13: 602200 | F13: 7769
A14: Finansiering i alt | B14: =IFERROR(B34+B53+B72+B91+B110+B129+B148+B167+B186+B205+B224+B243+B262+B281+B300+B319+B338+B357+B376+B395,"") -> 4642000 | C14: =IFERROR(C34+C53+C72+C91+C110+C129+C148+C167+C186+C205+C224+C243+C262+C281+C300+C319+C338+C357+C376+C395,"") -> 3751800 | D14: 602200 | E14: 288000 | F14: =IFERROR(F33+F52+F71+F90+F109+F128+F147+F166+F185+F204+F223+F242+F261+F280+F299+F318+F337+F356+F375+F394,"") -> 
A16: Virksomhedsnavn: | B16: Lille grøn virksomhed | C16: Hovedansøger | D16: Virksomhedsstørrelse: | E16: Lille virksomhed
A17: Aktivitetstype: | B17: Udvikling | D17: Max mulig GUDP tilskudsprocent: | E17: =IF(G19<0,"Anden offentlig støtte overstiger GUDP max tilskudsbeløb",_xlfn.IFNA(VLOOKUP(B17,'Liste over tilskudsprocenter'!$A:$K,MATCH(CONCATENATE(E16," - ",$H$1),'Liste over tilskudsprocenter'!$A$1:$K$1,0),FALSE),"")) -> 0.6 | F17: Nedskrevet GUDP tilskudsprocent pga. anden offentlig støtte el. egen- og privat finansiering: | G17: =IFERROR(IF(G19<0,"Anden offentlig støtte overstiger GUDP max tilskudsbeløb",IF(G19=E19,"",G19)),"") ->  | H17: =IF(E16="",0,IF(LEFT(E16,9)="Offentlig",B30*0.44,B23*0.3)) -> 255000
D18: Max mulig GUDP tilsagnsbeløb: | E18: =IFERROR(VLOOKUP(B17,'Liste over tilskudsprocenter'!$A:$K,MATCH(CONCATENATE(E16," - ",$H$1),'Liste over tilskudsprocenter'!$A$1:$K$1,0),FALSE)*B32,"") -> 772800 | F18: Nedskrevet GUDP tilskudsbeløb pga. anden offentlig støtte el. egen- og privat finansiering: | G18: =IFERROR(B32*G17,"") -> 
A19: OH-procentsats | B19: =IF(E16="","",IF(E16="Offentlig forsknings- og vidensformidlingsorganisation",0.44,IF(E16="Privat forsknings- og vidensformidlingsorganisation",0.44,0.3))) -> 0.3 | E19: =_xlfn.IFNA(VLOOKUP(B17,'Liste over tilskudsprocenter'!$A:$K,MATCH(CONCATENATE(E16," - ",$H$1),'Liste over tilskudsprocenter'!$A$1:$K$1,0),FALSE),"") -> 0.6 | G19: =IFERROR(IF(B32*(1-E19)-E33<0,E19-((B32*E19+E33)-B32)/B32,""),"") -> 
A20: OH-rest beløb | B20: =IF(E16="","",IF(OR(LEFT(E16,9)="Offentlig",LEFT(E16,6)="Privat"),B30*0.44-B31,B23*0.3-B31)) -> 0
O21: GUDP tilskudsats | P21: GUDP nedsat tilskudssats | Q21: Beløb, der bruges til "Heraf GUDP"
A22: =IF(B32>0,"Ja","") -> Ja | B22: Omkostninger | C22: Heraf GUDP | D22: Heraf egen-og privat finansiering | E22: Heraf anden offentlig støtte - manuel | F22: Antal timer | I22: Specifikation af delbudget:
A23: Lønomkostninger | B23: 850000 | C23: =IFERROR(IF(B23=0,0,Q23),0) -> 510000 | D23: =IFERROR(B23-C23,0) -> 340000 | F23: 2730 | H23: =IF($E$51<>"Offentlig forsknings- og vidensformidlingsorganisation",0,IF(B23="",0,B23)) -> 0 | O23: =IF(B23=0,0,B23*E19) -> 510000 | P23: =IFERROR(IF(G19=0,0,B23*G19),0) -> 0 | Q23: =IF(P23=0,O23,IFERROR(IF(P23=0,0,P23),0)) -> 510000
A24: Ekstern bistand | B24: 30000 | C24: =IFERROR(IF(B24=0,0,Q24),0) -> 18000 | D24: =IFERROR(B24-C24,0) -> 12000 | H24: 0 | O24: =IF(B24=0,0,B24*E19) -> 18000 | P24: =IFERROR(IF(G19=0,0,B24*G19),0) -> 0 | Q24: 18000
A25: Øvrige omkostninger | B25: 100000 | C25: 60000 | D25: 40000 | H25: 0 | O25: =IF(B25=0,0,B25*E19) -> 60000 | P25: =IFERROR(IF(G19=0,0,B25*G19),0) -> 0 | Q25: 60000
A26: Apparatur/udstyr | B26: 50000 | C26: 30000 | D26: 20000 | H26: 0 | O26: =IF(B26=0,0,B26*E19) -> 30000 | P26: =IFERROR(IF(G19=0,0,B26*G19),0) -> 0 | Q26: 30000
A27: Scrap-værdi | B27: -10000 | C27: -6000 | D27: -4000 | H27: 0 | O27: =IF(B27=0,0,B27*E19) -> -6000 | P27: =IFERROR(IF(G19=0,0,B27*G19),0) -> 0 | Q27: -6000
A28: Evt. indtægter | B28: -5000 | C28: -3000 | D28: -2000 | H28: 0 | O28: =IF(B28=0,0,B28*E19) -> -3000 | P28: =IFERROR(IF(G19=0,0,B28*G19),0) -> 0 | Q28: -3000
A29: Revision | B29: 18000 | C29: 10800 | D29: 7200 | H29: 0 | O29: =IF(B29=0,0,B29*E19) -> 10800 | P29: =IFERROR(IF(G19=0,0,B29*G19),0) -> 0 | Q29: 10800
A30: I alt uden OH | B30: =SUM(B23:B29) -> 1033000 | C30: =SUM(C23:C29) -> 619800 | D30: =SUM(D23:D29) -> 413200 | F30: =SUM(F23:F29) -> 2730 | H30: 0 | O30: =IF(B30=0,0,B30*E19) -> 619800 | P30: =IFERROR(IF(G19=0,0,B30*G19),0) -> 0 | Q30: 619800
A31: OH | B31: 255000 | C31: =IFERROR(IF(B31=0,0,Q31),0) -> 153000 | D31: =IFERROR(B31-C31,0) -> 102000 | H31: 0 | O31: =IF(B31=0,0,B31*E19) -> 153000 | P31: =IFERROR(IF(G19=0,0,B31*G19),0) -> 0 | Q31: 153000
A32: I alt | B32: =SUM(B23:B29)+B31 -> 1288000 | C32: =SUM(C23:C29)+C31 -> 772800 | D32: =SUM(D23:D29)+D31 -> 515200 | F32: =SUM(F23:F29)+F31 -> 2730 | H32: 0
A33: Finansiering i alt | B33: =IF(ISBLANK(E33),"",B32) ->  | C33: =IF(ISBLANK(E33),"",C32) ->  | D33: =IF(ISBLANK(E33),"",IF(D32-E33<0,0,D32-E33)) ->  | F33: =IF(ISBLANK(E33),"",F32) ->  | O33: =IF(B34=0,0,B34*E35) ->  | P33: =IFERROR(IF(G35=0,0,B34*G35),0) -> 0 | Q33: =IF(P33=0,O33,IFERROR(IF(P33=0,0,P33),0)) -> 
B34: =IF(NOT(ISNUMBER(B33)),B32,IF(B33=B32,B32,B33)) -> 1288000 | C34: =IF(NOT(ISNUMBER(C33)),C32,IF(C33=C32,C32,C33)) -> 772800 | D34: 515200 | E34: 0
A35: Virksomhedsnavn: | B35: Lille grøn virksomhed | C35: Deltager 2 | D35: Virksomhedsstørrelse: | E35: Lille virksomhed
A36: Aktivitetstype: | B36: Demonstration | D36: Max mulig GUDP tilskudsprocent: | E36: =IF(G38<0,"Anden offentlig støtte overstiger GUDP max tilskudsbeløb",_xlfn.IFNA(VLOOKUP(B36,'Liste over tilskudsprocenter'!$A:$K,MATCH(CONCATENATE(E35," - ",$H$1),'Liste over tilskudsprocenter'!$A$1:$K$1,0),FALSE),"")) -> 0.7 | F36: Nedskrevet GUDP tilskudsprocent pga. anden offentlig støtte el. egen- og privat finansiering: | G36: =IFERROR(IF(G38<0,"Anden offentlig støtte overstiger GUDP max tilskudsbeløb",IF(G38=E38,"",G38)),"") ->  | H36: =IF(E35="",0,IF(LEFT(E35,9)="Offentlig",B49*0.44,B42*0.3)) -> 30000
D37: Max mulig GUDP tilsagnsbeløb: | E37: =IFERROR(VLOOKUP(B36,'Liste over tilskudsprocenter'!$A:$K,MATCH(CONCATENATE(E35," - ",$H$1),'Liste over tilskudsprocenter'!$A$1:$K$1,0),FALSE)*B51,"") -> 138600 | F37: Nedskrevet GUDP tilskudsbeløb pga. anden offentlig støtte el. egen- og privat finansiering: | G37: =IFERROR(B51*G36,"") -> 
A38: OH-procentsats | B38: =IF(E35="","",IF(E35="Offentlig forsknings- og vidensformidlingsorganisation",0.44,IF(E35="Privat forsknings- og vidensformidlingsorganisation",0.44,0.3))) -> 0.3 | E38: =_xlfn.IFNA(VLOOKUP(B36,'Liste over tilskudsprocenter'!$A:$K,MATCH(CONCATENATE(E35," - ",$H$1),'Liste over tilskudsprocenter'!$A$1:$K$1,0),FALSE),"") -> 0.7 | G38: =IFERROR(IF(B51*(1-E38)-E52<0,E38-((B51*E38+E52)-B51)/B51,""),"") -> 
A39: OH-rest beløb | B39: =IF(E35="","",IF(OR(LEFT(E35,9)="Offentlig",LEFT(E35,6)="Privat"),B49*0.44-B50,B42*0.3-B50)) -> 0
O40: GUDP tilskudsats | P40: GUDP nedsat tilskudssats | Q40: Beløb, der bruges til "Heraf GUDP"
A41: =IF(B51>0,"Ja","") -> Ja | B41: Omkostninger | C41: Heraf GUDP | D41: Heraf egen-og privat finansiering | E41: Heraf anden offentlig støtte - manuel | F41: Antal timer | I41: Specifikation af delbudget:
A42: Lønomkostninger | B42: 100000 | C42: =IFERROR(IF(B42=0,0,Q42),0) -> 70000 | D42: =IFERROR(B42-C42,0) -> 30000 | F42: 313 | H42: =IF($E$51<>"Offentlig forsknings- og vidensformidlingsorganisation",0,IF(B42="",0,B42)) -> 0 | O42: =IF(B42=0,0,B42*E38) -> 70000 | P42: =IFERROR(IF(G38=0,0,B42*G38),0) -> 0 | Q42: =IF(P42=0,O42,IFERROR(IF(P42=0,0,P42),0)) -> 70000
A43: Ekstern bistand | C43: =IFERROR(IF(B43=0,0,Q43),0) -> 0 | D43: =IFERROR(B43-C43,0) -> 0 | H43: 0 | O43: =IF(B43=0,0,B43*E38) -> 0 | P43: =IFERROR(IF(G38=0,0,B43*G38),0) -> 0 | Q43: 0
A44: Øvrige omkostninger | B44: 50000 | C44: 35000 | D44: 15000 | H44: 0 | O44: =IF(B44=0,0,B44*E38) -> 35000 | P44: =IFERROR(IF(G38=0,0,B44*G38),0) -> 0 | Q44: 35000
A45: Apparatur/udstyr | C45: 0 | D45: 0 | H45: 0 | O45: =IF(B45=0,0,B45*E38) -> 0 | P45: =IFERROR(IF(G38=0,0,B45*G38),0) -> 0 | Q45: 0
A46: Scrap-værdi | C46: 0 | D46: 0 | H46: 0 | O46: =IF(B46=0,0,B46*E38) -> 0 | P46: =IFERROR(IF(G38=0,0,B46*G38),0) -> 0 | Q46: 0
A47: Evt. indtægter | C47: 0 | D47: 0 | H47: 0 | O47: =IF(B47=0,0,B47*E38) -> 0 | P47: =IFERROR(IF(G38=0,0,B47*G38),0) -> 0 | Q47: 0
A48: Revision | B48: 18000 | C48: 12600 | D48: 5400 | H48: 0 | O48: =IF(B48=0,0,B48*E38) -> 12600 | P48: =IFERROR(IF(G38=0,0,B48*G38),0) -> 0 | Q48: 12600
A49: I alt uden OH | B49: =SUM(B42:B48) -> 168000 | C49: =SUM(C42:C48) -> 117600 | D49: =SUM(D42:D48) -> 50400 | F49: =SUM(F42:F48) -> 313 | H49: 0 | O49: =IF(B49=0,0,B49*E38) -> 117600 | P49: =IFERROR(IF(G38=0,0,B49*G38),0) -> 0 | Q49: 117600
A50: OH | B50: 30000 | C50: =IFERROR(IF(B50=0,0,Q50),0) -> 21000 | D50: =IFERROR(B50-C50,0) -> 9000 | H50: 0 | O50: =IF(B50=0,0,B50*E38) -> 21000 | P50: =IFERROR(IF(G38=0,0,B50*G38),0) -> 0 | Q50: 21000
A51: I alt | B51: =SUM(B42:B48)+B50 -> 198000 | C51: =SUM(C42:C48)+C50 -> 138600 | D51: =SUM(D42:D48)+D50 -> 59400 | F51: =SUM(F42:F48)+F50 -> 313 | H51: 0
A52: Finansiering i alt | B52: =IF(ISBLANK(E52),"",B51) ->  | C52: =IF(ISBLANK(E52),"",C51) ->  | D52: =IF(ISBLANK(E52),"",IF(D51-E52<0,0,D51-E52)) ->  | F52: =IF(ISBLANK(E52),"",F51) ->  | O52: =IF(B53=0,0,B53*E57) -> 178200 | P52: =IFERROR(IF(G57=0,0,B53*G57),0) -> 178200 | Q52: =IF(P52=0,O52,IFERROR(IF(P52=0,0,P52),0)) -> 178200
B53: =IF(NOT(ISNUMBER(B52)),B51,IF(B52=B51,B51,B52)) -> 198000 | C53: =IF(NOT(ISNUMBER(C52)),C51,IF(C52=C51,C51,C52)) -> 138600 | D53: 59400 | E53: 0
A54: Virksomhedsnavn: | B54: Grønt universitet | C54: Deltager 3 | D54: Virksomhedsstørrelse: | E54: Offentlig forsknings- og vidensformidlingsorganisation
A55: Aktivitetstype: | B55: Anvendt forskning | D55: Max mulig GUDP tilskudsprocent: | E55: =IF(G57<0,"Anden offentlig støtte overstiger GUDP max tilskudsbeløb",_xlfn.IFNA(VLOOKUP(B55,'Liste over tilskudsprocenter'!$A:$K,MATCH(CONCATENATE(E54," - ",$H$1),'Liste over tilskudsprocenter'!$A$1:$K$1,0),FALSE),"")) -> 0.9 | F55: Nedskrevet GUDP tilskudsprocent pga. anden offentlig støtte el. egen- og privat finansiering: | G55: =IFERROR(IF(G57<0,"Anden offentlig støtte overstiger GUDP max tilskudsbeløb",IF(G57=E57,"",G57)),"") ->  | H55: =IF(E54="",0,IF(LEFT(E54,9)="Offentlig",B68*0.44,B61*0.3)) -> 880000
D56: Max mulig GUDP tilsagnsbeløb: | E56: =IFERROR(VLOOKUP(B55,'Liste over tilskudsprocenter'!$A:$K,MATCH(CONCATENATE(E54," - ",$H$1),'Liste over tilskudsprocenter'!$A$1:$K$1,0),FALSE)*B70,"") -> 2592000 | F56: Nedskrevet GUDP tilskudsbeløb pga. anden offentlig støtte el. egen- og privat finansiering: | G56: =IFERROR(B70*G55,"") -> 
A57: OH-procentsats | B57: =IF(E54="","",IF(E54="Offentlig forsknings- og vidensformidlingsorganisation",0.44,IF(E54="Privat forsknings- og vidensformidlingsorganisation",0.44,0.3))) -> 0.44 | E57: =_xlfn.IFNA(VLOOKUP(B55,'Liste over tilskudsprocenter'!$A:$K,MATCH(CONCATENATE(E54," - ",$H$1),'Liste over tilskudsprocenter'!$A$1:$K$1,0),FALSE),"") -> 0.9 | G57: =IFERROR(IF(B70*(1-E57)-D71-E71<0,E57-((B70*E57+E71+D71)-B70)/B70,""),"") -> 0.9
A58: OH-rest beløb | B58: =IF(E54="","",IF(OR(LEFT(E54,9)="Offentlig",LEFT(E54,6)="Privat"),B68*0.44-B69,B61*0.3-B69)) -> 0
O59: GUDP tilskudsats | P59: GUDP nedsat tilskudssats | Q59: Beløb, der bruges til "Heraf GUDP"
A60: =IF(B70>0,"Ja","") -> Ja | B60: Omkostninger | C60: Heraf GUDP | D60: Heraf egen-og privat finansiering | E60: Heraf anden offentlig støtte - manuel | F60: Antal timer | I60: Specifikation af delbudget:
A61: Lønomkostninger | B61: 1750000 | C61: =IFERROR(IF(B61=0,0,Q61),0) -> 1575000 | D61: =IFERROR(B61-C61,0) -> 175000 | F61: 4200 | H61: =IF($E$51<>"Offentlig forsknings- og vidensformidlingsorganisation",0,IF(B61="",0,B61)) -> 0 | O61: =IF(B61=0,0,B61*E57) -> 1575000 | P61: =IFERROR(IF(NOT(ISNUMBER(G57)),"",IF(G57<0,0,B61*G57)),0) -> 1575000 | Q61: =IF(NOT(ISNUMBER(P61)),O61,IF(P61<=0,0,P61)) -> 1575000
A62: Ekstern bistand | C62: =IFERROR(IF(B62=0,0,Q62),0) -> 0 | D62: =IFERROR(B62-C62,0) -> 0 | H62: 0 | O62: =IF(B62=0,0,B62*E57) -> 0 | P62: =IFERROR(IF(NOT(ISNUMBER(G57)),"",IF(G57<0,0,B62*G57)),0) -> 0 | Q62: =IF(NOT(ISNUMBER(P62)),O62,IF(P62<=0,0,P62)) -> 0
A63: Øvrige omkostninger | B63: 250000 | C63: 225000 | D63: 25000 | H63: 0 | O63: =IF(B63=0,0,B63*E57) -> 225000 | P63: =IFERROR(IF(NOT(ISNUMBER(G57)),"",IF(G57<0,0,B63*G57)),0) -> 225000 | Q63: 225000
A64: Apparatur/udstyr | C64: 0 | D64: 0 | H64: 0 | O64: =IF(B64=0,0,B64*E57) -> 0 | P64: =IFERROR(IF(NOT(ISNUMBER(G57)),"",IF(G57<0,0,B64*G57)),0) -> 0 | Q64: 0
A65: Scrap-værdi | C65: 0 | D65: 0 | H65: 0 | O65: =IF(B65=0,0,B65*E57) -> 0 | P65: =IFERROR(IF(NOT(ISNUMBER(G57)),"",IF(G57<0,0,B65*G57)),0) -> 0 | Q65: 0
A66: Evt. indtægter | C66: 0 | D66: 0 | H66: 0 | O66: =IF(B66=0,0,B66*E57) -> 0 | P66: =IFERROR(IF(NOT(ISNUMBER(G57)),"",IF(G57<0,0,B66*G57)),0) -> 0 | Q66: 0
A67: Revision | C67: 0 | D67: 0 | H67: 0 | O67: =IF(B67=0,0,B67*E57) -> 0 | P67: =IFERROR(IF(NOT(ISNUMBER(G57)),"",IF(G57<0,0,B67*G57)),0) -> 0 | Q67: 0
A68: I alt uden OH | B68: =SUM(B61:B67) -> 2000000 | C68: =SUM(C61:C67) -> 1800000 | D68: =SUM(D61:D67) -> 200000 | F68: =SUM(F61:F67) -> 4200 | H68: 0 | O68: =IF(B68=0,0,B68*E57) -> 1800000 | P68: =IFERROR(IF(NOT(ISNUMBER(G57)),"",IF(G57<0,0,B68*G57)),0) -> 1800000 | Q68: 1800000
A69: OH | B69: =SUM(B61:B67)*0.44 -> 880000 | C69: =IFERROR(IF(B69=0,0,Q69),0) -> 792000 | D69: =IFERROR(B69-C69,0) -> 88000 | H69: 0 | O69: =IF(B69=0,0,B69*E57) -> 792000 | P69: =IFERROR(IF(NOT(ISNUMBER(G57)),"",IF(G57<0,0,B69*G57)),0) -> 792000 | Q69: 792000
A70: I alt | B70: =SUM(B61:B67)+B69 -> 2880000 | C70: =SUM(C61:C67)+C69 -> 2592000 | D70: =IF(SUM(D61:D67)+D69-SUM(D71:E71)<=0,0,SUM(D61:D67)+D69-SUM(D71:E71)) -> 0 | F70: =SUM(F61:F67)+F69 -> 4200 | H70: 0 | P70: =IFERROR(IF(NOT(ISNUMBER(G57)),"",IF(G57<0,0,B70*G57)),0) -> 2592000 | Q70: 2592000
A71: Finansiering i alt | B71: =IF(ISBLANK(E71),"",B70) -> 2880000 | C71: =IF(ISBLANK(E71),"",C70) -> 2592000 | E71: 288000 | F71: =IF(ISBLANK(E71),"",F70) -> 4200 | O71: =IF(B72=0,0,B72*E76) -> 2592000 | P71: =IFERROR(IF(NOT(ISNUMBER(G57)),"",IF(G57<0,0,B71*G57)),0) -> 2592000 | Q71: 2592000
B72: =IF(NOT(ISNUMBER(B71)),B70,IF(B71=B70,B70,B71)) -> 2880000 | C72: =IF(NOT(ISNUMBER(C71)),C70,IF(C71=C70,C70,C71)) -> 2592000 | D72: =IF(NOT(ISNUMBER(D71)),D70,IF(D71=D70,D70,D71)) -> 0 | E72: 288000
A73: Virksomhedsnavn: | B73: Grøn Vidensinstitution | C73: Deltager 4 | D73: Virksomhedsstørrelse: | E73: Privat forsknings- og vidensformidlingsorganisation
A74: Aktivitetstype: | B74: Udvikling | D74: Max mulig GUDP tilskudsprocent: | E74: =IF(G76<0,"Anden offentlig støtte overstiger GUDP max tilskudsbeløb",_xlfn.IFNA(VLOOKUP(B74,'Liste over tilskudsprocenter'!$A:$K,MATCH(CONCATENATE(E73," - ",$H$1),'Liste over tilskudsprocenter'!$A$1:$K$1,0),FALSE),"")) -> 0.9 | F74: Nedskrevet GUDP tilskudsprocent pga. anden offentlig støtte el. egen- og privat finansiering: | G74: =IFERROR(IF(G76<0,"Anden offentlig støtte overstiger GUDP max tilskudsbeløb",IF(G76=E76,"",G76)),"") ->  | H74: =IF(E73="",0,IF(LEFT(E73,9)="Offentlig",B87*0.44,B80*0.3)) -> 60000
D75: Max mulig GUDP tilsagnsbeløb: | E75: =IFERROR(VLOOKUP(B74,'Liste over tilskudsprocenter'!$A:$K,MATCH(CONCATENATE(E73," - ",$H$1),'Liste over tilskudsprocenter'!$A$1:$K$1,0),FALSE)*B89,"") -> 248400 | F75: Nedskrevet GUDP tilskudsbeløb pga. anden offentlig støtte el. egen- og privat finansiering: | G75: =IFERROR(B89*G74,"") -> 
A76: OH-procentsats | B76: =IF(E73="","",IF(E73="Offentlig forsknings- og vidensformidlingsorganisation",0.44,IF(E73="Privat forsknings- og vidensformidlingsorganisation",0.44,0.3))) -> 0.44 | E76: =_xlfn.IFNA(VLOOKUP(B74,'Liste over tilskudsprocenter'!$A:$K,MATCH(CONCATENATE(E73," - ",$H$1),'Liste over tilskudsprocenter'!$A$1:$K$1,0),FALSE),"") -> 0.9 | G76: =IFERROR(IF(B89*(1-E76)-E90<0,E76-((B89*E76+E90)-B89)/B89,""),"") -> 
A77: OH-rest beløb | B77: =IF(E73="","",IF(OR(LEFT(E73,9)="Offentlig",LEFT(E73,6)="Privat"),B87*0.44-B88,B80*0.3-B88)) -> 35040
O78: GUDP tilskudsats | P78: GUDP nedsat tilskudssats | Q78: Beløb, der bruges til "Heraf GUDP"
A79: =IF(B89>0,"Ja","") -> Ja | B79: Omkostninger | C79: Heraf GUDP | D79: Heraf egen-og privat finansiering | E79: Heraf anden offentlig støtte - manuel | F79: Antal timer | I79: Specifikation af delbudget:
A80: Lønomkostninger | B80: 200000 | C80: =IFERROR(IF(B80=0,0,Q80),0) -> 180000 | D80: =IFERROR(B80-C80,0) -> 20000 | F80: 526 | H80: =IF($E$51<>"Offentlig forsknings- og vidensformidlingsorganisation",0,IF(B80="",0,B80)) -> 0 | O80: =IF(B80=0,0,B80*E76) -> 180000 | P80: =IFERROR(IF(G76=0,0,B80*G76),0) -> 0 | Q80: =IF(P80=0,O80,IFERROR(IF(P80=0,0,P80),0)) -> 180000
A81: Ekstern bistand | C81: =IFERROR(IF(B81=0,0,Q81),0) -> 0 | D81: =IFERROR(B81-C81,0) -> 0 | H81: 0 | O81: =IF(B81=0,0,B81*E76) -> 0 | P81: =IFERROR(IF(G76=0,0,B81*G76),0) -> 0 | Q81: 0
A82: Øvrige omkostninger | C82: 0 | D82: 0 | H82: 0 | O82: =IF(B82=0,0,B82*E76) -> 0 | P82: =IFERROR(IF(G76=0,0,B82*G76),0) -> 0 | Q82: 0
A83: Apparatur/udstyr | C83: 0 | D83: 0 | H83: 0 | O83: =IF(B83=0,0,B83*E76) -> 0 | P83: =IFERROR(IF(G76=0,0,B83*G76),0) -> 0 | Q83: 0
A84: Scrap-værdi | C84: 0 | D84: 0 | H84: 0 | O84: =IF(B84=0,0,B84*E76) -> 0 | P84: =IFERROR(IF(G76=0,0,B84*G76),0) -> 0 | Q84: 0
A85: Evt. indtægter | C85: 0 | D85: 0 | H85: 0 | O85: =IF(B85=0,0,B85*E76) -> 0 | P85: =IFERROR(IF(G76=0,0,B85*G76),0) -> 0 | Q85: 0
A86: Revision | B86: 16000 | C86: 14400 | D86: 1600 | H86: 0 | O86: =IF(B86=0,0,B86*E76) -> 14400 | P86: =IFERROR(IF(G76=0,0,B86*G76),0) -> 0 | Q86: 14400
A87: I alt uden OH | B87: =SUM(B80:B86) -> 216000 | C87: =SUM(C80:C86) -> 194400 | D87: =SUM(D80:D86) -> 21600 | F87: =SUM(F80:F86) -> 526 | H87: 0 | O87: =IF(B87=0,0,B87*E76) -> 194400 | P87: =IFERROR(IF(G76=0,0,B87*G76),0) -> 0 | Q87: 194400
A88: OH | B88: 60000 | C88: =IFERROR(IF(B88=0,0,Q88),0) -> 54000 | D88: =IFERROR(B88-C88,0) -> 6000 | H88: 0 | O88: =IF(B88=0,0,B88*E76) -> 54000 | P88: =IFERROR(IF(G76=0,0,B88*G76),0) -> 0 | Q88: 54000
A89: I alt | B89: =SUM(B80:B86)+B88 -> 276000 | C89: =SUM(C80:C86)+C88 -> 248400 | D89: =SUM(D80:D86)+D88 -> 27600 | F89: =SUM(F80:F86)+F88 -> 526 | H89: 0
A90: Finansiering i alt | B90: =IF(ISBLANK(E90),"",B89) ->  | C90: =IF(ISBLANK(E90),"",C89) ->  | D90: =IF(ISBLANK(E90),"",IF(D89-E90<0,0,D89-E90)) ->  | F90: =IF(ISBLANK(E90),"",F89) ->  | O90: =IF(B91=0,0,B91*E95) ->  | P90: =IFERROR(IF(G95=0,0,B91*G95),0) -> 0 | Q90: =IF(P90=0,O90,IFERROR(IF(P90=0,0,P90),0)) -> 
B91: =IF(NOT(ISNUMBER(B90)),B89,IF(B90=B89,B89,B90)) -> 276000 | C91: =IF(NOT(ISNUMBER(C90)),C89,IF(C90=C89,C89,C90)) -> 248400 | D91: 27600 | E91: 0
A92: Virksomhedsnavn: | C92: Deltager 5 | D92: Virksomhedsstørrelse:
A93: Aktivitetstype: | D93: Max mulig GUDP tilskudsprocent: | E93: =IF(G95<0,"Anden offentlig støtte overstiger GUDP max tilskudsbeløb",_xlfn.IFNA(VLOOKUP(B93,'[1]Liste over tilskudsprocenter'!$A:$K,MATCH(CONCATENATE(E92," - ",$H$1),'[1]Liste over tilskudsprocenter'!$A$1:$K$1,0),FALSE),"")) ->  | F93: Nedskrevet GUDP tilskudsprocent pga. anden offentlig støtte el. egen- og privat finansiering: | G93: =IFERROR(IF(G95<0,"Anden offentlig støtte overstiger GUDP max tilskudsbeløb",G95),"") ->  | H93: =IF(E92="",0,IF(LEFT(E92,9)="Offentlig",B106*0.44,B99*0.3)) -> 0
D94: Max mulig GUDP tilsagnsbeløb: | E94: =IFERROR(VLOOKUP(B93,'[1]Liste over tilskudsprocenter'!$A:$K,MATCH(CONCATENATE(E92," - ",$H$1),'[1]Liste over tilskudsprocenter'!$A$1:$K$1,0),FALSE)*B108,"") ->  | F94: Nedskrevet GUDP tilskudsbeløb pga. anden offentlig støtte el. egen- og privat finansiering: | G94: =IFERROR(B108*G93,"") -> 
A95: OH-procentsats | B95: =IF(E92="","",IF(E92="Offentlig forsknings- og vidensformidlingsorganisation",0.44,IF(E92="Privat forsknings- og vidensformidlingsorganisation",0.44,0.3))) ->  | E95: =_xlfn.IFNA(VLOOKUP(B93,'[1]Liste over tilskudsprocenter'!$A:$K,MATCH(CONCATENATE(E92," - ",$H$1),'[1]Liste over tilskudsprocenter'!$A$1:$K$1,0),FALSE),"") ->  | G95: =IFERROR(IF(B108*(1-E95)-E109<=0,E95-((B108*E95+E109)-B108)/B108,""),"") -> 
A96: OH-rest beløb | B96: =IF(E92="","",IF(OR(LEFT(E92,9)="Offentlig",LEFT(E92,6)="Privat"),B106*0.44-B107,B99*0.3-B107)) -> 
O97: GUDP tilskudsats | P97: GUDP nedsat tilskudssats | Q97: Beløb, der bruges til "Heraf GUDP"
A98: =IF(B108>0,"Ja","") ->  | B98: Omkostninger | C98: Heraf GUDP | D98: Heraf egen-og privat finansiering | E98: Heraf anden offentlig støtte - manuel | F98: Antal timer | I98: Specifikation af delbudget:
A99: Lønomkostninger | C99: =IF(OR(B99=0,Q99<0),0,Q99) -> 0 | D99: =IFERROR(B99-C99,0) -> 0 | H99: =IF($E$51<>"Offentlig forsknings- og vidensformidlingsorganisation",0,IF(B99="",0,B99)) -> 0 | O99: =IF(B99=0,0,B99*E95) -> 0 | P99: =IFERROR(IF(G95=0,0,B99*G95),0) -> 0 | Q99: =IF(P99=0,O99,IFERROR(IF(P99=0,0,P99),0)) -> 0
A100: Ekstern bistand | C100: =IF(OR(B100=0,Q100<0),0,Q100) -> 0 | D100: =IFERROR(B100-C100,0) -> 0 | H100: 0 | O100: =IF(B100=0,0,B100*E95) -> 0 | P100: =IFERROR(IF(G95=0,0,B100*G95),0) -> 0 | Q100: 0
A101: Øvrige omkostninger | C101: 0 | D101: 0 | H101: 0 | O101: =IF(B101=0,0,B101*E95) -> 0 | P101: =IFERROR(IF(G95=0,0,B101*G95),0) -> 0 | Q101: 0
A102: Apparatur/udstyr | C102: 0 | D102: 0 | H102: 0 | O102: =IF(B102=0,0,B102*E95) -> 0 | P102: =IFERROR(IF(G95=0,0,B102*G95),0) -> 0 | Q102: 0
A103: Scrap-værdi | C103: 0 | D103: 0 | H103: 0 | O103: =IF(B103=0,0,B103*E95) -> 0 | P103: =IFERROR(IF(G95=0,0,B103*G95),0) -> 0 | Q103: 0
A104: Evt. indtægter | C104: 0 | D104: 0 | H104: 0 | O104: =IF(B104=0,0,B104*E95) -> 0 | P104: =IFERROR(IF(G95=0,0,B104*G95),0) -> 0 | Q104: 0
A105: Revision | C105: 0 | D105: 0 | H105: 0 | O105: =IF(B105=0,0,B105*E95) -> 0 | P105: =IFERROR(IF(G95=0,0,B105*G95),0) -> 0 | Q105: 0
A106: I alt uden OH | B106: =SUM(B99:B105) -> 0 | C106: =SUM(C99:C105) -> 0 | D106: =SUM(D99:D105) -> 0 | F106: =SUM(F99:F105) -> 0 | H106: 0 | O106: =IF(B106=0,0,B106*E95) -> 0 | P106: =IFERROR(IF(G95=0,0,B106*G95),0) -> 0 | Q106: 0
A107: OH | C107: =IF(OR(B107=0,Q107<0),0,Q107) -> 0 | D107: =IFERROR(B107-C107,0) -> 0 | H107: 0 | O107: =IF(B107=0,0,B107*E95) -> 0 | P107: =IFERROR(IF(G95=0,0,B107*G95),0) -> 0 | Q107: 0
A108: I alt | B108: =SUM(B99:B105)+B107 -> 0 | C108: =SUM(C99:C105)+C107 -> 0 | D108: =SUM(D99:D105)+D107 -> 0 | F108: =SUM(F99:F105)+F107 -> 0 | H108: 0
A109: Finansiering i alt | B109: =IF(ISBLANK(E109),"",B108) ->  | C109: =IF(ISBLANK(E109),"",C108) ->  | D109: =IF(ISBLANK(E109),"",IF(D108-E109<0,0,D108-E109)) ->  | F109: =IF(ISBLANK(E109),"",F108) ->  | O109: =IF(B110=0,0,B110*E114) -> 0 | P109: =IFERROR(IF(G114=0,0,B110*G114),0) -> 0 | Q109: =IF(P109=0,O109,IFERROR(IF(P109=0,0,P109),0)) -> 0
B110: =IF(NOT(ISNUMBER(B109)),B108,IF(B109=B108,B108,B109)) -> 0 | C110: =IF(NOT(ISNUMBER(C109)),C108,IF(C109=C108,C108,C109)) -> 0 | D110: 0 | E110: 0
A111: Virksomhedsnavn: | C111: Deltager 6 | D111: Virksomhedsstørrelse:
A112: Aktivitetstype: | D112: Max mulig GUDP tilskudsprocent: | E112: =IF(G114<0,"Anden offentlig støtte overstiger GUDP max tilskudsbeløb",_xlfn.IFNA(VLOOKUP(B112,'[1]Liste over tilskudsprocenter'!$A:$K,MATCH(CONCATENATE(E111," - ",$H$1),'[1]Liste over tilskudsprocenter'!$A$1:$K$1,0),FALSE),"")) ->  | F112: Nedskrevet GUDP tilskudsprocent pga. anden offentlig støtte el. egen- og privat finansiering: | G112: =IFERROR(IF(G114<0,"Anden offentlig støtte overstiger GUDP max tilskudsbeløb",G114),"") ->  | H112: =IF(E111="",0,IF(LEFT(E111,9)="Offentlig",B125*0.44,B118*0.3)) -> 0
D113: Max mulig GUDP tilsagnsbeløb: | E113: =IFERROR(VLOOKUP(B112,'[1]Liste over tilskudsprocenter'!$A:$K,MATCH(CONCATENATE(E111," - ",$H$1),'[1]Liste over tilskudsprocenter'!$A$1:$K$1,0),FALSE)*B127,"") ->  | F113: Nedskrevet GUDP tilskudsbeløb pga. anden offentlig støtte el. egen- og privat finansiering: | G113: =IFERROR(B127*G112,"") -> 
A114: OH-procentsats | B114: =IF(E111="","",IF(E111="Offentlig forsknings- og vidensformidlingsorganisation",0.44,IF(E111="Privat forsknings- og vidensformidlingsorganisation",0.44,0.3))) ->  | E114: =_xlfn.IFNA(VLOOKUP(B112,'[1]Liste over tilskudsprocenter'!$A:$K,MATCH(CONCATENATE(E111," - ",$H$1),'[1]Liste over tilskudsprocenter'!$A$1:$K$1,0),FALSE),"") ->  | G114: =IFERROR(IF(B127*(1-E114)-E128<=0,E114-((B127*E114+E128)-B127)/B127,""),"") -> 
A115: OH-rest beløb | B115: =IF(E111="","",IF(OR(LEFT(E111,9)="Offentlig",LEFT(E111,6)="Privat"),B125*0.44-B126,B118*0.3-B126)) -> 
O116: GUDP tilskudsats | P116: GUDP nedsat tilskudssats | Q116: Beløb, der bruges til "Heraf GUDP"
A117: =IF(B127>0,"Ja","") ->  | B117: Omkostninger | C117: Heraf GUDP | D117: Heraf egen-og privat finansiering | E117: Heraf anden offentlig støtte - manuel | F117: Antal timer | I117: Specifikation af delbudget:
A118: Lønomkostninger | C118: =IF(OR(B118=0,Q118<0),0,Q118) -> 0 | D118: =IFERROR(B118-C118,0) -> 0 | H118: =IF($E$51<>"Offentlig forsknings- og vidensformidlingsorganisation",0,IF(B118="",0,B118)) -> 0 | O118: =IF(B118=0,0,B118*E114) -> 0 | P118: =IFERROR(IF(G114=0,0,B118*G114),0) -> 0 | Q118: =IF(P118=0,O118,IFERROR(IF(P118=0,0,P118),0)) -> 0
A119: Ekstern bistand | C119: =IF(OR(B119=0,Q119<0),0,Q119) -> 0 | D119: =IFERROR(B119-C119,0) -> 0 | H119: 0 | O119: =IF(B119=0,0,B119*E114) -> 0 | P119: =IFERROR(IF(G114=0,0,B119*G114),0) -> 0 | Q119: 0
A120: Øvrige omkostninger | C120: 0 | D120: 0 | H120: 0 | O120: =IF(B120=0,0,B120*E114) -> 0 | P120: =IFERROR(IF(G114=0,0,B120*G114),0) -> 0 | Q120: 0
A121: Apparatur/udstyr | C121: 0 | D121: 0 | H121: 0 | O121: =IF(B121=0,0,B121*E114) -> 0 | P121: =IFERROR(IF(G114=0,0,B121*G114),0) -> 0 | Q121: 0
A122: Scrap-værdi | C122: 0 | D122: 0 | H122: 0 | O122: =IF(B122=0,0,B122*E114) -> 0 | P122: =IFERROR(IF(G114=0,0,B122*G114),0) -> 0 | Q122: 0
A123: Evt. indtægter | C123: 0 | D123: 0 | H123: 0 | O123: =IF(B123=0,0,B123*E114) -> 0 | P123: =IFERROR(IF(G114=0,0,B123*G114),0) -> 0 | Q123: 0
A124: Revision | C124: 0 | D124: 0 | H124: 0 | O124: =IF(B124=0,0,B124*E114) -> 0 | P124: =IFERROR(IF(G114=0,0,B124*G114),0) -> 0 | Q124: 0
A125: I alt uden OH | B125: =SUM(B118:B124) -> 0 | C125: =SUM(C118:C124) -> 0 | D125: =SUM(D118:D124) -> 0 | F125: =SUM(F118:F124) -> 0 | H125: 0 | O125: =IF(B125=0,0,B125*E114) -> 0 | P125: =IFERROR(IF(G114=0,0,B125*G114),0) -> 0 | Q125: 0
A126: OH | C126: =IF(OR(B126=0,Q126<0),0,Q126) -> 0 | D126: =IFERROR(B126-C126,0) -> 0 | H126: 0 | O126: =IF(B126=0,0,B126*E114) -> 0 | P126: =IFERROR(IF(G114=0,0,B126*G114),0) -> 0 | Q126: 0
A127: I alt | B127: =SUM(B118:B124)+B126 -> 0 | C127: =SUM(C118:C124)+C126 -> 0 | D127: =SUM(D118:D124)+D126 -> 0 | F127: =SUM(F118:F124)+F126 -> 0 | H127: 0
A128: Finansiering i alt | B128: =IF(ISBLANK(E128),"",B127) ->  | C128: =IF(ISBLANK(E128),"",C127) ->  | D128: =IF(ISBLANK(E128),"",IF(D127-E128<0,0,D127-E128)) ->  | F128: =IF(ISBLANK(E128),"",F127) ->  | O128: =IF(B129=0,0,B129*E133) -> 0 | P128: =IFERROR(IF(G133=0,0,B129*G133),0) -> 0 | Q128: =IF(P128=0,O128,IFERROR(IF(P128=0,0,P128),0)) -> 0
B129: =IF(NOT(ISNUMBER(B128)),B127,IF(B128=B127,B127,B128)) -> 0 | C129: =IF(NOT(ISNUMBER(C128)),C127,IF(C128=C127,C127,C128)) -> 0 | D129: 0 | E129: 0
A130: Virksomhedsnavn: | C130: Deltager 7 | D130: Virksomhedsstørrelse:
A131: Aktivitetstype: | D131: Max mulig GUDP tilskudsprocent: | E131: =IF(G133<0,"Anden offentlig støtte overstiger GUDP max tilskudsbeløb",_xlfn.IFNA(VLOOKUP(B131,'[1]Liste over tilskudsprocenter'!$A:$K,MATCH(CONCATENATE(E130," - ",$H$1),'[1]Liste over tilskudsprocenter'!$A$1:$K$1,0),FALSE),"")) ->  | F131: Nedskrevet GUDP tilskudsprocent pga. anden offentlig støtte el. egen- og privat finansiering: | G131: =IFERROR(IF(G133<0,"Anden offentlig støtte overstiger GUDP max tilskudsbeløb",G133),"") ->  | H131: =IF(E130="",0,IF(LEFT(E130,9)="Offentlig",B144*0.44,B137*0.3)) -> 0
D132: Max mulig GUDP tilsagnsbeløb: | E132: =IFERROR(VLOOKUP(B131,'[1]Liste over tilskudsprocenter'!$A:$K,MATCH(CONCATENATE(E130," - ",$H$1),'[1]Liste over tilskudsprocenter'!$A$1:$K$1,0),FALSE)*B146,"") ->  | F132: Nedskrevet GUDP tilskudsbeløb pga. anden offentlig støtte el. egen- og privat finansiering: | G132: =IFERROR(B146*G131,"") -> 
A133: OH-procentsats | B133: =IF(E130="","",IF(E130="Offentlig forsknings- og vidensformidlingsorganisation",0.44,IF(E130="Privat forsknings- og vidensformidlingsorganisation",0.44,0.3))) ->  | E133: =_xlfn.IFNA(VLOOKUP(B131,'[1]Liste over tilskudsprocenter'!$A:$K,MATCH(CONCATENATE(E130," - ",$H$1),'[1]Liste over tilskudsprocenter'!$A$1:$K$1,0),FALSE),"") ->  | G133: =IFERROR(IF(B146*(1-E133)-E147<=0,E133-((B146*E133+E147)-B146)/B146,""),"") -> 
A134: OH-rest beløb | B134: =IF(E130="","",IF(OR(LEFT(E130,9)="Offentlig",LEFT(E130,6)="Privat"),B144*0.44-B145,B137*0.3-B145)) -> 
O135: GUDP tilskudsats | P135: GUDP nedsat tilskudssats | Q135: Beløb, der bruges til "Heraf GUDP"
A136: =IF(B146>0,"Ja","") ->  | B136: Omkostninger | C136: Heraf GUDP | D136: Heraf egen-og privat finansiering | E136: Heraf anden offentlig støtte - manuel | F136: Antal timer | I136: Specifikation af delbudget:
A137: Lønomkostninger | C137: =IF(OR(B137=0,Q137<0),0,Q137) -> 0 | D137: =IFERROR(B137-C137,0) -> 0 | H137: =IF($E$51<>"Offentlig forsknings- og vidensformidlingsorganisation",0,IF(B137="",0,B137)) -> 0 | O137: =IF(B137=0,0,B137*E133) -> 0 | P137: =IFERROR(IF(G133=0,0,B137*G133),0) -> 0 | Q137: =IF(P137=0,O137,IFERROR(IF(P137=0,0,P137),0)) -> 0
A138: Ekstern bistand | C138: =IF(OR(B138=0,Q138<0),0,Q138) -> 0 | D138: =IFERROR(B138-C138,0) -> 0 | H138: 0 | O138: =IF(B138=0,0,B138*E133) -> 0 | P138: =IFERROR(IF(G133=0,0,B138*G133),0) -> 0 | Q138: 0
A139: Øvrige omkostninger | C139: 0 | D139: 0 | H139: 0 | O139: =IF(B139=0,0,B139*E133) -> 0 | P139: =IFERROR(IF(G133=0,0,B139*G133),0) -> 0 | Q139: 0
A140: Apparatur/udstyr | C140: 0 | D140: 0 | H140: 0 | O140: =IF(B140=0,0,B140*E133) -> 0 | P140: =IFERROR(IF(G133=0,0,B140*G133),0) -> 0 | Q140: 0
A141: Scrap-værdi | C141: 0 | D141: 0 | H141: 0 | O141: =IF(B141=0,0,B141*E133) -> 0 | P141: =IFERROR(IF(G133=0,0,B141*G133),0) -> 0 | Q141: 0
A142: Evt. indtægter | C142: 0 | D142: 0 | H142: 0 | O142: =IF(B142=0,0,B142*E133) -> 0 | P142: =IFERROR(IF(G133=0,0,B142*G133),0) -> 0 | Q142: 0
A143: Revision | C143: 0 | D143: 0 | H143: 0 | O143: =IF(B143=0,0,B143*E133) -> 0 | P143: =IFERROR(IF(G133=0,0,B143*G133),0) -> 0 | Q143: 0
A144: I alt uden OH | B144: =SUM(B137:B143) -> 0 | C144: =SUM(C137:C143) -> 0 | D144: =SUM(D137:D143) -> 0 | F144: =SUM(F137:F143) -> 0 | H144: 0 | O144: =IF(B144=0,0,B144*E133) -> 0 | P144: =IFERROR(IF(G133=0,0,B144*G133),0) -> 0 | Q144: 0
A145: OH | C145: =IF(OR(B145=0,Q145<0),0,Q145) -> 0 | D145: =IFERROR(B145-C145,0) -> 0 | H145: 0 | O145: =IF(B145=0,0,B145*E133) -> 0 | P145: =IFERROR(IF(G133=0,0,B145*G133),0) -> 0 | Q145: 0
A146: I alt | B146: =SUM(B137:B143)+B145 -> 0 | C146: =SUM(C137:C143)+C145 -> 0 | D146: =SUM(D137:D143)+D145 -> 0 | F146: =SUM(F137:F143)+F145 -> 0 | H146: 0
A147: Finansiering i alt | B147: =IF(ISBLANK(E147),"",B146) ->  | C147: =IF(ISBLANK(E147),"",C146) ->  | D147: =IF(ISBLANK(E147),"",IF(D146-E147<0,0,D146-E147)) ->  | F147: =IF(ISBLANK(E147),"",F146) ->  | O147: =IF(B148=0,0,B148*E152) -> 0 | P147: =IFERROR(IF(G152=0,0,B148*G152),0) -> 0 | Q147: =IF(P147=0,O147,IFERROR(IF(P147=0,0,P147),0)) -> 0
B148: =IF(NOT(ISNUMBER(B147)),B146,IF(B147=B146,B146,B147)) -> 0 | C148: =IF(NOT(ISNUMBER(C147)),C146,IF(C147=C146,C146,C147)) -> 0 | D148: 0 | E148: 0
A149: Virksomhedsnavn: | C149: Deltager 8 | D149: Virksomhedsstørrelse:
A150: Aktivitetstype: | D150: Max mulig GUDP tilskudsprocent: | E150: =IF(G152<0,"Anden offentlig støtte overstiger GUDP max tilskudsbeløb",_xlfn.IFNA(VLOOKUP(B150,'[1]Liste over tilskudsprocenter'!$A:$K,MATCH(CONCATENATE(E149," - ",$H$1),'[1]Liste over tilskudsprocenter'!$A$1:$K$1,0),FALSE),"")) ->  | F150: Nedskrevet GUDP tilskudsprocent pga. anden offentlig støtte el. egen- og privat finansiering: | G150: =IFERROR(IF(G152<0,"Anden offentlig støtte overstiger GUDP max tilskudsbeløb",G152),"") ->  | H150: =IF(E149="",0,IF(LEFT(E149,9)="Offentlig",B163*0.44,B156*0.3)) -> 0
D151: Max mulig GUDP tilsagnsbeløb: | E151: =IFERROR(VLOOKUP(B150,'[1]Liste over tilskudsprocenter'!$A:$K,MATCH(CONCATENATE(E149," - ",$H$1),'[1]Liste over tilskudsprocenter'!$A$1:$K$1,0),FALSE)*B165,"") ->  | F151: Nedskrevet GUDP tilskudsbeløb pga. anden offentlig støtte el. egen- og privat finansiering: | G151: =IFERROR(B165*G150,"") -> 
A152: OH-procentsats | B152: =IF(E149="","",IF(E149="Offentlig forsknings- og vidensformidlingsorganisation",0.44,IF(E149="Privat forsknings- og vidensformidlingsorganisation",0.44,0.3))) ->  | E152: =_xlfn.IFNA(VLOOKUP(B150,'[1]Liste over tilskudsprocenter'!$A:$K,MATCH(CONCATENATE(E149," - ",$H$1),'[1]Liste over tilskudsprocenter'!$A$1:$K$1,0),FALSE),"") ->  | G152: =IFERROR(IF(B165*(1-E152)-E166<=0,E152-((B165*E152+E166)-B165)/B165,""),"") -> 
A153: OH-rest beløb | B153: =IF(E149="","",IF(OR(LEFT(E149,9)="Offentlig",LEFT(E149,6)="Privat"),B163*0.44-B164,B156*0.3-B164)) -> 
O154: GUDP tilskudsats | P154: GUDP nedsat tilskudssats | Q154: Beløb, der bruges til "Heraf GUDP"
A155: =IF(B165>0,"Ja","") ->  | B155: Omkostninger | C155: Heraf GUDP | D155: Heraf egen-og privat finansiering | E155: Heraf anden offentlig støtte - manuel | F155: Antal timer | I155: Specifikation af delbudget:
A156: Lønomkostninger | C156: =IF(OR(B156=0,Q156<0),0,Q156) -> 0 | D156: =IFERROR(B156-C156,0) -> 0 | H156: =IF($E$51<>"Offentlig forsknings- og vidensformidlingsorganisation",0,IF(B156="",0,B156)) -> 0 | O156: =IF(B156=0,0,B156*E152) -> 0 | P156: =IFERROR(IF(G152=0,0,B156*G152),0) -> 0 | Q156: =IF(P156=0,O156,IFERROR(IF(P156=0,0,P156),0)) -> 0
A157: Ekstern bistand | C157: =IF(OR(B157=0,Q157<0),0,Q157) -> 0 | D157: =IFERROR(B157-C157,0) -> 0 | H157: 0 | O157: =IF(B157=0,0,B157*E152) -> 0 | P157: =IFERROR(IF(G152=0,0,B157*G152),0) -> 0 | Q157: 0
A158: Øvrige omkostninger | C158: 0 | D158: 0 | H158: 0 | O158: =IF(B158=0,0,B158*E152) -> 0 | P158: =IFERROR(IF(G152=0,0,B158*G152),0) -> 0 | Q158: 0
A159: Apparatur/udstyr | C159: 0 | D159: 0 | H159: 0 | O159: =IF(B159=0,0,B159*E152) -> 0 | P159: =IFERROR(IF(G152=0,0,B159*G152),0) -> 0 | Q159: 0
A160: Scrap-værdi | C160: 0 | D160: 0 | H160: 0 | O160: =IF(B160=0,0,B160*E152) -> 0 | P160: =IFERROR(IF(G152=0,0,B160*G152),0) -> 0 | Q160: 0
A161: Evt. indtægter | C161: 0 | D161: 0 | H161: 0 | O161: =IF(B161=0,0,B161*E152) -> 0 | P161: =IFERROR(IF(G152=0,0,B161*G152),0) -> 0 | Q161: 0
A162: Revision | C162: 0 | D162: 0 | H162: 0 | O162: =IF(B162=0,0,B162*E152) -> 0 | P162: =IFERROR(IF(G152=0,0,B162*G152),0) -> 0 | Q162: 0
A163: I alt uden OH | B163: =SUM(B156:B162) -> 0 | C163: =SUM(C156:C162) -> 0 | D163: =SUM(D156:D162) -> 0 | F163: =SUM(F156:F162) -> 0 | H163: 0 | O163: =IF(B163=0,0,B163*E152) -> 0 | P163: =IFERROR(IF(G152=0,0,B163*G152),0) -> 0 | Q163: 0
A164: OH | C164: =IF(OR(B164=0,Q164<0),0,Q164) -> 0 | D164: =IFERROR(B164-C164,0) -> 0 | H164: 0 | O164: =IF(B164=0,0,B164*E152) -> 0 | P164: =IFERROR(IF(G152=0,0,B164*G152),0) -> 0 | Q164: 0
A165: I alt | B165: =SUM(B156:B162)+B164 -> 0 | C165: =SUM(C156:C162)+C164 -> 0 | D165: =SUM(D156:D162)+D164 -> 0 | F165: =SUM(F156:F162)+F164 -> 0 | H165: 0
A166: Finansiering i alt | B166: =IF(ISBLANK(E166),"",B165) ->  | C166: =IF(ISBLANK(E166),"",C165) ->  | D166: =IF(ISBLANK(E166),"",IF(D165-E166<0,0,D165-E166)) ->  | F166: =IF(ISBLANK(E166),"",F165) ->  | O166: =IF(B167=0,0,B167*E171) -> 0 | P166: =IFERROR(IF(G171=0,0,B167*G171),0) -> 0 | Q166: =IF(P166=0,O166,IFERROR(IF(P166=0,0,P166),0)) -> 0
B167: =IF(NOT(ISNUMBER(B166)),B165,IF(B166=B165,B165,B166)) -> 0 | C167: =IF(NOT(ISNUMBER(C166)),C165,IF(C166=C165,C165,C166)) -> 0 | D167: 0 | E167: 0
A168: Virksomhedsnavn: | C168: Deltager 9 | D168: Virksomhedsstørrelse:
A169: Aktivitetstype: | D169: Max mulig GUDP tilskudsprocent: | E169: =IF(G171<0,"Anden offentlig støtte overstiger GUDP max tilskudsbeløb",_xlfn.IFNA(VLOOKUP(B169,'[1]Liste over tilskudsprocenter'!$A:$K,MATCH(CONCATENATE(E168," - ",$H$1),'[1]Liste over tilskudsprocenter'!$A$1:$K$1,0),FALSE),"")) ->  | F169: Nedskrevet GUDP tilskudsprocent pga. anden offentlig støtte el. egen- og privat finansiering: | G169: =IFERROR(IF(G171<0,"Anden offentlig støtte overstiger GUDP max tilskudsbeløb",G171),"") ->  | H169: =IF(E168="",0,IF(LEFT(E168,9)="Offentlig",B182*0.44,B175*0.3)) -> 0
D170: Max mulig GUDP tilsagnsbeløb: | E170: =IFERROR(VLOOKUP(B169,'[1]Liste over tilskudsprocenter'!$A:$K,MATCH(CONCATENATE(E168," - ",$H$1),'[1]Liste over tilskudsprocenter'!$A$1:$K$1,0),FALSE)*B184,"") ->  | F170: Nedskrevet GUDP tilskudsbeløb pga. anden offentlig støtte el. egen- og privat finansiering: | G170: =IFERROR(B184*G169,"") -> 
A171: OH-procentsats | B171: =IF(E168="","",IF(E168="Offentlig forsknings- og vidensformidlingsorganisation",0.44,IF(E168="Privat forsknings- og vidensformidlingsorganisation",0.44,0.3))) ->  | E171: =_xlfn.IFNA(VLOOKUP(B169,'[1]Liste over tilskudsprocenter'!$A:$K,MATCH(CONCATENATE(E168," - ",$H$1),'[1]Liste over tilskudsprocenter'!$A$1:$K$1,0),FALSE),"") ->  | G171: =IFERROR(IF(B184*(1-E171)-E185<=0,E171-((B184*E171+E185)-B184)/B184,""),"") -> 
A172: OH-rest beløb | B172: =IF(E168="","",IF(OR(LEFT(E168,9)="Offentlig",LEFT(E168,6)="Privat"),B182*0.44-B183,B175*0.3-B183)) -> 
O173: GUDP tilskudsats | P173: GUDP nedsat tilskudssats | Q173: Beløb, der bruges til "Heraf GUDP"
A174: =IF(B184>0,"Ja","") ->  | B174: Omkostninger | C174: Heraf GUDP | D174: Heraf egen-og privat finansiering | E174: Heraf anden offentlig støtte - manuel | F174: Antal timer | I174: Specifikation af delbudget:
A175: Lønomkostninger | C175: =IF(OR(B175=0,Q175<0),0,Q175) -> 0 | D175: =IFERROR(B175-C175,0) -> 0 | H175: =IF($E$51<>"Offentlig forsknings- og vidensformidlingsorganisation",0,IF(B175="",0,B175)) -> 0 | O175: =IF(B175=0,0,B175*E171) -> 0 | P175: =IFERROR(IF(G171=0,0,B175*G171),0) -> 0 | Q175: =IF(P175=0,O175,IFERROR(IF(P175=0,0,P175),0)) -> 0
A176: Ekstern bistand | C176: =IF(OR(B176=0,Q176<0),0,Q176) -> 0 | D176: =IFERROR(B176-C176,0) -> 0 | H176: 0 | O176: =IF(B176=0,0,B176*E171) -> 0 | P176: =IFERROR(IF(G171=0,0,B176*G171),0) -> 0 | Q176: 0
A177: Øvrige omkostninger | C177: 0 | D177: 0 | H177: 0 | O177: =IF(B177=0,0,B177*E171) -> 0 | P177: =IFERROR(IF(G171=0,0,B177*G171),0) -> 0 | Q177: 0
A178: Apparatur/udstyr | C178: 0 | D178: 0 | H178: 0 | O178: =IF(B178=0,0,B178*E171) -> 0 | P178: =IFERROR(IF(G171=0,0,B178*G171),0) -> 0 | Q178: 0
A179: Scrap-værdi | C179: 0 | D179: 0 | H179: 0 | O179: =IF(B179=0,0,B179*E171) -> 0 | P179: =IFERROR(IF(G171=0,0,B179*G171),0) -> 0 | Q179: 0
A180: Evt. indtægter | C180: 0 | D180: 0 | H180: 0 | O180: =IF(B180=0,0,B180*E171) -> 0 | P180: =IFERROR(IF(G171=0,0,B180*G171),0) -> 0 | Q180: 0
A181: Revision | C181: 0 | D181: 0 | H181: 0 | O181: =IF(B181=0,0,B181*E171) -> 0 | P181: =IFERROR(IF(G171=0,0,B181*G171),0) -> 0 | Q181: 0
A182: I alt uden OH | B182: =SUM(B175:B181) -> 0 | C182: =SUM(C175:C181) -> 0 | D182: =SUM(D175:D181) -> 0 | F182: =SUM(F175:F181) -> 0 | H182: 0 | O182: =IF(B182=0,0,B182*E171) -> 0 | P182: =IFERROR(IF(G171=0,0,B182*G171),0) -> 0 | Q182: 0
A183: OH | C183: =IF(OR(B183=0,Q183<0),0,Q183) -> 0 | D183: =IFERROR(B183-C183,0) -> 0 | H183: 0 | O183: =IF(B183=0,0,B183*E171) -> 0 | P183: =IFERROR(IF(G171=0,0,B183*G171),0) -> 0 | Q183: 0
A184: I alt | B184: =SUM(B175:B181)+B183 -> 0 | C184: =SUM(C175:C181)+C183 -> 0 | D184: =SUM(D175:D181)+D183 -> 0 | F184: =SUM(F175:F181)+F183 -> 0 | H184: 0
A185: Finansiering i alt | B185: =IF(ISBLANK(E185),"",B184) ->  | C185: =IF(ISBLANK(E185),"",C184) ->  | D185: =IF(ISBLANK(E185),"",IF(D184-E185<0,0,D184-E185)) ->  | F185: =IF(ISBLANK(E185),"",F184) ->  | O185: =IF(B186=0,0,B186*E190) -> 0 | P185: =IFERROR(IF(G190=0,0,B186*G190),0) -> 0 | Q185: =IF(P185=0,O185,IFERROR(IF(P185=0,0,P185),0)) -> 0
B186: =IF(NOT(ISNUMBER(B185)),B184,IF(B185=B184,B184,B185)) -> 0 | C186: =IF(NOT(ISNUMBER(C185)),C184,IF(C185=C184,C184,C185)) -> 0 | D186: 0 | E186: 0
A187: Virksomhedsnavn: | C187: Deltager 10 | D187: Virksomhedsstørrelse:
A188: Aktivitetstype: | D188: Max mulig GUDP tilskudsprocent: | E188: =IF(G190<0,"Anden offentlig støtte overstiger GUDP max tilskudsbeløb",_xlfn.IFNA(VLOOKUP(B188,'[1]Liste over tilskudsprocenter'!$A:$K,MATCH(CONCATENATE(E187," - ",$H$1),'[1]Liste over tilskudsprocenter'!$A$1:$K$1,0),FALSE),"")) ->  | F188: Nedskrevet GUDP tilskudsprocent pga. anden offentlig støtte el. egen- og privat finansiering: | G188: =IFERROR(IF(G190<0,"Anden offentlig støtte overstiger GUDP max tilskudsbeløb",G190),"") ->  | H188: =IF(E187="",0,IF(LEFT(E187,9)="Offentlig",B201*0.44,B194*0.3)) -> 0
D189: Max mulig GUDP tilsagnsbeløb: | E189: =IFERROR(VLOOKUP(B188,'[1]Liste over tilskudsprocenter'!$A:$K,MATCH(CONCATENATE(E187," - ",$H$1),'[1]Liste over tilskudsprocenter'!$A$1:$K$1,0),FALSE)*B203,"") ->  | F189: Nedskrevet GUDP tilskudsbeløb pga. anden offentlig støtte el. egen- og privat finansiering: | G189: =IFERROR(B203*G188,"") -> 
A190: OH-procentsats | B190: =IF(E187="","",IF(E187="Offentlig forsknings- og vidensformidlingsorganisation",0.44,IF(E187="Privat forsknings- og vidensformidlingsorganisation",0.44,0.3))) ->  | E190: =_xlfn.IFNA(VLOOKUP(B188,'[1]Liste over tilskudsprocenter'!$A:$K,MATCH(CONCATENATE(E187," - ",$H$1),'[1]Liste over tilskudsprocenter'!$A$1:$K$1,0),FALSE),"") ->  | G190: =IFERROR(IF(B203*(1-E190)-E204<=0,E190-((B203*E190+E204)-B203)/B203,""),"") -> 
A191: OH-rest beløb | B191: =IF(E187="","",IF(OR(LEFT(E187,9)="Offentlig",LEFT(E187,6)="Privat"),B201*0.44-B202,B194*0.3-B202)) -> 
O192: GUDP tilskudsats | P192: GUDP nedsat tilskudssats | Q192: Beløb, der bruges til "Heraf GUDP"
A193: =IF(B203>0,"Ja","") ->  | B193: Omkostninger | C193: Heraf GUDP | D193: Heraf egen-og privat finansiering | E193: Heraf anden offentlig støtte - manuel | F193: Antal timer | I193: Specifikation af delbudget:
A194: Lønomkostninger | C194: =IF(OR(B194=0,Q194<0),0,Q194) -> 0 | D194: =IFERROR(B194-C194,0) -> 0 | H194: =IF($E$51<>"Offentlig forsknings- og vidensformidlingsorganisation",0,IF(B194="",0,B194)) -> 0 | O194: =IF(B194=0,0,B194*E190) -> 0 | P194: =IFERROR(IF(G190=0,0,B194*G190),0) -> 0 | Q194: =IF(P194=0,O194,IFERROR(IF(P194=0,0,P194),0)) -> 0
A195: Ekstern bistand | C195: =IF(OR(B195=0,Q195<0),0,Q195) -> 0 | D195: =IFERROR(B195-C195,0) -> 0 | H195: 0 | O195: =IF(B195=0,0,B195*E190) -> 0 | P195: =IFERROR(IF(G190=0,0,B195*G190),0) -> 0 | Q195: 0
A196: Øvrige omkostninger | C196: 0 | D196: 0 | H196: 0 | O196: =IF(B196=0,0,B196*E190) -> 0 | P196: =IFERROR(IF(G190=0,0,B196*G190),0) -> 0 | Q196: 0
A197: Apparatur/udstyr | C197: 0 | D197: 0 | H197: 0 | O197: =IF(B197=0,0,B197*E190) -> 0 | P197: =IFERROR(IF(G190=0,0,B197*G190),0) -> 0 | Q197: 0
A198: Scrap-værdi | C198: 0 | D198: 0 | H198: 0 | O198: =IF(B198=0,0,B198*E190) -> 0 | P198: =IFERROR(IF(G190=0,0,B198*G190),0) -> 0 | Q198: 0
A199: Evt. indtægter | C199: 0 | D199: 0 | H199: 0 | O199: =IF(B199=0,0,B199*E190) -> 0 | P199: =IFERROR(IF(G190=0,0,B199*G190),0) -> 0 | Q199: 0
A200: Revision | C200: 0 | D200: 0 | H200: 0 | O200: =IF(B200=0,0,B200*E190) -> 0 | P200: =IFERROR(IF(G190=0,0,B200*G190),0) -> 0 | Q200: 0
A201: I alt uden OH | B201: =SUM(B194:B200) -> 0 | C201: =SUM(C194:C200) -> 0 | D201: =SUM(D194:D200) -> 0 | F201: =SUM(F194:F200) -> 0 | H201: 0 | O201: =IF(B201=0,0,B201*E190) -> 0 | P201: =IFERROR(IF(G190=0,0,B201*G190),0) -> 0 | Q201: 0
... 194 more rows

Sheet Liste over tilskudsprocenter
B1: Offentlig forsknings- og vidensformidlingsorganisation - Individuel | C1: Offentlig forsknings- og vidensformidlingsorganisation - Samarbejde | D1: Privat forsknings- og vidensformidlingsorganisation - Individuel | E1: Privat forsknings- og vidensformidlingsorganisation - Samarbejde | F1: Lille virksomhed - Individuel | G1: Lille virksomhed - Samarbejde | H1: Mellemstor virksomhed - Individuel | I1: Mellemstor virksomhed - Samarbejde | J1: Stor virksomhed - Individuel | K1: Stor virksomhed - Samarbejde
A2: Anvendt forskning | B2: 0.9 | C2: 0.9 | D2: 0.9 | E2: 0.9 | F2: 0.7 | G2: 0.8 | H2: 0.6 | I2: 0.75 | J2: 0.5 | K2: 0.65
A3: Udvikling | B3: 0.9 | C3: 0.9 | D3: 0.9 | E3: 0.9 | F3: 0.45 | G3: 0.6 | H3: 0.35 | I3: 0.5 | J3: 0.25 | K3: 0.4
A4: Demonstration | B4: 0.7 | C4: 0.7 | D4: 0.7 | E4: 0.7 | F4: 0.7 | G4: 0.7 | H4: 0.7 | I4: 0.7 | J4: 0.7 | K4: 0.7
A5: Netværk | B5: 0.5 | C5: 0.5 | D5: 0.5 | E5: 0.5 | F5: 0.5 | G5: 0.5 | H5: 0.5 | I5: 0.5 | J5: 0.5 | K5: 0.5
A6: *Virksomheder må aldrig have medfinansiering med andre offentlige midler
A7: *Offentlig forsknings og vidensformidlingsorganisationer må aldrig have medfinansiering med egne midler
